{"text_format":"1","workbook":"xlsx","n_sheets":2,"sheets":["SZ-2017-SuperSearch","Sheet1"],"not_rendered":{"charts":0,"images":4,"macros":1,"external_links":0,"defined_names":4,"comments":0,"pivot_tables":0},"unopened":[],"bounds":{"document_bytes":16777216,"sheet_cells":100000,"rows_first":2000,"rows_last":500,"rows_between":2000,"halvings":0,"cell_chars":16384,"cell_head_chars":4096},"cells_cut":0,"cells_raw":0,"read":"whole","date_system":"1900"}

{"sheet":"SZ-2017-SuperSearch","index":0,"n_rows":1091,"n_cols":53,"rows_kept":1091,"cut":false,"hidden":false,"merged":[[7,21,7,52],[3,0,3,1],[4,0,4,1],[5,0,5,1],[6,0,6,1],[7,10,7,20],[7,0,7,3],[7,4,7,9],[2,0,2,1],[0,10,0,20],[0,21,0,52],[1,0,1,1],[0,4,0,9],[0,0,0,3]]}
["SEARCH EXHIBITORS",null,null,null,"SZ SECTION",null,null,null,null,null,"ANIMAL/EXHIBITOR TYPE",null,null,null,null,null,null,null,null,null,null,"DOG and/or CAT PRODUCT CATEGORIES"]
["EXHIBITOR SEARCH  ALL RESULTS ARE COMBINED",null,"EXHIBITOR SEARCH","<< \"U Pick 'Em\" LIST","Natural","Rodeo Drive","Critter Alley/Aquatic","Groomers","Equine","1st Time","Media, Org","Distributor","Bus Services Rtl/Mfg","Gift/Gen Mdse","Fish","Reptile","Bird","Sm Animal","Horse","Cat","Dog","Books, Mags","Clothes, Costumes","C&L Harn Acc ","ID Tags","Food","Feeding Acc","Treats ","Rawhide","Toys","Exercise. Agility","Catnip","Scratching","Furniture","Tie Out & Contain ","Beds Mats","Doors/Gates","Carriers Crates","Car Safety, Acc","Houses, Kennels","Litter","Litter Acc","Dental","Meds, Supp","Flea & Tick","Groom Tool","Shampoo","Stain & Odor, Clean","Wipes","Train pads, diapers ","Waste Pickup","Electronic","Track, Monitor"]
["Must have \"Y\" to activate; Then enter \"1\" in column>>",null,"Y"]
["To Add on Chge \"N\" to \"Y\"; Then enter \"1\" in column>>",null,"N"]
[" Note: An \"N\" even with \"1's\" will generate no results",null,"N"]
["Note: Multiple \"1's\" in a row mean AND - Must have all",null,"N"]
["Note: A \"Y\" with no \"1\"s brings up the whole list",null,"N"]
["SEARCH RESULTS",null,null,null,"SZ SECTION",null,null,null,null,null,"ANIMAL/EXHIBITOR TYPE",null,null,null,null,null,null,null,null,null,null,"DOG and/or CAT PRODUCT CATEGORIES"]
["SZ 2017 Booth #","SUPERZOO 2017 EXHIBITOR LIST ","EXHIBITOR SEARCH","<< \"U Pick 'Em\" LIST","Natural","Rodeo Drive","Critter Alley/Aquatic","Groomers","Equine","1st Time","Media, Org","Distributor","Bus Services Rtl/Mfg","Gift/Gen Mdse","Fish","Reptile","Bird","Sm Animal","Horse","Cat","Dog","Books, Mags","Clothes, Costumes","C&L Harn Acc ","ID Tags","Food","Feeding Acc","Treats ","Rawhide","Toys","Exercise. Agility","Catnip","Scratching","Furniture","Tie Out & Contain ","Beds Mats","Doors/Gates","Carriers Crates","Car Safety, Acc","Houses, Kennels","Litter","Litter Acc","Dental","Meds, Supp","Flea & Tick","Groom Tool","Shampoo","Stain & Odor, Clean","Wipes","Train pads, diapers ","Waste Pickup","Electronic","Track, Monitor"]
[4540,"2 Hounds Design ","Y",null,null,null,null,null,null,null,0,0,null,0,0,0,0,0,0,0,1,0,0,1,0,0,0,0,0,0,0,0,0,0,0,0,0,0,0,0,0,0,0,0,0,0,0,0,0,0,0,0,0]
[2079,"21st Century Animal HealthCare","Y",null,null,null,null,null,null,null,null,null,null,null,null,null,null,null,null,1,1,null,null,null,null,null,null,null,null,null,null,null,null,null,null,null,null,null,null,null,null,null,null,1]
[816,"3D Corporate Solutions","Y",null,1,null,null,null,null,null,null,null,1,null,null,null,null,1,null,1,1,null,null,null,null,1,null,1]
[3525,"4 Paws Tech","Y",null,null,null,null,null,null,null,null,null,null,null,null,null,null,null,null,null,1,null,1,1,null,null,null,null,null,1]
[4802,"4BF (Best Friends)","Y",null,null,1,null,null,null,null,null,null,null,null,null,null,null,null,null,null,1,null,null,null,null,null,null,null,null,1]
[4509,"4Legs4Pets","Y",null,null,null,null,null,null,null,null,null,null,null,null,null,null,null,null,null,1,null,null,null,null,null,null,null,null,null,null,null,null,null,null,1]
[2975,"4NaturalPets","Y",null,null,null,null,null,null,null,0,0,null,0,0,0,0,0,0,0,1,null,null,null,null,null,null,null,null,null,null,null,null,null,null,null,null,null,null,null,null,null,null,null,null,null,1]
[3924,"5-D Tropical (3925)","Y",null,null,null,1,null,null,null,null,null,null,null,1]
[3535,"8-in-1","Y",null,null,null,null,null,null,null,null,null,null,null,null,null,1,1,null,1,1,null,null,null,null,1,null,1,1,null,null,1,null,null,null,null,null,null,null,null,1,null,1,1,1,null,1,1,1,1,1]
[3669,"A A Pet","Y",null,null,null,null,null,null,null,null,null,null,null,1,null,null,null,null,1,1,null,null,null,null,null,1,null,null,null,null,null,null,null,null,null,null,null,null,null,null,null,1]
[4940,"A PET with PAWS","Y",null,null,1,null,null,null,null,null,null,null,null,null,null,null,null,null,1,1,null,null,null,null,null,null,null,null,null,null,null,null,null,null,null,null,1]
[4745,"A Tail We Could Wag ","Y",null,null,1,null,null,null,null,0,0,null,0,0,0,0,0,0,0,1,0,0,1,0,0,0,0,0,0,0,0,0,0,0,0,0,0,0,0,0,0,0,0,0,0,0,0,0,0,0,0,0]
[3254,"Adams","Y",null,null,null,null,null,null,null,null,null,null,null,null,null,null,null,null,1,1,null,null,1,null,null,null,null,null,null,null,null,null,null,null,null,null,null,null,null,null,null,null,1,1,null,1]
[621,"Addiction Foods","Y",null,1,null,null,null,null,null,null,null,null,null,null,null,null,null,null,1,1,null,null,null,null,1,null,1]
[2854,"ADMC","Y",null,null,null,null,null,null,null,null,null,null,null,null,null,1,1,1,1,1,null,1,1,1,1,1,1,1,1,1,1,1,1,1,1,1,1,1,1,1,1,1,1,1,1,1,1,1,1,1,1]
[755,"Advance Pet Products ","Y",null,1,null,null,null,null,null,0,0,null,0,0,0,0,0,0,1,1,0,1,0,0,0,1,0,0,1,0,0,0,0,0,1,0,0,0,0,0,1,0,0,0,0,0,0,0,0,0,0,0]
[4816,"AeroMark International Inc","Y",null,null,1,null,null,null,null,null,null,null,null,null,null,null,null,null,1,1,null,null,null,null,null,null,null,null,1,null,null,null,1,null,1]
[1609,"Agao Pet LLC","Y",null,null,null,null,null,null,null,null,null,null,null,null,null,null,null,null,null,1,null,null,1]
[230,"Alaska Naturals Pet Products ","Y",null,1,null,null,null,null,null,0,0,null,0,0,0,0,0,0,1,1,0,0,0,0,0,0,null,0,0,0,0,0,0,0,0,0,0,0,0,0,0,0,1,0,0,0,0,0,0,0,0,0]
[1409,"Alfalfa King ","Y",null,1,null,null,null,null,null,0,0,null,0,0,1,0,1,0,0,0,0,0,0,0,0,0,0,0,0,0,0,0,0,0,0,0,0,0,0,0,0,0,0,0,0,0,0,0,0,0,0,0]
[4060,"All Four Paws ","Y",null,null,null,null,null,null,null,0,0,null,0,0,0,0,0,0,1,1,0,1,1,0,0,0,0,0,0,0,0,0,0,0,0,0,0,0,0,0,0,0,1,0,0,0,0,0,0,0,0,0]
[1729,"All Paws Pet Wash","Y",null,null,null,null,null,null,null,null,null,1,null,null,null,null,null,null,null,1,null,null,null,null,null,null,null,null,null,null,null,null,null,null,null,null,null,null,null,null,null,null,null,null,1,1]
[4960,"All Star Dogs Inc. ","Y",null,null,1,null,null,null,null,null,null,null,1,null,null,null,null,null,null,1,null,1,null,null,null,null,null,null,null,null,null,null,null,null,1]
[959,"Allied Powers LLC","Y",null,null,null,null,1,null,null,null,null,null,null,null,null,null,null,null,null,1,null,null,null,null,null,null,null,null,null,null,null,null,null,null,null,null,null,null,null,null,null,null,1]
[4521,"Alpen Schatz","Y",null,null,null,null,null,null,null,null,null,null,1,null,null,null,null,null,1,1,null,null,1,1,null,null,null,null,null,null,null,null,null,null,null,null,null,null,null,null,null,null,null,null,null,1]
[4606,"Alpine Outfitters","Y",null,null,null,null,null,null,null,null,null,null,null,null,null,null,null,null,null,1,null,null,1,null,null,1,null,null,null,null,null,null,null,null,null,null,null,1]
[4724,"Alqo Wasi","Y",null,null,1,null,null,null,null,null,null,null,null,null,null,null,null,null,null,1,null,1]
[3957,"Amazing Pet Products ","Y",null,null,null,null,null,null,null,0,0,null,0,1,1,1,1,0,1,1,0,1,1,1,0,null,1,1,1,0,null,0,0,1,null,0,0,0,0,1,1,null,null,0,1,0,0,0,0,0,0,0]
[445,"Amber Technology","Y",null,1,null,null,null,null,null,null,null,null,null,null,1,1,1,null,1,1,null,null,null,null,null,null,null,null,null,null,null,null,null,null,null,null,null,null,null,null,null,null,1]
[623,"American Colloid Company","Y",null,1,null,null,null,null,null,null,null,null,null,null,null,null,null,null,1,null,null,null,null,null,null,null,null,null,null,null,null,null,null,null,null,null,null,null,null,1]
[2710,"American Dog","Y",null,null,null,null,null,null,1,null,null,null,null,null,null,null,null,null,null,1,null,1,1,null,null,1,1,null,1]
[1066,"American Express OPEN","Y",null,null,null,null,1,null,null,null,null,1]
[3466,"American Pet","Y",null,null,null,null,null,null,null,null,null,null,null,null,1,1,1]
[3134,"American Pet Products Association (APPA)","Y",null,null,null,null,null,null,null,1,0,null,1,0,0,0,0,0,0,0,0,0,0,0,0,0,0,0,0,0,0,0,0,0,0,0,0,0,0,0,0,0,0,0,0,0,0,0,0,0,0,0]
[1480,"Amici Pet","Y",null,null,null,null,null,null,null,null,null,null,null,null,null,null,null,null,1,1,null,null,null,null,null,1]
[3419,"Amicus","Y",null,null,null,null,null,null,null,null,null,null,null,1,null,null,null,null,1,1,null,null,1,null,null,1,null,null,1,null,null,null,null,1,null,null,null,null,null,null,null,null,null,null,null,null,null,null,null,null,1]
[2323,"Amoros0 Enterprise","Y",null,null,null,null,null,null,null,null,null,null,null,null,null,null,null,null,1,1,null,null,1,null,null,null,null,null,null,null,null,null,null,null,null,null,1]
[471,"Andis Company ","Y",null,null,null,null,1,null,null,0,0,null,0,0,0,0,1,1,1,1,0,0,0,0,0,0,0,0,0,0,0,0,0,0,0,0,0,0,0,0,0,0,0,0,1,0,0,0,0,0,0,0]
[4624,"Angel Pet Supplies Inc. ","Y",null,null,null,null,null,null,null,0,0,null,0,0,0,0,0,0,1,1,0,0,1,0,0,0,0,0,0,0,0,0,0,0,0,0,0,0,0,0,0,0,0,0,0,0,0,0,0,0,0,0]
[4854,"Angels' Eyes ","Y",null,null,1,null,null,null,null,0,0,null,0,0,0,0,0,0,1,1,0,0,0,0,0,0,1,0,0,0,0,0,0,0,1,0,0,0,0,0,0,0,1,0,0,1,0,1,0,0,0,0]
[773,"Angels Grooming Apparel","Y",null,null,null,null,1,null,null,null,null,1,null,null,null,null,null,null,null,null,null,null,null,null,null,null,null,null,null,null,null,null,null,null,null,null,null,null,null,null,null,null,null,null,1]
[4400,"Anhui Changxing Arts & Crafts toy group ","Y",null,null,null,null,null,null,null,null,null,null,null,null,null,null,null,null,null,1,null,null,null,null,null,null,null,null,1]
[2775,"Ani Mate","Y",null,null,null,null,null,null,null,null,null,null,null,1,null,null,null,null,1,1,null,null,1,1,null,1,null,null,1,null,null,null,null,null,null,1,null,null,null,null,null,null,null,null,null,null,null,null,null,null,1]
[361,"Animal Ayurveda (Kowa American Corp)","Y",null,null,null,null,1,null,null,null,null,null,null,null,null,null,null,null,null,1,null,null,null,null,null,null,null,null,null,null,null,null,null,null,null,null,null,null,null,null,null,null,1,null,null,1]
[828,"Animal Essentials Inc. ","Y",null,1,null,null,null,null,null,0,0,null,0,0,0,0,0,null,1,1,0,0,0,0,0,0,0,0,0,0,0,0,0,0,0,0,0,0,0,0,0,0,1,0,0,0,0,0,0,0,0,0]
[1533,"Animal Health Solutions Inc","Y",null,null,null,null,null,null,null,null,null,null,null,null,null,1,null,1,1,1,null,null,null,null,null,null,null,null,null,null,null,null,null,null,null,null,null,null,null,null,null,null,1]
[1080,"Animal Photography","Y",null,null,null,null,1,null,null,null,null,1,1]
[3841,"Animal Supply Company","Y",null,null,null,null,null,null,null,null,1,null,null,1,1,1,1,1,1,1,null,1,1,1,1,1,1,1,1,1,1,1,1,1,1,1,1,1,1,1,1,1,1,1,1,1,1,1,1,1,1]
[3419,"Animal TAG Sistemas de Identificapao Animal Ltda","Y",null,null,null,null,null,null,null,null,null,1,null,null,null,null,null,null,null,1,null,null,null,1,null,null,null,null,null,null,null,null,null,null,null,null,null,null,null,null,null,null,null,null,null,null,null,null,null,null,1,1]
[1311,"Annamaet Petfoods Inc. ","Y",null,1,null,null,null,null,null,0,0,null,0,0,0,0,0,0,1,1,0,0,0,0,1,0,1,0,0,0,0,0,0,0,0,0,0,0,0,0,0,0,1,0,0,0,0,0,0,0,0,0]
[2534,"aOaO™ Natural Pets","Y",null,null,null,null,null,null,1,null,null,null,null,null,null,null,null,null,null,1,null,null,1,null,null,null,null,null,null,null,null,null,null,null,null,null,null,null,null,null,null,null,1,1,null,1]
[3113,"AP Lazer","Y",null,null,null,null,null,null,null,null,null,1,1,null,null,null,null,null,1,1]
[2627,"Apollo Peak, Ltd.","Y",null,null,null,null,null,null,1,null,null,null,null,null,null,null,null,null,1,1,null,null,null,null,null,null,1,null,null,null,null,null,null,null,null,null,null,null,null,null,null,null,1]
[4129,"AquaEl","Y",null,null,null,null,null,null,null,null,null,null,null,1]
[2822,"Aquapaw, LLC","Y",null,null,null,null,null,null,1,null,null,null,null,null,null,null,null,null,null,1,null,null,null,null,null,null,null,null,null,null,null,null,null,null,null,null,null,null,null,null,null,null,null,null,1]
[4226,"Aquatop","Y",null,null,null,null,null,null,null,0,0,0,0,1,0,0,0,0,0,0,0,0,0,0,0,0,0,0,0,0,0,0,0,0,0,0,0,0,0,0,0,0,0,0,0,0,0,0,0,0,0,0]
[3254,"Aqueon","Y",null,null,null,null,null,null,null,null,null,null,null,1]
[1547,"Ark Naturals Products for Pets/Grey Muzzle","Y",null,null,null,null,null,null,null,0,0,null,0,0,0,null,null,0,1,1,0,0,0,0,0,0,1,0,0,0,0,0,0,0,0,0,0,0,0,0,0,1,1,1,0,1,0,0,0,0,0,0]
[2039,"Arlee Pet Products","Y",null,null,null,null,null,null,null,null,null,null,null,null,null,null,null,null,null,1,null,null,null,null,null,1,null,null,null,null,null,null,null,null,1,null,null,1]
[2830,"Armadillo Hose Products","Y",null,null,null,null,null,null,1,null,null,null,1]
[4221,"Armstrong's Cricket Farm ","Y",null,null,null,null,null,null,null,0,0,null,0,0,1,1,0,0,0,0,0,0,0,0,0,0,0,0,0,0,0,0,0,0,0,0,0,0,0,0,0,0,0,0,0,0,0,0,0,0,0,0]
[3901,"Arni Says Savers LLC","Y",null,null,null,null,null,null,null,null,null,null,null,null,null,null,null,null,1,null,null,null,null,null,null,null,null,null,1,null,null,null,1]
[854,"Aroma Paws ","Y",null,1,null,null,null,null,null,0,0,null,1,0,0,0,0,0,0,1,0,0,0,0,0,0,0,0,0,0,0,0,0,0,0,0,0,0,0,0,0,0,1,1,0,1,1,0,0,0,0,0]
[411,"Artemis Pet Foods ","Y",null,1,null,null,null,null,null,0,0,null,0,0,0,0,0,0,1,1,0,0,0,0,1,0,0,0,0,0,0,0,0,0,0,0,0,0,0,0,0,0,0,0,0,0,0,0,0,0,0,0]
[960,"Artero USA","Y",null,null,null,null,1,null,null,null,null,1,null,null,null,null,null,null,1,1,null,null,null,null,null,null,null,null,null,null,null,null,null,null,null,null,null,null,null,null,null,null,1,null,1,1]
[1733,"Artvark Pet Products ","Y",null,null,null,null,null,null,null,0,1,null,0,0,0,0,0,0,1,1,0,0,1,0,0,1,1,1,0,0,0,0,0,0,0,0,0,0,0,0,0,0,0,1,1,0,0,0,1,1,0,0]
[3602,"Asder Electronic Co., LTD.","Y",null,null,null,null,null,null,null,null,null,null,null,null,null,null,null,null,null,1,null,null,null,null,null,null,null,null,1,null,null,null,null,null,null,null,null,null,null,null,null,null,null,null,null,null,null,null,null,null,1]
[4747,"Auburn Leathercrafters","Y",null,null,1,null,null,null,null,0,0,null,0,0,0,0,0,0,null,1,0,null,1,0,0,0,0,0,1,0,null,0,0,0,0,0,0,0,0,0,0,0,0,0,0,0,0,0,0,0,0,0]
[566,"Aussie Dog","Y",null,null,null,null,1,null,null,null,null,1,null,null,null,null,null,null,null,1,null,null,null,null,null,null,null,null,null,null,null,null,null,null,null,null,null,null,null,null,null,null,null,null,1]
[3021,"Aussie Naturals by ABO Gear","Y",null,null,null,null,null,null,null,0,0,null,0,0,0,0,0,0,1,1,0,1,1,0,0,0,1,0,1,0,0,1,1,0,1,0,1,1,1,0,0,0,0,0,1,0,0,0,0,0,0,0]
[1058,"Avafina Pet Products","Y",null,null,null,null,1,null,null,null,1,null,null,null,null,null,null,null,1,1,null,1,1,null,1,1,1,null,1,null,null,null,1,null,1,null,1,null,null,1,1,1,1,null,1,1,null,1,null,1]
[3254,"AvoDerm","Y",null,null,null,null,null,null,null,null,null,null,null,null,null,null,null,null,1,1,null,null,null,null,1]
[309,"B & R Pet Treats","Y",null,1,null,null,null,null,null,null,null,null,null,null,null,null,null,null,null,1,null,null,null,null,null,null,1,null,null,null,null,null,null,null,null,null,null,null,null,null,null,null,1]
[2904,"BabelBark","Y",null,null,null,null,null,null,null,null,null,null,null,null,null,null,null,null,null,1,null,null,null,null,null,null,null,null,null,null,null,null,null,null,null,null,null,null,null,null,null,null,null,null,null,null,null,null,null,null,1,1]
[1981,"Back On Track USA Inc","Y",null,null,null,null,null,null,null,null,null,null,null,null,null,null,null,1,null,1,null,1,null,null,null,null,null,null,null,null,null,null,null,null,1,null,null,null,null,null,null,null,1]
[967,"B-Air Dryers-Intertex Inc. ","Y",null,null,null,null,1,null,null,0,0,1,0,0,0,0,0,0,0,1,0,0,0,0,0,0,0,0,0,0,0,0,0,0,0,0,0,0,0,0,0,0,0,0,1,0,0,0,0,0,0,0]
[2616,"Bandanas Unlimited","Y",null,null,null,null,null,null,1,null,null,null,null,null,null,null,null,null,null,1,null,1]
[4738,"Bare Bites","Y",null,null,1,null,null,null,null,null,null,null,null,null,null,null,null,1,1,1,null,null,null,null,null,null,1]
[432,"BareItAll Petfoods","Y",null,1,null,null,null,null,null,null,null,null,null,null,null,null,null,null,1,1,null,null,null,null,null,null,1]
[2727,"Bark Avenue Hemp Treats","Y",null,null,null,null,null,null,1,null,null,null,null,null,null,null,null,null,null,1,null,null,null,null,null,null,1,null,null,null,null,null,null,null,null,null,null,null,null,null,null,null,1]
[4721,"Bark Boutique","Y",null,null,1,null,null,null,null,null,null,null,null,null,null,null,null,null,1,1,null,null,1]
[2570,"Bark Potty","Y",null,null,null,null,null,null,null,null,null,null,null,null,null,null,null,null,null,1,null,null,null,null,null,null,null,null,null,null,null,null,null,null,null,null,null,null,null,null,null,null,null,null,null,null,null,null,null,1]
[561,"Barkleigh Productions","Y",null,null,null,null,1,null,null,1,null,1,1,null,null,null,null,null,1,1,1,null,null,null,null,null,null,null,null,null,null,null,null,null,null,null,null,null,null,null,null,null,null,null,1]
[4635,"Bark-N-Bag","Y",null,null,1,null,null,null,null,null,null,null,null,null,null,null,null,null,1,1,null,null,null,null,null,1,null,null,null,null,null,null,null,null,1,null,1]
[447,"BARKnBig","Y",null,1,null,null,null,null,null,null,null,null,null,null,null,null,null,null,null,1,null,null,null,null,null,null,1,null,null,null,null,null,null,null,null,null,null,null,null,null,null,null,1]
[1366,"Barkworthies  ","Y",null,null,null,null,null,null,null,0,0,null,0,0,0,0,0,0,0,1,0,0,0,0,0,0,1,0,0,0,0,0,0,0,0,0,0,0,0,0,0,0,0,0,0,0,0,0,0,0,0,0]
[969,"Bass Brushes","Y",null,null,null,null,1,null,null,null,null,1,null,null,null,null,null,1,1,1,null,null,null,null,null,null,null,null,null,null,null,null,null,null,null,null,null,null,null,null,null,null,null,null,1]
[2924,"Bavarian Cat Toys","Y",null,null,null,null,null,null,null,null,null,null,null,null,null,null,null,null,1,null,null,null,null,null,null,null,null,null,1]
[4266,"Bayer Animal Health","Y",null,null,null,null,null,null,null,0,0,null,0,0,0,0,0,0,1,1,0,0,0,0,0,0,0,0,0,0,0,0,0,0,0,0,0,0,0,0,0,0,0,1,0,0,0,0,0,0,0,0]
[4739,"Baylee Nasco ","Y",null,null,1,null,null,null,null,0,0,null,0,0,0,0,0,0,0,1,0,0,0,0,0,0,0,0,0,0,0,0,null,0,1,0,0,0,0,0,0,0,0,0,0,0,0,0,0,0,0,0]
[3279,"Beijing Makar Pet Products Co Ltd","Y",null,null,null,null,null,null,null,null,null,null,null,null,null,null,null,null,1,1,null,null,null,null,null,1,null,null,null,null,null,null,null,null,null,null,null,null,1,null,1,null,null,null,null,null,null,null,1,1]
[630,"Bell Rock Growers","Y",null,1,null,null,null,null,null,0,0,null,null,null,1,1,1,0,1,1,0,0,0,0,0,0,1,0,null,0,1,0,0,0,0,0,0,0,0,0,0,0,1,0,0,0,0,0,0,0,0,0]
[4847,"Bella & Beau","Y",null,null,1,null,null,null,null,null,null,null,1,null,null,null,null,null,null,1,null,null,1]
[327,"Bentonite Performance Minerals, LLC","Y",null,1,null,null,null,null,null,null,null,null,null,null,null,null,null,null,1,null,null,null,null,null,null,null,null,null,null,null,null,null,null,null,null,null,null,null,null,1]
[4914,"bessie + barnie","Y",null,null,1,null,null,null,null,0,0,null,0,0,0,0,0,0,0,1,0,0,1,0,0,0,0,0,0,0,0,0,0,0,1,0,0,0,0,0,0,0,0,0,0,0,0,0,0,0,0,0]
[1258,"Best Pet Supplies Inc. ","Y",null,null,null,null,null,null,null,0,0,null,0,0,0,0,0,0,1,1,0,1,1,0,0,1,1,0,1,0,1,0,1,0,1,0,1,null,null,0,0,0,0,0,0,0,null,1,1,1,0,0]
[961,"Best Shot Pet Products ","Y",null,null,null,null,1,null,null,0,0,null,0,0,0,0,0,1,1,1,0,0,0,0,0,0,0,0,0,0,0,0,0,0,0,0,0,0,0,0,0,0,1,0,0,1,0,0,0,0,0,0]
[1179,"BHD Information Systems-Retail Pro","Y",null,null,null,null,null,null,null,null,null,1]
[1517,"Big Creek Foods - Look Who’s Happy","Y",null,null,null,null,null,null,null,null,null,null,null,null,null,null,null,null,null,1,null,null,null,null,null,null,1]
[2923,"Bihlerflex / The Perfect Pet Products","Y",null,null,null,null,null,null,null,null,null,null,null,null,null,null,null,null,null,1,null,null,1,null,null,null,null,null,1]
[1717,"Bil-Jac Dog Food","Y",null,null,null,null,null,null,null,null,null,null,null,null,null,null,null,null,null,1,null,null,null,null,1,null,1]
[4361,"Bio Groom","Y",null,null,null,null,null,null,null,0,0,null,0,0,0,0,1,1,1,1,0,0,0,0,0,0,0,0,0,0,0,0,0,0,0,0,0,0,0,0,0,0,1,1,0,1,0,0,0,0,0,0]
[1307,"BioDOGradable Bags","Y",null,1,null,null,null,null,null,null,null,null,null,null,null,null,null,null,1,1,null,null,null,null,null,null,null,null,null,null,null,null,null,null,null,null,null,null,null,null,1,null,null,null,null,null,null,null,null,1]
[322,"Biokleen","Y",null,1,null,null,null,null,null,null,null,null,null,null,null,null,null,null,1,1,null,null,null,null,null,null,null,null,null,null,null,null,null,null,null,null,null,null,null,null,null,null,null,null,null,null,1]
[616,"Bio-Rep Animal Health (Boneo Canine)","Y",null,1,null,null,null,null,null,null,null,null,null,null,null,null,null,null,null,1,null,null,null,null,null,null,null,null,null,null,null,null,null,null,null,null,null,null,null,null,null,null,1]
[1433,"BIXBI Pet ","Y",null,1,null,null,null,null,null,0,0,null,0,0,0,0,0,0,null,1,0,0,0,0,1,0,1,0,0,0,0,0,0,0,0,0,0,0,0,0,0,0,1,0,0,0,0,0,0,0,0,0]
[439,"Blackwood Pet Food ","Y",null,1,null,null,null,null,null,0,0,null,0,0,0,0,null,null,1,1,0,0,0,0,1,0,null,0,0,0,0,0,0,0,0,0,0,0,0,0,0,0,0,0,0,0,0,0,0,0,0,0]
[2633,"Blink","Y",null,null,null,null,null,null,1,null,null,null,null,null,null,null,null,null,1,null,null,null,null,null,null,null,null,null,null,null,null,null,1,null,null,null,null,null,1]
[4505,"Blissful Hounds, LLC","Y",null,null,null,null,null,null,null,null,null,null,null,null,null,null,null,null,null,1,null,null,1]
[2167,"Blue Buffalo Co.","Y",null,null,null,null,null,null,null,0,0,null,0,0,0,0,0,0,1,1,0,0,0,0,1,0,1,0,0,0,0,0,0,0,0,0,0,0,0,1,0,0,0,0,0,0,0,0,0,0,0,0]
[1045,"Blue Dog Bakery ","Y",null,1,null,null,null,null,null,0,0,null,0,0,0,0,0,0,0,1,0,0,0,0,0,0,1,0,0,0,0,0,0,0,0,0,0,0,0,0,0,0,0,0,0,0,0,0,0,0,0,0]
[4454,"Blue Ribbon Pet Products","Y",null,null,null,null,null,null,null,0,0,null,0,1,1,1,1,0,0,1,0,0,0,0,0,0,0,0,1,0,0,0,0,0,0,0,0,0,0,0,0,0,0,0,0,0,0,0,0,0,0,0]
[807,"Bluestem Oral Care","Y",null,1,null,null,null,null,null,null,null,null,null,null,null,null,null,null,1,1,null,null,null,null,null,null,null,null,null,null,null,null,null,null,null,null,null,null,null,null,null,1,1]
[1131,"Bobby + Bambi's Gourmet Dog Bakery","Y",null,1,null,null,null,null,null,null,null,null,null,null,null,null,null,null,null,1,null,null,null,null,null,null,1]
[1039,"Bocce's Bakery ","Y",null,1,null,null,null,null,null,0,0,null,0,0,0,0,0,0,0,1,0,0,0,0,0,0,1,0,0,0,0,0,0,0,0,0,0,0,0,0,0,0,1,0,0,0,0,0,0,0,0,0]
[1120,"Bon Secour Valley Ingredients","Y",null,1,null,null,null,null,null,null,null,1,null,null,null,null,null,null,null,1,null,null,null,null,null,null,1]
[3212,"Bonefly","Y",null,null,null,null,null,null,null,null,null,null,null,null,null,null,null,null,null,1,null,null,1]
[1023,"Boo Boo's Best","Y",null,1,null,null,null,null,null,null,null,null,null,null,null,null,null,null,null,1,null,null,null,null,null,null,1,null,null,null,null,null,null,null,null,null,null,null,null,null,null,null,1]
[2829,"BOON - Pet Financing","Y",null,null,null,null,null,null,1,null,null,1,null,null,null,null,null,null,null,1]
[5146,"Bosco and Roxy's Inc. ","Y",null,null,1,null,null,null,null,null,null,null,null,null,null,null,null,null,null,1,null,null,null,null,null,null,1]
[4460,"Boss Pet Products","Y",null,null,null,null,null,null,null,0,0,null,0,0,0,0,0,0,1,1,0,1,1,0,0,1,1,1,1,0,0,null,0,1,null,0,0,null,0,0,1,0,1,null,1,1,null,0,null,1,0,0]
[3219,"Bowser Beer / 3 Busy Dogs,Inc.","Y",null,null,null,null,null,null,null,null,null,null,null,null,null,null,null,null,null,1,null,null,null,null,null,null,1,null,null,null,null,null,null,null,null,null,null,null,null,null,null,null,1]
[4928,"Bowsers Pet Products ","Y",null,null,1,null,null,null,null,0,0,null,0,0,0,0,0,0,1,1,0,1,1,0,0,1,0,0,0,0,0,0,1,0,1,0,0,1,0,0,0,0,0,0,0,0,0,0,0,0,0,0]
[4655,"Bow-Wow Pet (European Home Design)","Y",null,null,1,null,null,null,null,0,0,null,0,0,0,0,null,0,null,1,0,null,1,0,0,0,0,0,1,0,0,null,0,0,1,0,1,1,null,0,0,0,0,0,null,0,0,0,1,1,0,0]
[1411,"Boxiecat LLC","Y",null,1,null,null,null,null,null,null,null,null,null,null,null,null,null,null,1,null,null,null,null,null,null,null,null,null,null,null,null,null,null,null,null,null,null,null,null,1,null,null,null,null,null,null,1]
[4122,"Boyd Enterprises / ChemiPure","Y",null,null,null,null,null,null,null,0,0,null,0,1,0,0,0,0,0,0,0,0,0,0,0,0,0,0,0,0,0,0,0,0,0,0,0,0,0,0,0,0,0,0,0,0,0,0,0,0,0,0]
[2457,"BPV Environmental/Fresh News Pet Prod","Y",null,null,null,null,null,null,null,0,0,null,0,0,0,null,1,0,1,null,0,0,0,0,0,0,0,0,0,0,0,0,0,0,0,0,0,0,0,1,0,0,0,0,0,0,0,0,0,0,0,0]
[1623,"Bramton Company LLC","Y",null,null,null,null,null,null,null,0,0,null,0,0,0,0,0,0,1,1,0,0,null,0,0,0,1,1,0,0,0,0,0,0,0,0,0,0,0,null,0,1,1,1,0,1,1,0,1,1,0,0]
[529,"Bravo! Pet Foods","Y",null,1,null,null,null,null,null,0,0,null,0,0,0,0,0,0,1,1,0,0,0,0,1,0,1,0,0,0,0,0,0,0,0,0,0,0,0,0,0,0,1,0,0,0,0,0,0,0,0,0]
[307,"Bright Pet Nutrition Group","Y",null,1,null,null,null,null,null,null,null,null,null,null,null,null,null,null,1,1,null,null,null,null,1]
[2611,"Brite Companies","Y",null,null,null,null,null,null,1,null,null,null,null,null,null,null,null,null,null,null,null,null,1,null,null,null,null,null,null,null,null,null,null,null,null,null,null,null,null,null,null,null,null,null,null,null,null,null,null,null,1]
[3215,"BrownTrout Publishers","Y",null,null,null,null,null,null,null,null,null,null,1]
[4607,"Buckle-Down Inc.","Y",null,null,1,null,null,null,null,0,0,null,0,0,0,0,0,0,0,1,0,0,1,0,0,null,0,0,0,0,0,0,0,0,0,0,0,0,0,0,0,0,0,0,0,0,0,0,0,0,0,0]
[1333,"Buckley Pet","Y",null,1,null,null,null,null,null,null,null,null,null,null,null,null,null,null,null,1,null,null,null,null,1,null,1]
[1507,"Buddeez, Inc","Y",null,null,null,null,null,null,null,null,null,null,null,null,null,null,null,null,1,1,null,null,null,null,null,1]
[5054,"Buddy Belts ","Y",null,null,1,null,null,null,null,0,0,null,0,0,0,0,0,0,0,1,0,0,1,0,0,0,0,0,0,0,0,0,0,0,0,0,0,0,0,0,0,0,0,0,0,0,0,0,0,0,0,0]
[2807,"Buddy's Line - Royal Trade USA, Inc.","Y",null,null,null,null,null,null,null,0,0,null,0,0,0,0,0,0,1,1,0,0,0,0,0,1,0,0,0,0,0,0,0,0,0,0,0,0,0,0,0,0,0,0,0,0,0,0,0,0,0,0]
[359,"Bulldog Bag","Y",null,null,null,null,1,null,null,null,null,1,null,null,null,1,null,null,1,1,null,null,null,null,1,null,1]
[4469,"Busy Buddy","Y",null,null,null,null,null,null,null,null,null,null,null,null,null,null,null,null,1,1,null,null,null,null,null,null,1,null,1]
[3013,"Butchers Block Pet Treats Heartland Premium","Y",null,null,null,null,null,null,null,0,0,null,0,0,0,0,0,0,0,1,0,0,0,0,0,0,1,0,0,0,0,0,0,0,0,0,0,0,0,0,0,0,0,0,0,0,0,0,0,0,0,0]
[4438,"Butcher's Bones","Y",null,null,null,null,null,null,null,null,null,null,null,null,null,null,null,null,null,1,null,null,null,null,null,null,1]
[1479,"Butler Home Products","Y",null,null,null,null,null,null,null,null,null,null,null,null,null,null,null,null,1,1,null,null,null,null,null,null,null,null,null,null,null,null,null,null,null,null,null,null,null,null,null,null,null,null,1,null,1]
[3206,"C & S Products Company Inc","Y",null,null,null,null,null,null,null,null,null,null,null,null,null,1]
[460,"C.J. Foods, Inc.","Y",null,null,null,null,1,null,null,null,null,1,null,null,null,null,null,null,1,1,null,null,null,null,1,null,1]
[1845,"Caitec Corp","Y",null,null,null,null,null,null,null,0,0,null,0,1,0,1,1,0,0,1,0,0,0,0,0,null,0,0,1,0,0,0,0,0,0,0,null,0,0,0,0,0,0,0,0,0,0,0,0,0,0,0]
[1934,"Caldera International","Y",null,null,null,null,null,null,null,null,null,null,null,null,null,null,null,null,1,1,null,1,null,null,null,null,null,null,null,null,null,null,null,null,null,null,null,null,null,null,null,null,1]
[2811,"California Canine","Y",null,null,null,null,null,null,1,null,null,null,null,null,null,null,null,null,null,1,null,1,1]
[463,"California Pet Supplies Inc","Y",null,null,null,null,1,null,null,null,null,1,null,null,null,null,null,null,1,1,null,null,null,null,null,null,null,null,null,null,null,null,null,null,null,null,1,null,null,null,null,null,null,null,1]
[658,"California Professional Pet Groomers Assn.","Y",null,null,null,null,1,null,null,1]
[526,"Calm My Pet","Y",null,1,null,null,null,null,null,null,null,null,null,null,null,null,null,null,1,1,null,null,null,null,null,null,null,null,null,null,null,null,null,null,null,null,null,null,null,null,null,null,1]
[3727,"Camry (Yiu Fung Aquarium)","Y",null,null,null,null,null,null,null,null,null,1,null,1]
[1555,"Canada Pooch","Y",null,null,null,null,null,null,null,0,0,null,0,0,0,0,0,0,0,1,0,1,null,0,0,0,0,0,0,0,0,0,0,0,null,0,0,0,0,0,0,0,0,0,0,0,0,0,0,0,0,0]
[2017,"Canagan Pet Foods LLC","Y",null,null,null,null,null,null,null,null,null,null,null,null,null,null,null,null,null,1,null,null,null,null,1]
[606,"Canature Processing Ltd","Y",null,1,null,null,null,null,null,null,null,1,null,null,null,null,null,null,null,1,null,null,null,null,1,null,1]
[2735,"Canidae Natural Pet Food Co.","Y",null,null,null,null,null,null,null,0,0,null,0,0,0,0,0,0,1,1,0,0,0,0,1,0,1,0,0,0,0,0,0,0,0,0,0,0,0,0,0,0,0,0,0,0,0,0,0,0,0,0]
[4518,"Canine Brands Worldwide","Y",null,null,null,null,null,null,null,null,null,null,null,null,null,null,null,null,null,1,null,1,1,null,null,1,null,null,1,null,null,null,null,null,1]
[823,"Canine Caviar Pet Foods Inc. ","Y",null,1,null,null,null,null,null,0,0,null,0,0,0,0,0,0,1,1,0,0,0,0,1,0,1,0,0,0,0,0,0,0,0,0,0,0,0,0,0,0,1,0,0,0,0,0,0,0,0,0]
[422,"Caniotic (Blue Grass Animal Products)","Y",null,1,null,null,null,null,null,null,null,null,null,null,null,null,null,null,null,1,null,null,null,null,null,null,null,null,null,null,null,null,null,null,null,null,null,null,null,null,null,null,1]
[2319,"Capital One Spark Business Card","Y",null,null,null,null,null,null,null,null,null,1]
[4325,"Cardconnect","Y",null,null,null,null,null,null,null,null,null,1]
[2835,"Cardinal Gates Inc.","Y",null,null,null,null,null,null,null,null,null,null,null,null,null,null,null,null,null,1,null,null,null,null,null,null,null,null,null,null,null,null,null,null,null,1]
[3643,"Cardinal Pet Care","Y",null,null,null,null,null,null,null,0,0,null,null,0,0,0,0,0,1,1,0,0,1,null,null,null,1,null,null,0,null,0,0,0,null,0,null,0,0,0,0,1,1,1,0,1,null,1,0,0,0,0]
[1310,"Cargill ","Y",null,1,null,null,null,null,null,null,null,null,null,null,null,null,null,null,null,1,null,null,null,null,null,null,1,1]
[329,"Cargill/Regenasure Glucosamine","Y",null,1,null,null,null,null,null,null,null,1,null,null,null,null,null,1,1,1,null,null,null,null,1,null,null,null,null,null,null,null,null,null,null,null,null,null,null,null,null,null,1]
[3345,"Carlson Pet Products","Y",null,null,null,null,null,null,null,0,0,null,0,0,0,0,0,0,1,1,0,0,0,0,0,0,0,0,0,0,0,0,0,0,1,1,1,0,1,0,0,0,0,0,0,0,0,0,0,0,0,0]
[911,"Carna4 Hand Crafted Pet Food ","Y",null,1,null,null,null,null,null,null,null,null,null,null,null,null,null,null,1,1,null,null,null,null,1,null,1]
[4101,"Carolina Pet Company LLC","Y",null,null,null,null,null,null,null,null,null,null,null,null,null,null,null,null,1,1,null,1,1,null,null,1,null,null,1,null,null,null,null,null,1,null,null,1]
[247,"Carolina Prime Pet Inc. ","Y",null,1,null,null,null,null,null,0,0,null,0,0,0,0,0,0,0,1,0,0,0,0,0,0,1,null,0,null,0,0,0,0,null,0,0,null,0,0,0,0,0,0,0,0,0,0,0,0,0,0]
[2825,"Carriagehouse Enterprises","Y",null,null,null,null,null,null,1,null,null,null,null,null,null,1]
[716,"CARU Pet Food Company ","Y",null,1,null,null,null,null,null,0,0,null,0,0,0,0,0,0,1,1,0,0,0,0,1,0,1,0,0,0,0,0,0,0,0,0,0,0,0,0,0,0,0,0,0,0,0,0,0,0,0,0]
[3361,"Castor & Pollux","Y",null,null,null,null,null,null,null,null,null,null,null,null,null,null,null,null,1,1,null,null,null,null,1,null,1]
[2773,"Cat Dancer Products Inc.","Y",null,null,null,null,null,null,null,0,0,null,0,0,0,0,0,0,1,0,0,0,0,0,0,0,null,0,1,0,0,1,0,0,0,0,0,0,0,0,0,0,0,0,0,0,0,0,0,0,0,0]
[1608,"CAT1st Corp.","Y",null,null,null,null,null,null,null,null,null,null,null,null,null,null,null,null,1,null,null,null,1,null,null,1,null,null,null,null,null,1,null,null,1,null,1]
[2605,"Catboutique.net ","Y",null,null,null,null,null,null,null,null,null,null,null,null,null,null,null,null,1,null,null,null,null,null,null,null,null,null,1,null,null,null,null,null,1,null,null,null,null,null,null,null,null,null,1]
[2969,"Cats Rule Dogs Rock","Y",null,null,null,null,null,null,null,0,0,0,1,0,0,0,0,0,1,1,0,0,0,0,0,1,null,0,1,0,null,null,null,0,1,0,0,null,0,0,1,0,0,0]
[4016,"Cedar Hill Birds (4017)","Y",null,null,null,1,null,null,null,null,1,null,null,null,null,1]
[357,"CedarCide","Y",null,1,null,null,null,null,null,null,null,null,null,null,null,null,null,1,1,1,null,null,null,null,null,null,null,null,null,null,null,null,null,null,null,null,null,null,null,null,null,null,null,1,1,1]
[3254,"Central Garden & Pet","Y",null,null,null,null,null,null,null,0,0,null,null,1,1,1,1,1,1,1,1,null,1,null,1,null,1,1,1,null,1,1,1,1,1,1,1,1,1,null,null,1,1,1,1,1,1,1,1,1,1,0]
[4145,"Central Pet Distribution ","Y",null,null,null,null,null,null,null,0,1,null,0,1,1,1,1,1,1,1,1,1,1,1,1,1,1,1,1,1,1,1,1,1,1,1,1,1,1,1,1,1,1,1,1,1,1,1,1,1,1,0]
[4712,"Chala Group Inc","Y",null,null,1,null,null,null,null,null,null,null,1]
[1221,"Champion Petfoods ","Y",null,1,null,null,null,null,null,0,0,null,0,0,0,0,0,0,1,1,0,0,0,0,1,0,1,0,0,0,0,0,0,0,0,0,0,0,0,0,0,0,0,0,0,0,0,0,0,0,0,0]
[3272,"Changzhou Jinxu Special Lighting Technology","Y",null,null,null,null,null,null,null,null,null,null,null,null,1]
[719,"Charlee Bear Products","Y",null,1,null,null,null,null,null,null,null,null,null,null,null,null,null,null,null,1,null,null,null,null,null,null,1]
[2536,"Charming Pet Products ","Y",null,null,null,null,null,null,null,0,0,null,0,0,0,0,0,0,0,1,0,0,null,0,0,0,0,0,1,0,0,0,0,0,0,0,0,0,0,0,0,0,0,0,0,0,0,0,0,0,0,0]
[3569,"Chengdu Pailebi Trading Company Ltd","Y",null,null,null,null,null,null,null,null,null,null,1]
[5157,"Chewish Pet Toys","Y",null,null,1,null,null,null,null,null,null,null,null,null,null,null,null,null,1,1,null,null,null,null,null,null,null,null,1,null,null,1]
[1173,"Chicken Soup for the Soul Pet Food","Y",null,null,null,null,null,null,null,0,0,null,0,0,0,0,0,0,1,1,0,0,0,0,1,0,1,0,0,0,0,0,0,0,0,0,0,0,0,0,0,0,0,0,0,0,0,0,0,0,0,0]
[3600,"ChickenGuard","Y",null,null,null,null,null,null,null,null,null,null,null,null,null,1]
[4628,"Chilly Dog ","Y",null,null,null,null,null,null,null,0,0,null,0,0,0,0,0,0,null,1,0,1,null,0,0,0,0,0,1,0,0,0,0,0,0,0,0,0,0,0,0,0,0,0,0,0,0,0,0,0,0,0]
[3318,"Cho & Kang","Y",null,null,null,null,null,null,null,null,null,null,null,null,null,null,null,null,1,1,null,null,null,null,1,null,1,null,null,null,null,null,null,null,null,null,null,null,null,null,null,null,1]
[981,"Chona Shears by C & J's Sharp Edge","Y",null,null,null,null,1,null,null,null,null,1,null,null,null,null,null,null,null,1,null,null,null,null,null,null,null,null,null,null,null,null,null,null,null,null,null,null,null,null,null,null,null,null,1]
[2776,"Classic Brands, LLC","Y",null,null,null,null,null,null,null,null,null,null,null,null,null,1]
[3218,"Claudia's Canine Bakery","Y",null,null,null,null,null,null,null,null,null,null,null,null,null,null,null,null,null,1,null,null,null,null,null,null,1]
[2818,"CleanTools Inc.","Y",null,null,null,null,null,null,1,null,null,null,null,null,null,null,null,null,null,null,null,null,null,null,null,null,null,null,null,null,null,null,null,null,null,null,null,null,null,null,null,null,null,null,1]
[1432,"Clear Conscience Pet","Y",null,1,null,null,null,null,null,null,null,null,null,null,null,null,null,null,null,1,null,null,null,null,null,null,1,null,null,null,null,null,null,null,null,null,null,null,null,null,null,null,1]
[4300,"ClearBags","Y",null,null,null,null,null,null,null,null,null,1]
[2714,"CleverPet","Y",null,null,null,null,null,null,1,null,null,null,null,null,null,null,null,null,null,1,null,null,null,null,null,1,null,null,1,null,null,null,null,null,null,null,null,null,null,null,null,null,null,null,null,null,null,null,null,null,1]
[1929,"Clifford W. Estes Co., Inc.","Y",null,null,null,null,null,null,null,0,0,0,0,1,1,0,1,0,0,0,0,0,0,0,0,0,0,0,0,0,0,0,0,0,0,0,0,0,0,0,0,0,0,0,0,0,0,0,0,0,0,0]
[4019,"Coast Tropicals (4018)","Y",null,null,null,1,null,null,null,null,1,null,null,1]
[4039,"Coastal Pet Products","Y",null,null,null,null,null,null,null,0,0,null,0,0,null,0,null,1,1,1,0,0,1,1,0,1,null,0,1,0,1,1,0,1,0,0,1,1,0,0,null,0,null,0,1,0,0,0,1,1,0,0]
[4128,"Cobalt Aquatics","Y",null,null,null,null,null,null,null,0,0,null,0,1,0,0,0,0,0,0,0,0,0,0,0,0,0,0,0,0,0,0,0,0,0,0,0,0,0,0,0,0,0,0,0,0,0,0,0,0,0,0]
[3622,"Combi USA","Y",null,null,null,null,null,null,null,null,null,null,null,null,null,null,null,null,null,1,null,1,null,null,null,null,null,null,null,null,null,null,null,null,null,null,1,null,null,null,null,null,null,null,1]
[3419,"Comercio e Industria Matsuda Importadora e Export","Y",null,null,null,null,null,null,null,null,null,null,null,null,null,null,null,null,1,1,null,null,null,null,1,null,1,null,null,null,null,null,null,null,null,null,null,null,null,null,null,null,1]
[3254,"Comfort Zone","Y",null,null,null,null,null,null,null,null,null,null,null,null,null,null,null,null,1,1,null,null,1,null,null,null,null,null,null,null,null,null,null,null,null,null,null,null,null,null,null,null,1,null,null,null,null,null,null,null,1]
[1075,"ComfortGroom","Y",null,null,null,null,null,null,null,null,null,1,null,null,null,null,null,null,1,1,null,null,null,null,null,null,null,null,null,null,null,null,null,null,null,null,null,null,null,null,null,null,null,null,1]
[4501,"Comfy n' Easy","Y",null,null,null,null,null,null,null,null,null,1,null,null,null,null,null,null,null,1,null,null,null,null,null,null,null,null,null,null,null,null,null,null,null,null,null,null,null,null,null,null,null,null,1]
[3207,"Command Pet - A division of KidCo","Y",null,null,null,null,null,null,null,null,null,null,null,null,null,null,null,null,null,1,null,null,null,null,null,null,null,null,null,null,null,null,null,null,null,1]
[4813,"Companion Pet Products","Y",null,null,1,null,null,null,null,null,null,null,null,null,null,null,null,null,1,1,null,null,null,null,1,null,1,null,null,null,null,null,null,null,null,null,null,null,null,null,null,null,1]
[2155,"Company of Animals (The)","Y",null,null,null,null,null,null,null,0,0,null,0,0,0,0,0,0,1,1,0,0,1,0,0,1,1,0,1,0,0,0,0,0,0,0,0,1,0,0,0,0,0,0,0,0,0,0,0,0,1,0]
[1610,"Complete Design & Packaging","Y",null,null,null,null,null,null,null,null,null,1]
[3381,"Comp-Ware Systems, Inc. ","Y",null,null,null,null,null,null,null,null,null,1]
[1061,"Conair Pro Pet","Y",null,null,null,null,null,null,null,0,0,null,0,0,0,0,0,1,1,1,0,0,1,0,0,0,0,0,0,0,0,0,0,0,0,0,0,0,0,0,0,0,0,0,1,1,0,0,0,0,0,0]
[709,"COOL PET Holistic","Y",null,1,null,null,null,null,null,null,null,null,null,null,null,1,null,1,1,1,null,null,null,null,null,null,null,null,null,null,null,null,null,null,null,null,null,null,null,null,null,null,1]
[242,"CoolAid Animal Cooling and Recovery","Y",null,1,null,null,null,null,null,null,null,null,null,null,null,null,null,1,null,1,null,1,null,null,null,null,null,null,null,null,null,null,null,null,null,null,null,null,null,null,null,null,1]
[4109,"Cooler Dog by Maranda Ent","Y",null,null,null,null,null,null,null,null,null,null,null,null,null,null,null,null,null,1,null,1,null,null,null,null,null,null,null,null,null,null,null,null,null,null,null,null,null,null,null,null,1]
[2523,"Co-Pack Inc.","Y",null,null,null,null,null,null,1,null,null,1]
[3254,"Coralife","Y",null,null,null,null,null,null,null,null,null,null,null,1]
[461,"Corky's Reflective Wear","Y",null,null,null,null,1,null,null,null,null,null,null,null,null,null,null,null,null,1,null,1]
[2815,"Cotton's Cafe","Y",null,null,null,null,null,null,1,null,null,null,null,null,null,null,null,null,null,1,null,null,null,null,null,null,1]
[626,"CountryPet Naturals","Y",null,1,null,null,null,null,null,null,null,null,null,null,null,null,null,null,1,1,null,null,null,null,1,null,1]
[3369,"Coveris","Y",null,null,null,null,null,null,null,null,null,1]
[2572,"Creative Pet Group LLC","Y",null,null,null,null,null,null,null,null,null,null,null,null,null,null,null,null,1,1,null,null,null,null,null,1,null,null,1,null,1,1,null,null,1,null,null,null,null,null,null,null,null,null,null,1,1,1,1,1]
[4820,"Creature Comforts","Y",null,null,1,null,null,null,null,null,null,null,1,null,null,null,null,null,1,1,null,null,null,null,null,1,1,null,1]
[4118,"CROCI spa","Y",null,null,null,null,null,null,null,null,null,null,null,1,1,1,1,null,null,1,null,1,1,1,1,1,1,1,1,null,1,1,1,null,1,1,1,1,1,1,1,1,1,1,1,1,null,null,1,1,1]
[1247,"Crumps' Naturals","Y",null,1,null,null,null,null,null,0,0,null,0,0,0,0,0,0,1,1,0,0,0,0,0,0,1,0,0,0,0,0,0,0,0,0,0,0,0,0,0,0,0,0,0,0,0,0,0,0,0,0]
[762,"Crystal Works","Y",null,null,null,null,1,null,null,null,null,null,1]
[2730,"Cuddle Clones LLC","Y",null,null,null,null,null,null,1,null,null,null,1,null,null,null,null,null,null,1,null,1,1]
[3181,"C-United Group Corp","Y",null,null,null,null,null,null,null,null,null,1,null,null,null,null,null,null,1,1,null,1,null,null,null,null,null,null,1,null,null,null,null,null,1,null,1]
[2921,"Curtis Wagner Plastics Corp","Y",null,null,null,null,null,null,null,null,null,null,null,null,null,null,null,null,1,1,null,null,null,null,null,1,null,null,null,null,null,null,null,null,null,null,null,null,null,null,1]
[4618,"Cycle Dog-Earth Friendly Pet Co. ","Y",null,null,null,null,null,null,null,0,0,null,0,0,0,0,0,0,0,1,0,null,1,0,0,1,1,0,1,0,0,0,0,0,1,0,0,0,0,0,0,0,0,0,0,1,0,0,0,1,0,0]
[3105,"D & D Commodities Ltd.","Y",null,null,null,null,null,null,null,null,null,null,null,null,null,1,1]
[3017,"D.T. Systems","Y",null,null,null,null,null,null,null,0,0,null,0,0,0,0,0,0,0,1,0,0,1,0,0,0,0,0,0,0,0,0,0,1,0,0,0,0,0,0,0,0,0,0,0,0,0,0,0,0,1,1]
[4022,"Dainichi Fish Food (4023)","Y",null,null,null,1,null,null,null,null,null,null,null,1]
[2607,"Dale Edgar Brand","Y",null,null,null,null,null,null,null,null,null,null,null,null,null,null,null,null,null,1,null,null,null,null,null,null,1,null,null,null,null,null,null,null,null,null,null,null,null,null,null,null,1]
[3055,"Dallas Manufacturing Co. ","Y",null,null,null,null,null,null,null,0,0,null,0,0,0,0,0,0,1,1,0,null,null,0,0,0,null,0,null,0,null,null,null,0,1,0,null,null,0,0,0,0,0,0,0,0,0,0,null,0,0,0]
[4260,"Darford ","Y",null,null,null,null,null,null,null,0,0,null,0,0,0,0,0,0,0,1,0,0,0,0,0,0,1,0,0,0,0,0,0,0,0,0,0,0,0,0,0,0,1,0,0,0,0,0,0,0,0,0]
[1211,"Dave's Pet Food ","Y",null,1,null,null,null,null,null,0,0,null,0,0,null,null,0,0,1,1,0,0,0,0,1,0,0,0,0,0,0,0,0,0,0,0,0,0,0,0,0,0,0,0,0,0,0,0,0,0,0,0]
[4418,"Day to Day Imports, Inc.","Y",null,null,null,null,null,null,null,null,null,null,null,null,null,null,null,null,1,1,null,null,1,null,null,1,1,null,null,null,null,null,1,null,1,1,1,1,1,null,null,1,1,null,1,1,1,0,0,1,1,0]
[3127,"Dazzling Paws Jewelry LLC","Y",null,null,null,null,null,null,null,null,null,null,1]
[2210,"Delca Corp","Y",null,null,null,null,null,null,null,null,null,null,null,null,null,null,null,null,null,1,null,null,null,null,null,null,1,null,1]
[2463,"Dexas International","Y",null,null,null,null,null,null,null,0,0,null,0,0,0,0,0,0,0,1,0,0,0,0,0,1,0,0,0,0,0,0,0,0,0,0,0,0,0,0,0,0,0,0,1,0,0,0,0,0,0,0]
[717,"Dharma Dog Karma Cat","Y",null,1,null,null,null,null,null,null,null,null,null,null,null,null,null,null,1,1,null,null,null,null,null,null,null,null,1,null,null,null,null,null,1]
[3335,"Diamond Pet Foods","Y",null,null,null,null,null,null,null,null,null,null,null,null,null,null,null,null,1,1,null,null,null,null,1]
[3535,"Dingo","Y",null,null,null,null,null,null,null,null,null,null,null,null,null,null,null,null,null,1,null,null,null,null,null,null,1,1,null,null,null,null,null,null,null,null,null,null,null,null,null,1]
[860,"Direct Animal Products","Y",null,null,null,null,1,null,null,null,null,1,null,null,null,null,null,null,1,1,null,null,null,null,null,null,null,null,null,null,null,null,null,null,null,1,1,null,1,null,null,null,null,null,1]
[3254,"DMC (Dallas Manufacturing)","Y",null,null,null,null,null,null,null,null,null,null,null,null,null,null,null,null,null,null,null,null,null,null,null,null,null,null,null,null,null,null,null,null,1]
[226,"Do Only Good Certified Pet Nutrition LLC","Y",null,1,null,null,null,null,null,null,null,null,null,null,null,null,null,null,null,1,null,null,null,null,1]
[4700,"Dog Collar World","Y",null,null,1,null,null,null,null,null,null,null,null,null,null,null,null,null,null,1,null,null,1]
[4844,"Dog Diggin Designs","Y",null,null,1,null,null,null,null,null,null,null,null,null,null,null,null,null,null,1,null,null,null,null,null,null,null,null,1,null,null,null,null,null,1]
[3204,"Dog Ear Lifter","Y",null,null,null,null,null,null,null,null,null,null,null,null,null,null,null,null,null,1,null,null,1,null,null,null,null,null,null,null,null,null,null,null,null,null,null,null,null,null,null,null,1]
[2219,"Dog Gone Smart Pet Products ","Y",null,null,null,null,null,null,null,0,0,null,0,0,0,0,0,null,1,1,0,1,1,0,0,0,0,0,0,0,0,0,0,0,1,0,0,0,0,0,1,0,0,0,1,0,0,0,0,0,0,0]
[4613,"Dog Is Good","Y",null,null,1,null,null,null,null,0,0,null,1,0,0,0,0,0,0,1,0,null,1,1,0,1,0,0,null,0,0,0,0,0,0,0,0,0,0,0,0,0,0,0,0,0,0,0,0,1,0,0]
[2469,"Dog Rocks ","Y",null,null,null,null,null,null,null,0,0,null,0,0,0,0,0,0,0,1,0,0,0,0,0,0,0,0,0,0,0,0,0,0,0,0,0,0,0,0,0,0,1,0,0,0,1,0,0,0,0,0]
[4746,"Dog Speak ","Y",null,null,1,null,null,null,null,0,0,null,1,0,0,0,0,0,0,0,0,0,0,0,0,0,0,0,0,0,0,0,0,0,0,0,0,0,0,0,0,0,0,0,0,0,0,0,0,0,0,0]
[5042,"Doggie Design","Y",null,null,1,null,null,null,null,0,0,null,null,0,0,0,0,0,0,1,0,1,1,0,0,0,null,0,null,0,0,0,0,0,1,0,1,0,0,0,0,0,0,0,0,0,0,0,0,0,0,0]
[4557,"Doggie Walk Bags, Inc.","Y",null,null,null,null,null,null,null,null,null,null,null,null,null,null,null,null,1,1,null,null,null,null,null,null,null,null,null,null,null,null,null,null,null,null,null,null,null,null,null,null,null,null,null,null,null,null,null,1]
[4654,"Doggles","Y",null,null,null,null,null,null,null,0,0,null,1,0,0,0,0,0,1,1,0,1,1,0,0,1,0,0,1,0,null,0,0,0,null,0,1,0,0,0,0,0,1,0,0,0,0,0,0,0,0,0]
[2721,"Doggy Threads Manufacturing","Y",null,null,null,null,null,null,1,null,null,null,null,null,null,null,null,null,null,1,null,1]
[4959,"Dogla Inc","Y",null,null,1,null,null,null,null,null,null,null,null,null,null,null,null,null,null,1,null,null,1]
[4661,"Dogline ","Y",null,null,1,null,null,null,null,0,0,null,0,0,0,0,0,0,null,1,0,0,1,0,0,0,0,0,1,0,0,0,0,0,0,0,0,1,0,0,0,0,1,0,0,0,0,0,0,0,0,0]
[1317,"Dogs Love Kale/Dogs Love Snapeas","Y",null,1,null,null,null,null,null,null,null,null,null,null,null,null,null,null,null,1,null,null,null,null,null,null,1]
[3104,"Dogtra","Y",null,null,null,null,null,null,null,null,null,null,null,null,null,null,null,null,null,1,null,null,1,null,null,null,null,null,null,null,null,null,null,1,null,null,null,null,null,null,null,null,null,null,null,null,null,null,null,null,1,1]
[4318,"Do-It Corporation","Y",null,null,null,null,null,null,null,null,null,1]
[3274,"Dongguan Colour Pack Printing Co. Ltd.","Y",null,null,null,null,null,null,null,null,null,null,null,null,null,null,null,null,1,null,null,null,null,null,null,null,null,null,1,null,null,1,1]
[2717,"Don't 4 Get About Me","Y",null,null,null,null,null,null,1,null,null,null,null,null,null,null,null,null,null,1,null,null,null,null,null,null,1,null,null,null,null,null,null,null,null,null,null,null,null,null,null,null,null,null,null,null,null,null,null,1]
[3320,"Doog","Y",null,null,null,null,null,null,null,null,null,null,null,null,null,null,null,null,null,1,null,null,1,null,null,1,null,null,1,null,null,null,null,null,null,null,null,null,null,null,null,null,null,null,null,null,null,1,null,1]
[1606,"Dots & Daisies By Delca","Y",null,null,null,null,null,null,null,null,null,null,null,null,null,null,null,null,null,1,null,null,null,null,null,null,1,null,1]
[4437,"DoyenWorld","Y",null,null,null,null,null,null,null,null,null,null,null,null,null,null,null,null,1,1,null,null,null,null,null,null,null,null,1]
[4424,"Dozers Dental Chews","Y",null,null,null,null,null,null,null,null,null,null,null,null,null,null,null,null,null,1,null,null,null,null,null,null,1,null,null,null,null,null,null,null,null,null,null,null,null,null,null,1]
[916,"Dr. Becker's Bites","Y",null,1,null,null,null,null,null,null,null,null,null,null,null,null,null,null,1,1,null,null,null,null,null,null,1,null,null,null,null,null,null,null,null,null,null,null,null,null,null,null,1]
[2805,"Dr. Earth, Inc","Y",null,null,null,null,null,null,null,null,null,null,1,null,null,null,null,null,null,1]
[4054,"Dr. Elsey Precious Cat","Y",null,null,null,null,null,null,null,null,null,null,null,null,null,null,null,null,1,null,null,null,null,null,1,null,null,null,null,null,null,null,null,null,null,null,null,null,null,1]
[4469,"Drinkwell","Y",null,null,null,null,null,null,null,null,null,null,null,null,null,null,null,null,1,1,null,null,null,null,null,1]
[3854,"DrTim’s Aquatics, LLC","Y",null,null,null,null,null,null,null,null,null,null,null,1]
[3820,"D-Trade LLC","Y",null,null,null,null,null,null,null,null,null,null,null,null,null,null,null,null,null,1,null,null,null,null,null,null,null,null,null,null,null,null,null,null,null,null,null,null,1]
[1510,"DuckyWorld Products Inc.","Y",null,null,null,null,null,null,null,0,0,null,0,0,0,0,0,0,1,0,0,0,0,0,0,0,null,0,1,0,1,0,0,0,0,0,0,0,0,0,0,0,0,0,0,0,0,0,0,0,0,0]
[258,"Durkha Dog Chew","Y",null,null,null,null,1,null,null,null,null,null,null,null,null,null,null,null,null,1,null,null,null,null,null,null,1]
[1838,"Durvet, Inc.","Y",null,null,null,null,null,null,null,null,null,null,null,1,null,null,null,1,1,1,null,null,null,null,null,null,1,null,null,null,null,null,null,null,null,null,null,null,null,null,null,null,1,null,null,1,null,null,null,1]
[4703,"E & B Couture","Y",null,null,1,null,null,null,null,null,null,null,null,null,null,null,null,null,null,1,null,null,1]
[1809,"E & S Pets","Y",null,null,null,null,null,null,null,0,0,0,1,0,0,null,null,null,null,null,0,0,0,0,0,0,0,0,0,0,0,0,0,0,0,0,0,0,0,0,0,0,0,0,0]
[2109,"Eagle Flexible Packaging","Y",null,null,null,null,null,null,null,null,null,1]
[723,"Earth Animal Ventures","Y",null,1,null,null,null,null,null,null,null,null,null,null,null,null,null,null,1,1,null,null,null,null,1,null,1,null,1,null,null,null,null,null,null,null,null,null,null,null,null,1,1,1,null,1,null,0,0,0,0,0]
[507,"Earth Friendly Products","Y",null,1,null,null,null,null,null,null,null,null,null,null,null,null,null,null,1,1,null,null,null,null,null,null,null,null,null,null,null,null,null,null,null,null,null,null,null,null,null,null,null,null,null,1,1,1]
[1839,"Earth Rated ","Y",null,null,null,null,null,null,null,0,0,null,0,0,0,0,0,0,0,1,0,0,0,0,0,0,0,0,0,0,0,0,0,0,0,0,0,0,0,0,0,0,0,0,0,0,0,0,0,1,0,0]
[4461,"Earthbath /Sheapet","Y",null,null,null,null,null,null,null,0,0,null,0,0,0,0,0,0,1,1,0,0,0,0,0,0,0,0,0,0,0,0,0,0,0,0,0,0,0,0,0,0,1,0,0,1,0,1,0,0,0,0]
[2804,"ECLECTIC ARRAY","Y",null,null,null,null,null,null,null,null,null,null,null,null,null,null,null,null,null,1,null,null,1]
[1111,"Eco Paper Products Mfg. Sdn Bhd","Y",null,1,null,null,null,null,null,null,null,null,null,null,null,null,1,null,1,null,null,null,null,null,null,null,null,null,null,null,null,null,null,null,null,null,null,null,null,1,1]
[3509,"E-Collar Technologies","Y",null,null,null,null,null,null,null,0,0,null,0,0,0,0,0,null,0,1,0,0,1,0,0,0,0,0,0,0,0,0,0,1,0,0,0,0,0,0,0,0,null,0,0,0,0,0,0,0,1,0]
[2108,"EcoPett","Y",null,null,null,null,null,null,null,null,null,null,null,null,null,null,1,1,1,null,null,null,null,null,null,null,null,null,null,null,null,null,null,null,null,null,null,null,null,1]
[1021,"Einstein Pets","Y",null,1,null,null,null,null,null,null,null,null,null,null,null,null,null,null,null,1,null,null,null,null,null,null,1]
[3419,"Ekopet & Petbrilho","Y",null,null,null,null,null,null,null,null,null,null,null,null,null,null,null,null,null,1,null,null,null,null,null,null,1,null,null,null,null,null,null,null,null,null,null,null,null,null,null,null,null,null,null,1,1]
[2777,"ElastiTag - Bedford Industries","Y",null,null,null,null,null,null,null,null,null,1]
[3823,"Elive LLC ","Y",null,null,null,null,null,null,null,0,0,null,0,1,0,0,0,0,0,1,0,0,1,0,0,0,1,0,1,0,0,0,0,0,0,0,0,0,0,0,0,0,0,0,0,0,0,0,0,0,1,0]
[2922,"Ello Pet Supply","Y",null,null,null,null,null,null,null,null,1,null,null,null,null,null,null,null,1,1,null,1,1,null,null,null,1,null,1,null,null,null,null,null,null,null,null,null,null,null,null,null,1,1,null,1,1,1]
[4942,"Elmo's Closet ","Y",null,null,1,null,null,null,null,0,0,null,0,0,0,0,0,0,1,1,0,0,1,0,0,0,0,0,0,0,0,0,0,0,0,0,0,0,0,0,0,0,0,0,0,0,0,0,0,0,0,0]
[1347,"Emerald Pet Products ","Y",null,1,null,null,null,null,null,0,0,null,0,0,0,0,0,0,1,1,0,0,0,0,0,0,1,0,1,0,0,0,0,0,0,0,0,0,0,0,0,0,0,0,0,0,0,0,0,0,0,0]
[1523,"Emmerson Packaging (PolyCello)","Y",null,null,null,null,null,null,null,null,null,1,null,null,null,null,null,null,null,null,null,null,null,null,1]
[4925,"Enchante Accessories/ Precious Tails","Y",null,null,1,null,null,null,null,null,null,null,null,null,null,null,null,null,null,1,null,null,null,null,null,null,null,null,1,null,null,null,null,null,1,null,1,1]
[2812,"Endexx Corporation","Y",null,null,null,null,null,null,1]
[4339,"Endura Flap Pet Doors","Y",null,null,null,null,null,null,null,null,null,null,null,null,null,null,null,null,1,1,null,null,null,null,null,null,null,null,null,null,null,null,null,null,null,1]
[4617,"Enjoy It LLC","Y",null,null,1,null,null,null,null,null,null,null,1,null,null,null,null,null,null,null,null,null,null,null,null,null,null,null,null,null,null,null,null,null,null,null,null,null,null,null,null,null,null,null,null,null,null,null,null,1]
[2725,"EntoBento","Y",null,null,null,null,null,null,1,null,null,null,null,null,null,null,null,null,null,1,null,null,null,null,null,null,1]
[863,"Envirogroom Professional Pet Products","Y",null,null,null,null,1,null,null,null,null,1,null,null,null,null,null,null,1,1,null,null,null,null,null,null,null,null,null,null,null,null,null,null,null,null,null,null,null,null,null,null,1,null,null,1,1]
[977,"E-One (Xiamen) Tradeing Co Ltd","Y",null,null,null,null,1,null,null,null,null,null,1,null,null,null,null,null,null,null,null,null,null,null,null,null,null,null,null,null,null,null,null,null,null,null,null,null,null,null,null,null,null,null,1]
[2961,"EQyss Grooming Products Inc.","Y",null,null,null,null,null,null,null,null,null,null,null,null,null,null,null,null,1,1,null,null,null,null,null,null,null,null,null,null,null,null,null,null,null,null,null,null,null,null,null,null,1,null,null,1,0,0,0,0,0,0]
[545,"Espree Animal Products","Y",null,1,null,null,null,null,null,0,0,null,0,0,0,0,0,1,1,1,0,0,0,0,0,0,0,0,0,0,0,0,0,0,0,0,0,0,0,0,0,0,1,1,0,1,1,1,0,0,0,0]
[4255,"Ethical Products ","Y",null,null,null,null,null,null,null,0,0,null,0,null,0,null,null,0,1,1,0,1,null,0,0,1,1,null,1,0,1,1,0,null,1,0,1,null,0,0,1,0,0,0,1,0,0,0,1,1,0,0]
[1355,"Eukanuba Dog Food","Y",null,1,null,null,null,null,null,null,null,null,null,null,null,null,null,null,null,1,null,null,null,null,1]
[1579,"Evanger's Dog & Cat Food Co. ","Y",null,null,null,null,null,null,null,0,0,null,0,0,0,0,1,0,1,1,0,0,0,0,1,0,1,0,0,0,0,0,0,0,0,0,0,0,0,0,0,0,0,0,0,0,0,0,0,0,0,0]
[563,"Evolution Shears","Y",null,null,null,null,1,null,null,null,null,1,null,null,null,null,null,null,1,1,null,null,null,null,null,null,null,null,null,null,null,null,null,null,null,null,null,null,null,null,null,null,null,null,1]
[3535,"Excel","Y",null,null,null,null,null,null,null,null,null,null,1,null,null,null,null,null,1,1,null,null,null,null,null,null,null,null,null,null,null,null,null,null,null,null,null,null,null,null,null,1,1,1]
[2957,"Exclusively Pet/General Pet","Y",null,null,null,null,null,null,null,0,0,0,0,0,0,0,0,0,0,1,0,0,0,0,0,0,1,0,0,0,0,0,0,0,0,0,0,0,0,0,0,0,0,0,0]
[4829,"Eye Envy, Inc.","Y",null,null,1,null,null,null,null,null,null,null,null,null,null,null,null,null,1,1,null,null,null,null,null,null,null,null,null,null,null,null,null,null,null,null,null,null,null,null,null,null,1,null,null,1]
[5028,"EZ Living Home","Y",null,null,1,null,null,null,null,null,null,null,null,null,null,null,null,null,1,1,null,null,null,null,null,null,null,null,null,null,null,null,null,null,1]
[2841,"EzyDog ","Y",null,null,null,null,null,null,null,0,0,null,0,0,0,0,0,0,0,1,0,1,1,0,0,1,0,0,1,0,0,0,0,0,0,0,0,1,0,0,0,0,0,0,0,0,0,0,0,1,0,0]
[3618,"F.M. Brown's","Y",null,null,null,null,null,null,null,null,null,null,null,1,1,1,1,1]
[4834,"Fab Dog Inc. ","Y",null,null,1,null,null,null,null,0,0,null,0,0,0,0,0,0,1,1,0,1,1,0,0,null,0,0,1,0,0,0,0,0,null,0,0,0,0,0,0,0,0,0,0,null,0,0,0,0,0,0]
[1139,"Family Owned Spot Farms","Y",null,1,null,null,null,null,null,null,null,null,null,null,null,null,null,null,null,1,null,null,null,null,1,null,1]
[3819,"Fan Creations","Y",null,null,null,null,null,null,null,null,null,null,1]
[2715,"Farm Dog Naturals, LLC","Y",null,null,null,null,null,null,1,null,null,null,null,null,null,null,null,null,null,1,null,null,null,null,null,null,null,null,null,null,null,null,null,null,null,null,null,null,null,null,null,null,1,null,null,null,1]
[2520,"Farm Fresh Pet Foods","Y",null,null,null,null,null,null,1,null,null,null,null,null,null,null,null,null,null,1,null,null,null,null,null,null,1]
[1455,"Farmina Pet Food","Y",null,1,null,null,null,null,null,null,null,null,null,null,null,null,null,null,1,1,null,null,null,null,1]
[420,"Farmstand Supply","Y",null,1,null,null,null,null,null,null,null,null,null,null,null,1,null,null,null,1,null,null,1,null,null,null,1,null,1]
[3254,"Farnam","Y",null,null,null,null,null,null,null,null,null,null,null,null,null,null,null,1,1,1,null,null,1,null,null,null,null,null,null,null,null,null,null,null,null,null,null,null,null,null,null,1,1,1,null,1]
[1711,"FasTrax Solutions","Y",null,null,null,null,null,null,null,null,null,1]
[2806,"Ferplast Spa","Y",null,null,null,null,null,null,null,null,null,null,null,1,1,1,1,null,1,1,null,1,1,1,null,1,null,null,1,1,null,1,1,1,1,1,1,null,1,null,1,1,1,null,1,null,null,1,null,1]
[2573,"Fetch...For Pets! ","Y",null,null,null,null,null,null,null,0,0,1,0,1,null,0,1,0,1,1,0,1,null,0,0,0,1,0,1,0,0,0,0,0,null,0,0,0,0,0,0,1,0,0,0,1,1,0,1,1,0,0]
[3824,"Fetchers Doggie Pads by First Quality","Y",null,null,null,null,null,null,null,null,null,null,null,null,null,null,null,null,null,1,null,null,null,null,null,null,null,null,null,null,null,null,null,null,null,null,null,null,null,null,null,null,null,null,null,null,null,null,1]
[406,"Fibercore","Y",null,1,null,null,null,null,null,0,0,null,0,0,0,1,1,0,null,null,0,null,null,null,null,null,null,null,null,null,null,null,null,null,null,null,null,null,null,null,null,null,null,0,0,0,0,0,0,0,0,0]
[1928,"Fido Inc.","Y",null,null,null,null,null,null,null,0,0,null,0,0,0,0,0,0,null,1,0,0,0,0,0,0,1,0,1,0,0,0,0,0,0,0,0,0,0,0,0,0,0,0,0,0,0,0,0,0,0,0]
[617,"Fidobiotics ","Y",null,1,null,null,null,null,null,0,0,null,0,0,0,0,0,0,1,1,0,0,0,0,0,0,0,0,0,0,0,0,0,0,0,0,0,0,0,0,0,0,1,0,0,0,0,0,0,0,0,0]
[4827,"Finnegan's Standard Goods & Bella Bean Couture","Y",null,null,1,null,null,null,null,null,null,null,null,null,null,null,null,null,null,1,null,null,1,null,null,null,null,null,null,null,null,null,null,null,1]
[4224,"First Prize Pet Products","Y",null,null,null,null,null,null,null,null,null,null,null,null,1,1,1,null,1,1,null,null,null,null,null,1]
[639,"FirstMate Pet Foods","Y",null,1,null,null,null,null,null,null,null,null,null,null,null,null,null,null,1,1,null,null,null,null,1]
[1055,"Fish 4 Dogs","Y",null,1,null,null,null,null,null,null,null,null,null,null,null,null,null,null,1,1,null,null,null,null,1,null,1,null,null,null,null,null,null,null,null,null,null,null,null,null,null,null,1]
[3125,"Five Star Pet","Y",null,null,null,null,null,null,null,null,null,null,null,null,null,null,null,null,null,1,null,null,null,null,null,null,null,null,null,null,null,null,null,null,null,null,null,null,null,null,null,null,null,null,null,null,null,null,null,1]
[2974,"Fizzion","Y",null,null,null,null,null,null,null,null,null,null,null,null,null,null,null,null,1,1,null,null,null,null,null,null,null,null,null,null,null,null,null,null,null,null,null,null,null,null,null,null,null,null,null,null,1]
[2867,"Flexi North America LLC","Y",null,null,null,null,null,null,null,0,0,null,0,0,0,0,0,0,0,1,0,0,1,0,0,0,0,0,0,0,0,0,0,0,0,0,0,0,0,0,0,0,0,0,0,0,0,0,0,0,0,0]
[4322,"Flexrake Corp. ","Y",null,null,null,null,null,null,null,0,0,null,0,0,0,0,0,null,null,1,0,0,0,0,0,0,null,0,null,0,null,null,0,0,0,0,0,0,null,0,0,0,0,0,0,0,0,0,0,1,0,0]
[4127,"Flipper Cleaner","Y",null,null,null,null,null,null,null,null,null,null,null,1]
[4219,"Florida Marine Research","Y",null,null,null,null,null,null,null,null,null,null,null,1]
[2222,"Fluff & Tuff","Y",null,null,null,null,null,null,null,0,0,null,0,0,0,0,0,0,0,1,0,0,0,0,0,0,0,0,1,0,0,0,0,0,0,0,0,0,0,0,0,0,0,0,0,0,0,0,0,0,0,0]
[3506,"Foaber","Y",null,null,null,null,null,null,null,null,null,null,null,null,null,null,null,null,null,1,null,null,null,null,null,null,null,null,1]
[2705,"Folium Biosciences","Y",null,null,null,null,null,null,null,null,null,1,null,null,null,null,null,1,1,1,null,null,null,null,null,null,1,null,null,null,null,null,null,null,null,null,null,null,null,null,null,null,1]
[622,"Food Fur Life, LLC","Y",null,1,null,null,null,null,null,null,null,null,null,null,null,null,null,null,1,1,null,null,null,null,null,null,null,null,null,null,null,null,null,null,null,null,null,null,null,null,null,null,1]
[1811,"FoodScience Corporation","Y",null,null,null,null,null,null,null,null,null,null,null,null,null,null,null,null,1,1,0,0,0,0,0,0,1,0,0,0,0,0,0,0,0,0,0,0,0,0,0,0,1,0,0]
[2826,"Foppers Gourmet Pet Treat Bakery","Y",null,null,null,null,null,null,1,null,null,null,null,null,null,null,null,null,null,1,null,null,null,null,null,null,1]
[4602,"For Your Dogs Only/ BuddhaBag","Y",null,null,null,null,null,null,null,null,null,null,null,null,null,null,null,null,null,1,null,1,1,null,null,null,null,null,null,null,null,null,null,null,1]
[660,"Forever Stainless Steel ","Y",null,null,null,null,1,null,null,0,0,1,0,0,0,0,0,0,0,1,0,0,0,0,0,null,0,0,0,0,0,0,0,0,0,0,0,0,0,0,0,0,0,0,1,0,0,0,0,0,0,0]
[1306,"FORZA10USA","Y",null,1,null,null,null,null,null,null,null,null,null,null,null,null,null,null,1,1,null,null,null,null,1,null,1]
[4413,"FouFou Brands","Y",null,null,null,null,null,null,null,0,0,null,1,0,0,0,0,0,1,1,0,1,1,0,null,1,1,0,1,0,null,0,0,0,1,0,1,0,0,0,0,0,1,null,1,null,0,1,0,null,0,0]
[1680,"Found My Animal, LLC","Y",null,null,null,null,null,null,null,null,null,null,null,null,null,null,null,null,null,1,null,1,1,null,null,null,null,null,null,null,null,null,null,null,1]
[3254,"Four Paws","Y",null,null,null,null,null,null,null,null,null,null,null,null,null,null,null,null,1,1,null,null,1,null,null,null,null,null,null,null,1,1,1,1,1,1,1,1,1,null,null,null,1,1,1,1,1,1,1,1]
[3604,"Fourideal Tech. Ltd.","Y",null,null,null,null,null,null,null,null,null,null,null,null,null,null,null,null,null,1,null,null,1,null,null,null,null,null,null,null,null,null,null,null,null,null,null,null,null,null,null,null,null,null,null,null,null,null,null,null,1]
[2631,"Fowl Dog","Y",null,null,null,null,null,null,1,null,null,null,null,null,null,null,null,null,null,1,null,null,1,null,null,null,null,null,null,null,null,null,null,null,null,null,null,1]
[1074,"FreezeTag","Y",null,null,null,null,1,null,null,null,null,null,null,null,null,null,null,null,null,1,null,null,1]
[2926,"Freightquote","Y",null,null,null,null,null,null,null,null,null,1]
[4812,"Fringe Studio","Y",null,null,1,null,null,null,null,null,null,null,1]
[4469,"FroliCat","Y",null,null,null,null,null,null,null,null,null,null,null,null,null,null,null,null,1,null,null,null,null,null,null,null,null,null,1]
[1408,"From The Field LLC","Y",null,1,null,null,null,null,null,null,null,null,null,null,null,null,null,null,1,1,null,null,null,null,null,null,null,null,1,null,1]
[1539,"Fromm Family Foods","Y",null,null,null,null,null,null,null,0,0,null,0,0,0,0,0,0,1,1,0,0,0,0,1,0,1,0,0,0,0,0,0,0,0,0,0,0,0,0,0,0,0,0,0,0,0,0,0,0,0,0]
[1909,"Fruitables Pet Food","Y",null,null,null,null,null,null,null,0,0,null,0,0,0,0,0,0,null,1,0,0,0,0,null,0,1,0,0,0,0,0,0,0,0,0,0,0,0,0,0,0,1,0,0,0,0,0,0,0,0,0]
[1559,"FunDog Bandanas","Y",null,null,null,null,null,null,null,null,null,null,null,null,null,null,null,null,null,1,null,1]
[2977,"Fur Eternity","Y",null,null,null,null,null,null,null,null,null,null,1]
[3419,"Furacao Pet Brazil","Y",null,null,null,null,null,null,null,null,null,null,null,null,null,null,null,null,1,1,null,1,null,1,null,1,null,null,1,null,null,null,null,null,null,null,1,null,null,null,null,null,null,null,null,null,null,null,null,1,null,1]
[4429,"FurHaven Pet Products ","Y",null,null,null,null,null,null,null,0,0,null,0,0,0,0,0,0,1,1,0,0,1,0,0,0,0,0,1,0,0,1,1,0,1,1,1,1,0,0,0,0,0,0,0,0,0,0,0,0,0,0]
[4529,"Furtile Ground","Y",null,null,null,null,null,null,null,null,null,null,1]
[3266,"Fuzhou Weikai Pet Products Ltd","Y",null,null,null,null,null,null,null,null,null,null,null,null,null,null,null,null,null,1,null,1,1]
[4804,"FuzzYard","Y",null,null,1,null,null,null,null,null,null,null,null,null,null,null,null,null,1,1,null,1,1,null,null,1,null,null,1,null,null,1,null,null,1,null,null,null,null,null,null,null,1,null,1,1]
[4503,"G.O.A.T. Pet Products","Y",null,null,null,null,null,null,null,null,null,null,1,null,null,null,null,null,null,1,null,null,1,null,null,null,null,null,null,null,null,null,null,null,null,null,null,null,null,null,null,null,null,null,null,null,null,null,null,null,1]
[2325,"Gaia Enterprises, Inc.","Y",null,null,null,null,null,null,null,null,null,null,1,null,null,null,null,null,1,1]
[3827,"Galapagos Reptile Gear","Y",null,null,null,null,null,null,null,null,null,null,null,null,1,1]
[1879,"Gamma2","Y",null,null,null,null,null,null,null,0,0,null,0,0,null,1,0,1,1,1,0,0,0,0,0,1,0,0,0,0,0,0,0,0,0,0,0,0,0,0,0,0,0,0,0,0,0,0,0,0,0,0]
[4535,"Gardner Pet Group, Inc.","Y",null,null,null,null,null,null,null,null,null,1,null,null,null,1,null,null,1,1,null,null,null,null,null,1,null,null,null,null,null,null,null,null,null,null,1,null,null,null,1,null,null,null,null,null,null,null,1]
[775,"Geib Handmade Shears","Y",null,null,null,null,1,null,null,0,0,1,0,0,0,0,0,0,0,1,0,0,0,0,0,0,0,0,0,0,0,0,0,0,0,0,0,0,0,0,0,0,0,0,1,0,0,0,0,0,0,0]
[1666,"Gen7Pets","Y",null,null,null,null,null,null,null,0,0,null,0,0,0,0,0,0,1,1,0,0,0,0,0,0,0,0,0,0,0,0,0,0,1,0,1,1,1,0,0,0,0,1,0,0,0,0,0,0,0,0]
[2054,"General Distributing & Sales Co.","Y",null,null,null,null,null,null,null,null,null,null,null,null,null,null,null,null,1,1,null,null,1,null,null,null,null,null,null,null,null,null,null,null,null,null,null,null,null,null,null,1,1,1,null,1]
[2831,"Genesis Software Technologies","Y",null,null,null,null,null,null,1,null,null,1]
[4726,"Giftworks Plus ","Y",null,null,1,null,null,null,null,0,0,null,1,0,0,null,null,null,null,null,0,0,0,0,0,0,0,0,0,0,0,0,0,0,0,0,0,0,0,0,0,0,0,0,0,0,0,0,0,0,0,0]
[2620,"GivePet","Y",null,null,null,null,null,null,1,null,null,null,null,null,null,null,null,null,null,1,null,null,null,null,null,null,1]
[2638,"Glandex","Y",null,null,null,null,null,null,null,null,null,null,null,null,null,null,null,null,1,1,null,null,null,null,null,null,1,null,null,null,null,null,null,null,null,null,null,null,null,null,null,null,1]
[3035,"Global Pet Expo","Y",null,null,null,null,null,null,null,1]
[4735,"Glo-Marr Products","Y",null,null,1,null,null,null,null,0,0,null,0,0,0,0,null,0,1,1,0,0,0,0,0,0,0,0,0,0,0,0,0,0,0,0,0,0,0,0,0,0,1,1,0,1,0,0,0,0,0,0]
[3477,"Go Fresh Pet","Y",null,null,null,null,null,null,null,null,null,null,null,null,null,null,null,null,1,1,null,1,1,null,null,1,null,null,1,null,null,null,null,null,1,null,1]
[2912,"Go Green Environmental","Y",null,null,null,null,null,null,null,null,null,null,null,null,null,null,null,null,1,1,null,null,null,null,null,null,null,null,null,null,null,null,null,null,null,null,null,null,null,null,null,null,null,null,null,null,1]
[2655,"goDog","Y",null,null,null,null,null,null,null,null,null,null,null,null,null,null,null,null,null,1,null,null,null,null,null,null,null,null,1]
[3504,"GoFind Inc","Y",null,null,null,null,null,null,null,null,null,null,null,null,null,null,null,null,null,1,null,null,1,null,null,null,null,null,null,null,null,null,null,null,null,null,null,null,null,null,null,null,null,null,null,null,null,null,null,null,1,1]
[1731,"GoGo? Pet Products","Y",null,null,null,null,null,null,null,null,null,null,null,null,null,null,null,null,null,1,0,null,1,0,0,0,1,0,0,0,0,0,0,0,0,0,0,0,0,0,0,0,0,0,0,0,0,0,1]
[4423,"Gold Paw Series ","Y",null,null,null,null,null,null,null,0,0,null,0,0,0,0,0,0,1,1,0,1,1,0,0,0,0,0,0,0,0,0,0,0,0,0,0,0,0,0,0,0,0,0,0,0,0,0,0,0,0,0]
[3806,"Golden Mile Home Products Co., Ltd","Y",null,null,null,null,null,null,null,null,null,null,null,null,null,null,null,null,null,1,null,null,null,null,null,null,null,null,1,null,null,null,1,null,null,1,null,null,1]
[2632,"Goli Design LLC","Y",null,null,null,null,null,null,1,null,null,null,null,null,null,null,null,null,1,1,null,null,1,1,null,null,null,null,1]
[4939,"Gooby","Y",null,null,1,null,null,null,null,0,0,null,0,0,0,0,0,0,0,1,0,1,1,0,0,0,0,0,0,0,0,0,0,0,null,0,0,0,0,0,0,0,0,0,0,0,0,0,0,0,0,0]
[3224,"Good L Corp ","Y",null,null,null,null,null,null,null,0,0,1,0,0,0,0,0,0,0,null,0,0,0,0,0,0,0,0,0,0,0,0,0,0,0,0,null,0,0,0,0,0,0,0,0,0,0,0,0,0,0,0]
[4621,"GoToRovers.com","Y",null,null,1,null,null,null,null,null,1,null,1,null,null,1,null,1,1,1,1,1,1,1,1,1,1,1,1,1,1,1,1,1,1,1,1,1,1,1,1,1,1,1,1,1,1,1,1,1,1,1]
[2905,"GoughNuts LLC","Y",null,null,null,null,null,null,null,null,null,null,null,null,null,null,null,null,null,1,null,null,null,null,null,null,null,null,1]
[2226,"Gralen Company, The","Y",null,null,null,null,null,null,null,null,1,null,null,null,null,null,null,null,1,1,null,null,1,null,null,null,1,null,1,null,1,null,null,null,null,null,1,null,null,null,1,null,1,null,1,1,1,null,1,1]
[317,"Grandma Lucy's ","Y",null,1,null,null,null,null,null,0,0,null,0,0,0,0,0,0,1,1,0,0,0,0,1,0,1,0,0,0,0,0,0,0,0,0,0,0,0,0,0,0,0,0,0,0,0,0,0,0,0,0]
[2935,"Grandma Mae's Country Naturals","Y",null,null,null,null,null,null,null,0,0,null,0,0,0,0,0,0,1,1,0,0,0,0,1,0,0,0,0,0,0,0,0,0,0,0,0,0,0,0,0,0,0,0,0,0,0,0,0,0,0,0]
[3800,"Great American Products","Y",null,null,null,null,null,null,null,null,null,null,1]
[407,"Green Gorilla","Y",null,1,null,null,null,null,null,null,null,null,null,null,null,null,null,null,null,1,null,null,null,null,null,null,null,null,null,null,null,null,null,null,null,null,null,null,null,null,null,null,1]
[3745,"Grizzly Pet Products","Y",null,null,null,null,null,null,null,0,0,null,0,0,0,0,0,1,1,1,0,0,0,0,1,0,1,0,0,0,0,0,0,0,0,0,0,0,0,0,0,0,1,0,0,0,0,0,0,0,0,0]
[966,"Groomer's Goop","Y",null,null,null,null,1,null,null,0,0,null,0,0,0,0,0,0,1,1,0,0,0,0,0,0,0,0,0,0,0,0,0,0,0,0,null,0,0,0,0,0,1,0,null,1,1,1,0,0,0,0]
[662,"Groomers Helper","Y",null,null,null,null,1,null,null,null,null,1,null,null,null,null,null,null,1,1,null,null,null,null,null,null,null,null,null,null,null,null,null,null,null,null,null,null,null,null,null,null,1,null,1,1]
[2629,"GroomProPOS","Y",null,null,null,null,null,null,1,null,null,1]
[1508,"Guardian Pet Products Inc","Y",null,null,null,null,null,null,null,null,null,null,null,null,null,null,null,null,1,1,null,null,null,null,null,null,1,null,null,null,null,null,null,null,null,null,null,null,null,null,null,null,1]
[4222,"Gummi Pet Products International","Y",null,null,null,null,null,null,null,null,null,null,null,null,null,null,null,null,1,1,null,null,1,null,null,1,null,null,1,null,null,null,1,null,null,null,null,null,null,null,null,null,null,null,null,null,null,null,null,1]
[2920,"Gunner Kennels","Y",null,null,null,null,null,null,null,null,null,null,null,null,null,null,null,null,null,1,null,null,null,null,null,null,null,null,null,null,null,null,null,null,null,null,1]
[3835,"H&C Animal Health","Y",null,null,null,null,null,null,null,null,null,null,null,null,null,null,null,null,null,1,null,null,null,null,null,null,1,null,null,null,null,null,null,null,null,null,null,null,null,null,null,null,1]
[4404,"H3D","Y",null,null,null,null,null,null,null,null,null,null,null,null,null,null,null,null,null,1,null,null,null,null,null,null,null,null,null,null,null,null,null,null,null,null,null,null,null,null,null,null,1,1,1]
[1767,"Hagen Group","Y",null,null,null,null,null,null,null,0,0,null,0,1,1,1,1,0,1,1,0,1,1,1,null,1,1,null,1,0,1,1,1,1,1,0,1,1,null,1,1,1,0,null,1,1,1,1,1,1,0,0]
[845,"Halo Purely For Pets","Y",null,1,null,null,null,null,null,0,0,null,null,0,null,null,null,0,1,1,null,0,0,0,1,0,1,0,null,0,null,0,0,0,0,0,0,0,0,0,0,0,1,null,0,1,0,0,0,0,0,0]
[979,"HandsOn Gloves","Y",null,null,null,null,1,null,null,null,null,null,null,null,null,null,null,1,null,1,null,null,null,null,null,null,null,null,null,null,null,null,null,null,null,null,null,null,null,null,null,null,null,null,1]
[3235,"Hankscraft","Y",null,null,null,null,null,null,null,null,null,1]
[261,"Hanvey Engineering & Design","Y",null,null,null,null,1,null,null,null,null,1,null,1,null,null,null,null,null,1,null,null,null,null,null,null,null,null,null,null,null,null,null,null,null,null,null,null,null,null,null,null,null,null,1]
[2624,"Happy Goose Hemp","Y",null,null,null,null,null,null,1,null,null,null,null,null,null,null,null,null,1,1,null,null,null,null,null,null,null,null,null,null,null,null,null,null,null,null,null,null,null,null,null,null,1]
[3822,"Happy Hen Treats","Y",null,null,null,null,null,null,null,null,null,null,null,null,null,1]
[4335,"Happy Howie's, Inc.","Y",null,null,null,null,null,null,null,null,null,null,null,null,null,null,null,null,null,1,null,null,null,null,null,null,1]
[1645,"Happy Tails ","Y",null,null,null,null,null,null,null,0,0,null,0,0,0,0,0,0,null,1,0,0,0,0,0,0,1,null,1,0,0,0,0,0,1,0,0,0,0,0,0,null,0,0,0,0,0,0,0,0,0,0]
[4206,"Harry Barker","Y",null,null,null,null,null,null,null,null,null,null,1,null,null,null,null,null,null,1,null,1,1,null,null,1,1,null,1,null,null,null,null,null,1,null,null,null,null,null,null,null,null,null,1,1,null,null,null,1]
[409,"Harvest Moon Hay","Y",null,1,null,null,null,null,null,null,null,null,null,null,1,1,1]
[4645,"Haute Diggity Dog LLC","Y",null,null,1,null,null,null,null,null,null,null,null,null,null,null,null,null,null,1,null,null,null,null,null,null,null,null,1,null,null,null,null,null,1]
[3024,"Healers Petcare","Y",null,null,null,null,null,null,null,null,null,null,null,null,null,null,null,null,null,1,null,1,null,null,null,null,null,null,null,null,null,null,null,null,null,null,null,null,null,null,null,null,1,null,null,1]
[3357,"Health Extension Pet Care","Y",null,null,null,null,null,null,null,null,null,null,null,null,null,null,null,null,1,1,null,null,null,null,1,null,1,null,null,null,null,null,null,null,null,null,null,null,null,null,null,null,1,null,null,1,1]
[608,"Health Pro Nutrition","Y",null,1,null,null,null,null,null,null,null,null,null,null,null,null,null,null,null,1,null,null,null,null,null,null,1,null,null,null,null,null,null,null,null,null,null,null,null,null,null,null,1,null,null,null,null,null,null,1]
[761,"Health Technology Professional Products ","Y",null,null,null,null,1,null,null,null,null,1,null,null,null,null,null,null,1,1,null,null,null,null,null,null,null,null,null,null,null,null,null,null,null,null,null,null,null,null,null,null,null,null,1,1,1,null,null,1]
[430,"Healthy Essentials LLC","Y",null,1,null,null,null,null,null,0,0,null,0,0,0,0,0,0,0,1,0,0,0,0,0,0,0,0,0,0,0,0,0,0,0,0,0,0,0,0,0,0,1,0,0,0,0,0,0,0,0,0]
[1007,"Healthy Hemp Pet Company","Y",null,1,null,null,null,null,null,null,null,null,null,null,null,null,null,null,1,1,null,null,null,null,null,null,1,null,null,null,null,null,null,null,null,null,null,null,null,null,null,null,1]
[544,"Healthy Partner Pet Snacks","Y",null,1,null,null,null,null,null,0,0,null,0,0,0,0,0,0,0,1,0,0,0,0,0,0,1,0,0,0,0,0,0,0,0,0,0,0,0,0,0,0,0,0,0,0,0,0,0,0,0,0]
[1467,"Healthy Pet ","Y",null,null,null,null,null,null,null,0,0,null,0,0,0,null,1,0,1,1,0,0,0,0,0,0,0,0,0,0,0,0,0,0,0,0,0,0,0,1,null,0,0,0,0,0,0,0,0,0,0,0]
[2655,"Hear Doggy!","Y",null,null,null,null,null,null,null,null,null,null,null,null,null,null,null,null,null,1,null,null,null,null,null,null,null,null,1]
[4841,"Hello Doggie","Y",null,null,1,null,null,null,null,null,null,null,null,null,null,null,null,null,null,1,0,1,0,0,0,0,0,0,1,0,0,0,null,0,1,null,1]
[343,"Herbsmith Inc. ","Y",null,1,null,null,null,null,null,0,0,null,0,0,0,0,0,1,1,1,0,0,0,0,0,0,1,0,0,0,0,0,0,0,0,0,0,0,0,0,0,1,1,0,0,0,0,0,0,0,0,0]
[3701,"Hexbug (Innovation First Labs)","Y",null,null,null,null,null,null,null,null,null,null,null,null,null,null,null,null,1,null,null,null,null,null,null,null,null,null,1]
[1932,"High Tech Pet Products","Y",null,null,null,null,null,null,null,null,null,null,null,null,null,null,null,null,1,1,0,0,1,0,0,0,0,0,0,0,0,0,1,1,0,1,null,0,0,0,0,0,0,0,0,0,0,0,0,0,1]
[2615,"High5dogs","Y",null,null,null,null,null,null,1,null,null,null,null,null,null,null,null,null,null,1,null,null,1]
[3323,"Highwave","Y",null,null,null,null,null,null,null,null,null,null,null,null,null,null,null,null,null,1,null,null,null,null,null,1]
[1755,"Hikari Sales U.S.A. Inc. ","Y",null,null,null,null,null,null,null,0,0,null,0,1,1,0,0,0,0,0,0,0,0,0,0,0,0,0,0,0,0,0,0,0,0,0,0,0,0,0,0,0,0,0,0,0,0,0,0,0,0,0]
[2641,"Hill's Pet Nutrition","Y",null,null,null,null,null,null,null,0,0,null,0,0,0,0,0,0,1,1,0,0,0,0,1,0,1,0,0,0,0,0,0,0,0,0,0,0,0,0,0,0,0,0,0,0,0,0,0,0,0,0]
[1147,"Hillside Farms (Globalinx Pet)","Y",null,1,null,null,null,null,null,0,0,null,0,0,0,0,0,0,0,1,0,0,0,0,0,0,1,0,0,0,0,0,0,0,0,0,0,0,0,0,0,0,0,0,0,0,0,0,0,0,0,0]
[468,"Himal Dog Treat","Y",null,null,null,null,1,null,null,null,null,null,null,null,null,null,null,null,null,1,null,null,null,null,null,null,1]
[433,"Himalayan Corporation (429)","Y",null,1,null,null,null,null,null,0,0,null,0,0,0,0,0,0,0,1,0,0,0,0,0,0,1,0,1,0,0,0,0,0,0,0,0,0,0,0,0,0,0,0,0,0,0,0,0,0,0,0]
[4945,"Hip Doggie Inc. ","Y",null,null,1,null,null,null,null,null,null,null,null,null,null,null,null,null,null,1,null,1,1,null,null,null,null,null,1,null,null,null,null,null,1]
[2716,"His-T-ry Apparel Corp","Y",null,null,null,null,null,null,1,null,null,null,1]
[2619,"HODU","Y",null,null,null,null,null,null,1,null,null,null,null,null,null,null,null,null,null,1,null,null,null,null,null,null,null,null,null,null,null,null,null,null,null,null,null,null,null,null,null,null,null,null,null,null,null,null,null,null,1,1]
[2011,"Holistic Blend","Y",null,null,null,null,null,null,null,null,null,null,null,null,null,null,null,null,1,1,null,null,null,null,1,null,1,null,null,null,null,null,null,null,null,null,null,null,null,null,null,null,1]
[2626,"Holistic Hound LLC","Y",null,null,null,null,null,null,1,null,1,null,null,null,null,null,null,null,1,1,null,null,1,null,1,null,1,null,1,null,null,null,null,null,1,null,null,null,null,null,null,null,1]
[4159,"HomeoPet LLC ","Y",null,null,null,null,null,null,null,0,0,null,0,0,0,null,null,1,1,1,0,0,0,0,0,0,0,0,0,0,0,0,0,0,0,0,0,0,0,0,0,0,1,0,0,0,0,0,0,0,0,0]
[3268,"Homerun Smart Technology Co., Ltd","Y",null,null,null,null,null,null,null,null,null,null,null,null,null,null,null,null,1,1,null,null,1,null,null,1,null,null,null,null,null,null,null,1,null,null,null,null,null,null,null,null,null,null,null,null,null,null,null,null,1]
[2008,"Hong Kong City Toys","Y",null,null,null,null,null,null,null,null,null,null,null,null,null,null,null,null,null,1,0,1,1,0,0,0,0,0,1,null,null,null,null,null,1]
[1828,"HORN Animal Wellness","Y",null,null,null,null,null,null,null,null,null,1,null,null,null,null,null,1,1,1,null,null,null,null,1,null,null,null,null,null,null,null,null,null,null,null,null,null,null,null,null,null,1]
[5144,"Hot Dogs All Dressed Inc.","Y",null,null,1,null,null,null,null,null,null,null,null,null,null,null,null,1,1,1,null,null,1]
[4600,"Houndscoop, LLC","Y",null,null,null,null,null,null,null,null,null,null,null,null,null,null,null,null,null,1,null,null,null,null,null,null,null,null,null,null,null,null,null,null,null,null,null,null,null,null,null,null,null,null,null,null,null,null,null,1]
[3607,"HQ Pet Group Inc.","Y",null,null,null,null,null,null,null,null,null,null,null,null,null,null,null,null,1,null,null,null,null,null,null,null,null,null,null,null,null,1,1]
[3028,"ht-pet (dba Hueter Toledo)","Y",null,null,null,null,null,null,null,0,0,null,null,0,0,0,null,null,null,1,0,0,0,0,0,0,0,0,1,0,0,0,0,0,0,0,0,0,0,0,0,0,0,0,0,0,1,0,0,1,0,0]
[3047,"Hugglehounds (dba Allure Pet Products)","Y",null,null,null,null,null,null,null,0,0,null,0,0,0,0,0,0,1,1,0,0,0,0,0,0,0,0,1,0,0,0,0,0,1,0,null,0,0,0,0,0,0,0,0,0,0,0,0,0,0,0]
[2666,"HUNTER International GmbH ","Y",null,null,null,null,null,null,null,0,0,null,0,0,0,0,0,null,1,1,0,1,1,1,0,1,1,0,0,0,null,null,0,0,1,0,1,1,0,0,0,1,1,1,1,1,0,0,1,1,0,0]
[2027,"Hurtta","Y",null,null,null,null,null,null,null,0,0,0,0,0,0,0,0,0,1,1,0,1,1,0,0,null,0,0,0,0,0,0,0,0,0,0,0,0,0,0,0,0,0,0,0]
[4347,"Hydor Group","Y",null,null,null,null,null,null,null,0,0,null,0,1,0,0,0,0,0,0,0,0,0,0,0,0,0,0,0,0,0,0,0,0,0,0,0,0,0,0,0,0,0,0,0,0,0,0,0,0,0,0]
[3027,"Hyper Pet LLC","Y",null,null,null,null,null,null,null,0,0,null,0,0,0,0,0,0,null,1,0,0,1,0,0,0,0,0,1,0,0,0,0,0,0,0,0,0,0,0,0,0,0,0,0,0,0,0,0,0,0,0]
[510,"Hyponic","Y",null,1,null,null,null,null,null,null,null,null,null,null,null,null,null,null,1,1,null,1,null,null,null,null,1,null,null,null,null,null,null,null,null,null,null,null,null,null,null,null,null,null,null,1]
[607,"I and love and you","Y",null,1,null,null,null,null,null,null,null,null,null,null,null,null,null,null,1,1,null,null,null,null,1,null,1]
[1416,"Iceland Pure Inc","Y",null,1,null,null,null,null,null,null,null,null,null,null,null,null,null,1,1,1,null,null,null,null,null,null,1,null,null,null,null,null,null,null,null,null,null,null,null,null,null,null,1]
[2111,"Ideal Pet Products","Y",null,null,null,null,null,null,null,null,null,null,null,null,null,null,null,null,1,1,null,null,null,null,null,null,null,null,null,null,null,null,null,null,null,1]
[2906,"iFetch ","Y",null,null,null,null,null,null,null,0,0,null,0,0,0,0,0,0,0,1,0,0,0,0,0,0,0,0,1,0,0,0,0,0,0,0,0,0,0,0,0,0,0,0,0,0,0,0,0,0,0,0]
[3004,"Imaginarium Goods Co","Y",null,null,null,null,null,null,null,null,null,null,null,null,null,null,null,null,1,1,null,null,1,null,null,1,null,null,1,null,null,null,1,null,1,null,null,null,null,null,null,null,null,null,null,null,null,null,null,1]
[2329,"Imagine This Company ","Y",null,null,null,null,null,null,null,0,0,1,1,0,0,0,0,0,null,1,0,0,0,0,0,0,1,0,0,0,0,0,0,0,0,0,0,0,0,0,0,0,0,0,0,null,0,0,0,0,0,0]
[4345,"iMARC Pet Tag Engraving Systems ","Y",null,null,null,null,null,null,null,0,0,1,1,0,0,0,0,1,1,1,0,0,1,1,0,0,0,0,0,0,0,0,0,0,0,0,0,0,0,0,0,0,0,0,0,0,0,0,0,0,0,0]
[2454,"Imperial Cat ","Y",null,null,null,null,null,null,null,0,0,null,null,0,0,0,1,0,1,0,0,0,0,0,null,1,1,0,1,0,1,1,1,0,0,0,0,0,0,0,1,0,1,0,1,0,1,1,0,0,0,0]
[3254,"IMS (Cadet Pet)","Y",null,null,null,null,null,null,null,null,null,null,null,null,null,null,null,null,null,1,null,null,null,null,null,null,1,1]
[731,"In Clover Pet Supplements","Y",null,1,null,null,null,null,null,0,0,null,0,0,0,0,0,0,1,1,0,0,0,0,0,0,1,0,0,0,0,0,0,0,0,0,0,0,0,0,0,0,1,0,0,0,0,0,0,0,0,0]
[1423,"Inaba Foods (USA) Inc.","Y",null,1,null,null,null,null,null,null,null,null,null,null,null,null,null,null,1,null,null,null,null,null,null,null,1]
[4469,"Indigo","Y",null,null,null,null,null,null,null,null,null,null,null,null,null,null,null,null,null,1,null,null,null,null,null,null,1,null,null,null,null,null,null,null,null,null,null,null,null,null,null,1,1]
[2546,"Indipets Inc","Y",null,null,null,null,null,null,null,null,null,null,null,null,null,1,null,null,1,1,null,null,null,null,null,1]
[760,"InfiniteAloe Skin Care","Y",null,null,null,null,1,null,null,null,null,null,null,null,null,null,null,null,1,1,null,null,null,null,null,null,null,null,null,null,null,null,null,null,null,null,null,null,null,null,null,null,1]
[3535,"Instant Ocean","Y",null,null,null,null,null,null,null,null,null,null,null,1]
[4929,"IntelliLeash Products, Inc","Y",null,null,1,null,null,null,null,null,null,null,null,null,null,null,null,null,null,1,null,null,1,null,null,null,null,null,null,null,null,null,null,1]
[707,"International Himalayan Pet Products LLC","Y",null,1,null,null,null,null,null,null,null,null,null,null,null,null,null,null,null,1,null,null,null,null,null,null,1]
[1267,"International Pet Group","Y",null,null,null,null,null,null,null,null,null,null,null,null,null,null,null,null,1,1,null,null,1,null,null,1,1,null,null,1,null,1,1,null,1,null,null,null,null,null,null,null,null,null,null,null,null,null,null,null,1]
[672,"International Professional Groomers","Y",null,null,null,null,1,null,null,1]
[472,"International Society of Canine Cosmetologists","Y",null,null,null,null,1,null,null,1]
[372,"International Veterinary Sciences","Y",null,null,null,null,1,null,null,null,null,null,null,null,null,null,null,null,1,1,null,null,null,null,null,null,null,null,null,null,null,null,null,null,null,null,null,null,null,null,null,null,1,null,null,1,null,1]
[3826,"Interzoo 2018 - Nuernberg Germany","Y",null,null,null,null,null,null,null,1]
[4469,"Invisible Fence","Y",null,null,null,null,null,null,null,null,null,null,null,null,null,null,null,null,1,1,null,null,1,null,null,null,null,null,null,null,null,null,null,1,null,null,null,null,null,null,null,null,null,null,null,null,null,null,null,null,1]
[3413,"IRIS USA","Y",null,null,null,null,null,null,null,0,0,null,0,0,0,0,1,0,1,1,0,0,0,0,0,1,0,0,0,0,0,0,0,0,0,0,1,0,1,0,1,0,0,0,0,0,0,0,1,0,0,0]
[663,"Isle Of Dogs (217)","Y",null,null,null,null,1,null,null,0,0,null,0,0,0,0,0,0,0,1,0,0,null,0,1,0,1,0,0,0,0,0,0,0,0,0,0,0,0,0,0,1,1,0,0,1,1,0,0,0,0,0]
[4520,"ITI Manufacturing, Inc.","Y",null,null,null,null,null,null,null,null,null,1]
[4668,"Jax & Bones","Y",null,null,null,null,null,null,null,0,0,null,0,0,0,0,0,0,1,1,0,0,0,0,0,0,0,0,1,0,0,0,0,0,1,0,0,0,0,0,0,0,0,0,0,0,0,0,0,1,0,0]
[3629,"JBJ Transworld Aquatic","Y",null,null,null,null,null,null,null,null,null,null,null,1]
[4637,"JCLA INC","Y",null,null,1,null,null,null,null,0,0,null,1,0,0,0,0,0,0,1,0,1,1,0,1,1,null,0,1,0,0,0,0,0,1,0,1,0,0,0,0,0,0,0,0,1,0,0,0,0,0,0]
[3729,"Jebo Aquarium","Y",null,null,null,null,null,null,null,null,null,null,null,1]
[4705,"Jellybean by Home Comfort","Y",null,null,1,null,null,null,null,null,null,null,1,null,null,null,null,null,1,1,null,null,null,null,null,null,null,null,null,null,null,null,null,null,1]
[4124,"Jellyfish Art","Y",null,null,null,null,null,null,null,null,null,null,null,1]
[3171,"Jinan Darin Machinery Co., Ltd.","Y",null,null,null,null,null,null,null,null,null,1,null,null,null,null,null,null,1,1,null,null,null,null,1,null,1,1]
[3276,"Jingzhou Pets Love Pet Products Co Ltd","Y",null,null,null,null,null,null,null,null,null,null,null,null,null,null,1,null,1,null,null,null,null,null,null,null,null,null,null,null,null,null,null,null,null,null,null,null,null,1,1]
[3443,"Jizmos Inc","Y",null,null,null,null,null,null,null,null,null,null,null,null,null,null,null,null,1,1,null,null,null,null,null,null,null,null,1,null,null,null,null,null,null,null,null,null,null,null,null,null,null,null,null,null,null,null,null,null,1,1]
[4027,"JM Cages & Reptiles (4026)","Y",null,null,null,1,null,null,null,null,null,null,null,null,1]
[1060,"John Paul Pet","Y",null,null,null,null,1,null,null,null,null,null,null,null,null,null,null,null,null,1,null,null,null,null,null,null,null,null,null,null,null,null,null,null,null,null,null,null,null,null,null,null,null,null,null,1,null,1]
[4357,"Jolly Pets","Y",null,null,null,null,null,null,null,0,0,null,0,0,0,null,null,null,0,1,0,0,0,0,0,0,0,0,1,0,0,0,0,0,0,0,0,0,0,0,0,0,0,0,0,0,0,0,0,0,0,0]
[1155,"Jones Natural Chews ","Y",null,1,null,null,null,null,null,0,0,null,0,0,0,0,0,0,0,1,0,0,0,0,0,0,1,0,0,0,0,0,0,0,0,0,0,0,0,0,0,0,0,0,0,0,0,0,0,0,0,0]
[4303,"Julius-K9 LLC","Y",null,null,null,null,null,null,null,null,null,null,1,null,null,null,null,null,null,1,null,null,1,null,null,null,null,null,1]
[458,"JW Co Ltd","Y",null,1,null,null,null,null,null,null,null,null,null,null,null,null,null,null,null,1,null,null,null,null,null,null,null,null,null,null,null,null,null,null,null,null,null,null,null,null,null,null,null,null,1]
[4135,"K & H Manufacturing, LLC","Y",null,null,null,null,null,null,null,0,0,null,0,1,0,1,1,null,1,1,0,0,0,0,0,1,0,0,1,0,0,1,1,0,1,0,1,1,null,0,0,0,null,0,0,0,0,0,0,0,null,0]
[1708,"K9 Honey","Y",null,null,null,null,null,null,null,null,null,null,null,null,null,null,null,null,null,1,null,null,null,null,null,null,1]
[267,"K9 Natural Foods Ltd. ","Y",null,null,null,null,1,null,null,0,0,null,0,0,0,0,0,0,1,1,0,0,0,0,1,null,1,0,0,0,0,0,0,0,0,0,0,0,0,0,0,0,1,0,0,0,0,0,0,0,0,0]
[3812,"K9 Sport Sack","Y",null,null,null,null,null,null,null,null,null,null,null,null,null,null,null,null,null,1,null,null,null,null,null,1,null,null,null,null,null,null,null,null,null,null,1]
[1166,"Kaylor Of Colorado ","Y",null,null,null,null,null,null,null,0,0,null,0,0,0,1,1,0,0,0,0,0,0,0,0,null,0,0,0,0,0,0,0,0,0,0,0,0,0,0,0,0,0,0,0,0,0,0,0,0,0,0]
[3254,"Kaytee / Super Pet","Y",null,null,null,null,null,null,null,null,null,null,null,null,null,1,1]
[4407,"KC's Pet Makers Union","Y",null,null,null,null,null,null,null,null,null,null,null,null,null,null,null,null,null,1,null,1,1,null,null,null,1]
[5061,"Keet","Y",null,null,1,null,null,null,null,null,null,null,null,null,null,null,null,null,1,1,null,null,null,null,null,null,null,null,null,null,null,null,1,null,1]
[2231,"Kellytoy Worldwide, Inc ","Y",null,null,null,null,null,null,null,null,null,null,1,null,null,null,null,null,null,1,null,null,null,null,null,null,null,null,1]
[668,"Kenchii Professional Grooming","Y",null,null,null,null,1,null,null,null,null,1,null,null,null,null,null,null,null,1,null,null,null,null,null,null,null,null,null,null,null,null,null,null,null,null,null,null,null,null,null,null,null,null,1]
[3254,"Kent Marine","Y",null,null,null,null,null,null,null,null,null,null,null,1]
[571,"Kim Laube Co","Y",null,null,null,null,1,null,null,null,null,1,null,null,null,null,null,1,1,1,null,null,null,null,null,null,null,null,null,null,null,null,null,null,null,null,null,null,null,null,null,null,null,null,1,1]
[710,"kin+kind / To Doggy With Love","Y",null,1,null,null,null,null,null,null,null,null,null,null,null,null,null,null,1,1,null,null,null,null,null,null,null,null,null,null,null,null,null,null,null,null,null,null,null,null,null,null,1,1,null,1,1]
[4435,"Kinn Inc.","Y",null,null,null,null,null,null,null,null,null,null,null,null,1,null,null,null,1,1,null,null,1,null,null,1,null,null,null,null,null,null,null,null,null,null,null,null,null,null,null,null,1]
[333,"Kittrich Corporation","Y",null,1,null,null,null,null,null,null,null,null,null,null,null,null,null,null,null,1,null,null,null,null,1,null,null,null,null,null,null,null,null,null,null,null,null,null,null,null,null,null,null,1]
[4717,"Klippo Pet Inc.","Y",null,null,1,null,null,null,null,null,null,null,null,null,null,null,null,null,null,1,null,1,1,null,null,null,null,null,null,null,null,null,null,null,1]
[1217,"Koha Pet Food - Nootie","Y",null,1,null,null,null,null,null,null,null,null,null,null,null,null,null,null,null,1,null,null,null,null,null,null,1,null,null,null,null,null,null,null,null,null,null,null,null,null,null,null,1,null,null,1]
[4527,"Kole Imports","Y",null,null,null,null,null,null,null,null,null,null,null,null,null,null,null,null,1,1,null,null,1,null,null,1,null,null,1,null,null,1,1,null,1,null,1,1,null,null,null,null,null,null,1,null,null,null,null,1]
[2145,"Kong Company","Y",null,null,null,null,null,null,null,0,0,null,0,0,0,null,null,0,1,1,0,0,1,0,0,0,1,0,1,0,1,null,0,0,0,0,0,0,0,0,0,1,1,0,1,0,0,0,0,0,0,0]
[2909,"Kool Tees","Y",null,null,null,null,null,null,null,0,0,0,1,0,0,0,0,0,0,1,0,1,1,0,0,1,0,0,null,0,0,0,0,0,null,0,0,0,0,0,0,0,0,0,0]
[3718,"Kordon LLC","Y",null,null,null,null,null,null,null,0,0,null,0,1,null,null,null,null,null,null,0,0,0,0,0,null,0,0,0,0,0,0,0,0,0,0,null,0,0,0,0,0,null,0,0,0,null,0,0,0,0,0]
[2527,"K-R Witte GmbH & Co KG","Y",null,null,null,null,null,null,1,null,null,1,null,null,null,null,null,null,1,1,null,null,null,null,null,null,null,null,null,null,null,null,null,null,null,null,null,null,null,null,null,null,null,null,1]
[2359,"Kurgo Products ","Y",null,null,null,null,null,null,null,0,0,null,0,0,0,0,0,0,0,1,0,1,1,0,0,1,0,0,1,0,0,0,0,0,null,0,1,1,0,0,0,0,0,0,0,0,0,0,0,0,0,0]
[466,"Ladybird Line","Y",null,null,null,null,1,null,null,null,null,1,null,null,null,null,null,null,null,null,null,null,null,null,null,null,null,null,null,null,null,null,null,null,null,null,null,null,null,null,null,null,null,null,1]
[1178,"Lafeber Company ","Y",null,null,null,null,null,null,null,0,0,0,0,0,0,1,1,0,0,0,0,0,0,0,0,0,0,0,0,0,0,0,0,0,0,0,0,0,0,0,0,0,0,0,0,0,0,0,0,0,0,0]
[4523,"Latch'nVent","Y",null,null,null,null,null,null,null,null,null,null,null,null,null,null,null,null,1,1,null,null,null,null,null,null,null,null,null,null,null,null,null,null,null,1]
[229,"Le Sharma","Y",null,1,null,null,null,null,null,null,null,null,null,null,null,1,null,null,1,1,null,null,null,null,null,null,1,null,1,null,null,null,1,null,1,null,1,null,null,null,null,null,null,null,null,0,0,0,0,null,0,0]
[3018,"Leashes By Liz","Y",null,null,null,null,null,null,null,null,null,null,null,null,null,null,null,null,null,1,null,null,1,null,null,null,1]
[4506,"LeashGear EZ Walker 3-N-1","Y",null,null,null,null,null,null,null,null,null,null,null,null,null,null,null,null,null,1,null,null,1]
[3226,"Leather Brothers Inc./Omnipet","Y",null,null,null,null,null,null,null,0,0,null,0,0,0,0,null,0,1,1,0,0,1,1,0,1,null,1,1,0,1,1,0,1,0,0,1,1,null,0,0,0,0,null,1,0,0,0,0,0,null,0]
[3112,"Lennox Intl.","Y",null,null,null,null,null,null,null,null,null,null,null,null,null,null,null,null,1,1,null,null,null,null,null,null,1,1,null,null,null,null,null,null,null,null,null,null,null,1]
[1506,"Life Line Pet Nutrition, Inc.","Y",null,null,null,null,null,null,null,null,null,null,null,null,null,null,null,null,null,1,null,null,null,null,null,null,1,null,null,null,null,null,null,null,null,null,null,null,null,null,null,null,1]
[3909,"Lifegard Aquatics ","Y",null,null,null,null,null,null,null,0,0,null,0,1,0,0,0,0,0,0,0,0,0,0,0,0,0,0,0,0,0,0,0,0,0,0,0,0,0,0,0,0,0,0,0,0,0,0,0,0,0,0]
[1379,"LightSpeed POS Inc","Y",null,null,null,null,null,null,null,null,null,1]
[4522,"Lilly Brush Co. LLC ","Y",null,null,null,null,null,null,null,0,0,null,0,0,0,0,0,0,1,1,0,0,0,0,0,0,0,0,0,0,0,0,0,0,0,0,0,0,0,0,0,0,0,0,1,0,0,0,0,0,0,0]
[331,"Lindy’s Bakery","Y",null,1,null,null,null,null,null,null,null,null,null,null,null,null,null,null,null,1,null,null,null,null,null,null,1]
[4741,"Lisa Welch Designs","Y",null,null,1,null,null,null,null,null,null,null,1]
[4935,"Little Earth Productions","Y",null,null,1,null,null,null,null,null,null,null,1,null,null,null,null,null,null,1,null,1]
[3066,"Lixit Corporation ","Y",null,null,null,null,null,null,null,0,0,null,0,0,1,1,1,null,1,1,0,0,1,null,0,1,0,0,1,1,0,0,0,1,0,0,1,0,0,0,null,0,1,0,0,0,0,null,0,0,0,0]
[2080,"Lone Wolf Pet Products","Y",null,null,null,null,null,null,null,null,null,null,null,null,null,null,null,null,null,1,null,null,1]
[4163,"Loopies Toys","Y",null,null,null,null,null,null,null,null,null,null,null,null,null,null,null,null,1,1,null,null,null,null,null,null,null,null,1]
[610,"Lotus Pet Foods ","Y",null,1,null,null,null,null,null,0,0,null,0,0,0,0,0,0,1,1,0,0,0,0,1,0,0,0,0,0,0,0,0,0,0,0,0,0,0,0,0,0,0,0,0,0,0,0,0,0,0,0]
[4821,"LoveThyBeast","Y",null,null,1,null,null,null,null,null,null,null,null,null,null,null,null,null,1,1,null,1,1,null,null,1,null,null,1,null,null,null,null,null,1,null,1,null,null,null,null,null,null,null,1,1]
[4227,"Loving Pets ","Y",null,null,null,null,null,null,null,0,0,null,0,null,0,0,0,0,1,1,0,0,0,0,0,1,1,0,0,0,0,0,0,0,0,0,0,0,0,0,0,0,0,0,0,0,0,0,0,0,0,0]
[5034,"Luca For Dogs","Y",null,null,1,null,null,null,null,null,null,null,null,null,null,null,null,null,null,1,null,null,1,null,null,null,null,null,null,null,null,null,null,null,1]
[3075,"Lucy Pet Products, Inc.","Y",null,null,null,null,null,null,null,null,null,null,null,null,null,null,null,null,1,1,null,null,null,null,1,null,null,null,null,null,null,null,null,null,null,null,null,null,null,1,null,null,null,null,null,1]
[4957,"Luna Blue","Y",null,null,1,null,null,null,null,0,0,null,0,0,0,0,0,0,0,1,0,1,1,0,0,0,0,0,0,0,0,0,0,0,null,0,0,0,0,0,0,0,0,0,0,0,0,0,0,0,0,0]
[2545,"LupinePet","Y",null,null,null,null,null,null,null,0,0,null,null,0,0,0,0,0,1,1,0,0,1,null,0,0,0,0,0,0,0,0,0,0,0,0,0,0,0,0,0,0,0,0,0,0,0,0,0,0,0,0]
[506,"Lustroware, Inc","Y",null,1,null,null,null,null,null,null,null,null,null,null,null,null,1]
[2718,"LuvMyLeash","Y",null,null,null,null,null,null,1]
[867,"M.D.C. Romani, Inc.","Y",null,null,null,null,1,null,null,null,null,1,null,null,null,null,null,null,null,1,null,null,null,null,null,null,null,null,null,null,null,null,null,null,null,null,null,null,null,null,null,null,null,null,1,1]
[4058,"M4PH","Y",null,null,null,null,null,null,null,null,null,null,1,null,null,null,null,null,1,1,null,null,1,null,null,null,null,null,null,null,null,null,null,null,null,null,null,null,null,null,null,null,1]
[254,"Mad About Organics","Y",null,1,null,null,null,null,null,null,null,null,null,null,null,null,1,1,1,1,null,null,null,null,null,null,null,null,null,null,null,null,null,null,null,null,null,null,null,null,null,1,1,1,null,1]
[342,"Majesty's Animal Nutrition","Y",null,1,null,null,null,null,null,null,null,null,null,null,null,null,null,1,null,1,null,null,null,null,null,null,1,null,null,null,null,null,null,null,null,null,null,null,null,null,null,null,1]
[2117,"Mammoth Pet Products ","Y",null,null,null,null,null,null,null,0,0,null,null,0,0,null,null,null,null,1,0,0,0,0,0,0,null,0,1,0,0,0,0,0,0,0,0,0,0,0,0,null,0,0,0,0,0,0,0,0,0,0]
[545,"MannaPro Products, LLC","Y",null,1,null,null,null,null,null,null,null,null,null,null,null,1,1,1,1,1,null,null,null,null,null,null,1,null,null,null,null,null,null,null,null,null,null,null,null,null,null,null,1]
[3535,"Marineland","Y",null,null,null,null,null,null,null,null,null,null,null,1]
[470,"Mars Coat King","Y",null,null,null,null,1,null,null,null,null,null,null,null,null,null,null,null,null,1,null,null,null,null,null,null,null,null,null,null,null,null,null,null,null,null,null,null,null,null,null,null,null,null,1]
[4066,"Mars Petcare","Y",null,null,null,null,null,null,null,0,0,null,0,0,0,0,null,0,1,1,0,0,1,0,1,0,1,0,0,0,0,0,0,0,0,0,0,0,0,0,0,0,null,0,0,0,0,0,0,0,1,1]
[3445,"Marshall Pet Products ","Y",null,null,null,null,null,null,null,0,0,null,0,0,null,1,1,1,1,1,0,0,0,0,0,0,1,0,0,0,0,0,0,0,0,0,0,0,0,null,0,0,1,1,0,null,1,0,0,0,0,0]
[246,"Mauro Pet Care","Y",null,1,null,null,null,null,null,0,0,null,0,0,0,0,0,null,0,1,0,0,0,0,0,0,0,0,0,0,0,0,0,0,0,0,0,0,0,0,0,0,1,1,0,1,0,0,0,0,0,0]
[4725,"Max's Closet LLC ","Y",null,null,1,null,null,null,null,0,0,null,0,0,0,0,0,0,0,1,0,1,0,0,0,0,0,0,0,0,0,0,0,0,0,0,null,0,0,0,0,0,0,0,0,0,0,0,1,0,0,0]
[2123,"Mendota Products","Y",null,null,null,null,null,null,null,0,0,null,0,0,0,0,0,0,1,1,0,1,1,0,0,1,1,0,0,0,0,0,0,0,0,0,0,0,0,0,0,0,1,0,0,1,0,0,0,0,0,0]
[3467,"Merrick Pet Care","Y",null,null,null,null,null,null,null,0,0,null,0,0,0,0,0,0,1,1,0,0,0,0,1,0,1,null,null,0,0,0,0,0,0,0,0,0,0,0,0,0,0,0,0,0,0,0,0,0,0,0]
[3527,"Merry Jane & Thor","Y",null,null,null,null,null,null,null,null,null,null,null,null,null,null,null,null,null,1,null,null,1]
[1639,"Messy Mutts ","Y",null,null,null,null,null,null,null,null,null,null,null,null,null,null,null,null,1,1,null,null,null,null,null,1,null,null,1,null,null,null,null,null,1,null,null,null,null,null,1,null,null,null,1,null,null,null,null,1]
[2634,"Metro Paws LLC ","Y",null,null,null,null,null,null,null,0,0,null,0,0,0,0,0,0,1,1,0,0,0,0,0,0,0,0,0,0,0,0,0,0,0,0,0,0,0,0,0,0,0,0,0,0,0,0,1,1,0,0]
[955,"Metrovac (Air Force)","Y",null,1,null,null,null,null,null,null,null,1,null,null,null,null,null,null,1,1,null,null,null,null,null,null,null,null,null,null,null,null,null,null,null,null,null,null,null,null,null,null,null,null,1]
[2817,"Midgard Farms","Y",null,null,null,null,null,null,1,null,null,null,null,null,null,1,1,null,1,1,null,null,null,null,null,null,null,null,null,null,null,null,null,null,null,null,null,null,null,null,null,null,1]
[2254,"Midwest Homes For Pets","Y",null,null,null,null,null,null,null,0,0,null,0,0,0,1,1,0,1,1,0,0,0,0,0,0,0,0,0,0,0,0,1,0,1,1,1,1,1,0,0,0,0,0,1,0,0,0,1,1,0,0]
[629,"Midwestern Pet Foods","Y",null,1,null,null,null,null,null,null,null,null,null,null,null,null,null,null,1,1,null,null,null,null,1,null,1]
[1840,"Miller Manufacturing","Y",null,null,null,null,null,null,null,null,null,null,null,null,null,1,1,1,1,1,null,null,null,null,null,1,null,null,null,null,null,null,1,null,1,null,1,1,1,null,null,null,null,null,null,null,null,null,null,1]
[222,"Millie's Wolfheart USA","Y",null,1,null,null,null,null,null,null,null,null,null,null,null,null,null,null,null,1,null,null,null,null,1,null,1]
[2337,"MIND UP Corp","Y",null,null,null,null,null,null,null,null,null,null,1,null,null,null,null,null,1,1,null,null,null,null,null,null,null,null,null,null,null,null,null,null,null,null,null,null,null,null,null,1,1,null,1]
[1011,"Minus Forty Technologies ","Y",null,1,null,null,null,null,null,0,0,1,0,0,0,0,0,0,0,0,0,0,0,0,0,0,0,0,0,0,0,0,0,0,0,0,0,0,0,0,0,0,0,0,0,0,0,0,0,0,0,0]
[2347,"Mio9","Y",null,null,null,null,null,null,null,null,null,null,null,null,null,null,null,null,1,null,null,null,null,null,1]
[4313,"MiracleCorp Products ","Y",null,null,null,null,null,null,null,0,0,null,0,0,1,1,1,1,1,1,0,0,1,0,1,0,1,0,0,0,0,0,0,null,0,0,null,0,1,0,0,1,1,0,1,1,0,1,0,0,0,0]
[4825,"Miso Pup","Y",null,null,1,null,null,null,null,null,null,null,null,null,null,null,null,null,null,1,null,null,null,null,null,1,null,null,null,null,null,null,null,null,null,null,1]
[233,"Missing Link® / W.F. Young Inc","Y",null,1,null,null,null,null,null,null,null,null,null,null,null,1,null,1,1,1,null,null,null,null,null,null,1,null,null,null,null,null,null,null,null,null,null,null,null,null,null,1,1]
[3815,"Mission Pet","Y",null,null,null,null,null,null,null,null,null,null,null,null,null,null,null,null,1,1,null,1,1,null,null,1,null,null,1,null,null,null,null,null,1,null,null,null,null,null,null,null,null,null,1,1,null,null,null,1]
[4513,"Mod Dawgs Inc.","Y",null,null,null,null,null,null,null,null,null,null,null,null,null,null,null,null,1,1,null,null,null,null,null,null,null,null,null,null,null,null,null,null,1]
[2722,"Modern Kanine","Y",null,null,null,null,null,null,1,null,null,null,null,null,null,null,null,null,null,1,null,null,null,null,null,null,null,null,null,null,null,null,null,null,null,null,null,null,null,null,null,null,null,null,null,null,null,null,1,1]
[2623,"Modern Mammal, Inc","Y",null,null,null,null,null,null,1,null,null,null,1,null,null,null,null,null,null,1]
[3054,"Moderna Products America LLC","Y",null,null,null,null,null,null,null,null,null,null,null,null,null,null,1,null,1,1,null,null,null,null,null,1,null,null,null,null,null,null,null,null,1,null,1,null,null,null,1]
[2732,"Modesto Milling","Y",null,null,null,null,null,null,1,null,null,null,null,null,null,1,1,1]
[4934,"Molly Mutt ","Y",null,null,1,null,null,null,null,0,0,null,0,0,0,0,0,0,0,1,0,0,1,0,0,0,0,0,0,0,0,0,0,0,1,0,0,0,0,0,0,0,0,0,0,null,1,0,0,0,0,0]
[2569,"Mondi","Y",null,null,null,null,null,null,null,null,null,1,null,null,null,null,null,null,null,null,null,null,null,null,1,null,1]
[5060,"Moody Pet Inc","Y",null,null,1,null,null,null,null,null,null,null,null,null,null,null,null,null,1,1,null,null,null,null,null,null,null,null,1]
[2833,"Moore Outdoors","Y",null,null,null,null,null,null,1,null,null,null,1,null,null,null,null,null,null,1,null,null,null,null,null,null,null,null,null,1]
[4817,"Moose Pet Wear/ Strapworks","Y",null,null,1,null,null,null,null,0,0,0,1,0,0,0,0,0,1,1,0,0,1,0,0,0,0,0,0,0,0,0,0,0,0,0,0,1,0,0,0,0,0,0,0]
[811,"Morris Packaging","Y",null,1,null,null,null,null,null,null,null,1]
[3277,"Moshm Pet Food (Shanghai) Limited","Y",null,null,null,null,null,null,null,null,null,null,null,null,null,null,null,null,1,null,null,null,null,null,1,1,null,null,null,null,null,null,null,null,1,null,null,null,null,null,1,null,null,null,1,1]
[1406,"Moso Natural","Y",null,1,null,null,null,null,null,null,null,null,null,null,null,null,null,null,1,1,null,null,null,null,null,null,null,null,null,null,null,null,null,null,null,null,null,null,null,null,null,null,null,null,null,null,1]
[220,"Mount Tibet Corporation","Y",null,1,null,null,null,null,null,null,null,null,null,null,null,null,null,null,null,1,null,null,null,null,null,null,1,null,null,null,null,null,null,null,null,null,null,null,null,null,null,null,null,null,null,0,0,0,0,0,0,0]
[4426,"Mountain Dog Products","Y",null,null,null,null,null,null,null,null,null,null,null,null,null,null,null,null,null,1,null,null,1]
[2720,"MPI Marketing Inc","Y",null,null,null,null,null,null,1,null,null,null,null,null,null,null,null,null,1,1,null,null,null,null,null,1,null,null,null,null,null,null,1]
[416,"Muenster Pet Foods","Y",null,1,null,null,null,null,null,null,null,null,null,1,null,null,null,1,1,1,null,null,null,null,1,null,1]
[3067,"Multipet International ","Y",null,null,null,null,null,null,null,0,0,null,0,null,0,1,1,null,1,1,0,0,0,0,0,0,1,null,1,0,1,1,0,0,null,0,1,1,0,0,0,0,0,0,1,0,0,1,0,0,0,0]
[3221,"Muntech Products","Y",null,null,null,null,null,null,null,null,null,null,null,null,1,1,null,null,1,1,null,null,null,null,null,null,null,null,null,null,null,null,null,null,null,null,null,null,null,null,null,1,1,1,null,1,1]
[4123,"Muttluks Inc","Y",null,null,null,null,null,null,null,null,null,null,1,null,null,null,null,null,null,1,null,1,null,null,null,null,null,null,null,null,null,null,null,null,1]
[4623,"My Canine Kids Inc","Y",null,null,1,null,null,null,null,null,null,null,1,null,null,null,null,null,null,1,null,1,1,null,null,null,null,null,null,null,null,null,null,null,null,null,1]
[5058,"My Dog Nose It!","Y",null,null,1,null,null,null,null,null,null,null,null,null,null,null,null,null,null,1,null,null,null,null,null,null,null,null,null,null,null,null,null,null,null,null,null,null,null,null,null,null,1,null,null,0,null,0,0,0,0,0]
[4401,"My Family USA Inc.","Y",null,null,null,null,null,null,null,null,null,1,null,null,null,null,null,null,1,1,null,null,null,1]
[925,"My Little Wolf/Lion","Y",null,1,null,null,null,null,null,null,null,null,null,null,null,null,null,null,1,1,null,null,null,null,1,null,1]
[670,"MyTime","Y",null,null,null,null,1,null,null,null,null,1]
[3227,"Nandog Pet Gear","Y",null,null,null,null,null,null,null,null,null,null,1,null,null,null,null,null,1,1,null,1,1,null,null,null,null,null,1,null,null,1,null,null,1,null,null,null,null,null,null,null,null,null,1,null,null,null,null,1]
[328,"Natura Petz Organics","Y",null,1,null,null,null,null,null,null,null,null,null,null,null,null,null,1,1,1,null,null,null,null,null,null,1,null,null,null,null,null,null,null,null,null,null,null,null,null,null,null,1]
[1654,"Natural Balance Pet Foods","Y",null,null,null,null,null,null,null,0,0,null,0,0,0,0,0,0,1,1,0,0,0,0,1,0,1,0,0,0,0,0,0,0,0,0,0,0,0,0,0,0,0,0,0,0,0,0,0,0,0,0]
[525,"Nature's Logic ","Y",null,1,null,null,null,null,null,0,0,null,0,0,0,0,0,0,1,1,0,0,0,0,1,0,1,0,0,0,0,0,0,0,0,0,0,0,0,1,0,0,1,0,0,0,0,0,0,0,0,0]
[3535,"Nature's Miracle","Y",null,null,null,null,null,null,null,null,null,null,null,null,null,1,1,null,1,1,null,null,null,null,null,null,null,null,null,null,null,null,null,null,1,null,1,null,null,1,1,null,1,null,null,1,1,1,null,1]
[3373,"Nature's Own Pet Chews / Best Buy Bones","Y",null,null,null,null,null,null,null,0,0,null,0,0,0,0,0,0,0,1,0,0,0,0,0,0,1,0,0,0,0,0,0,0,0,0,0,0,0,0,0,0,0,0,0,0,0,0,0,0,0,0]
[573,"Nature's Specialties","Y",null,null,null,null,1,null,null,null,null,1,null,null,null,null,null,1,1,1,null,null,null,null,null,null,null,null,null,null,null,null,null,null,null,null,null,null,null,null,null,null,1,null,null,1,1]
[1027,"Nature's Variety ","Y",null,1,null,null,null,null,null,null,null,null,null,null,null,null,null,null,1,1,null,null,null,null,1,null,1]
[4561,"NaturVet","Y",null,null,null,null,null,null,null,0,null,null,0,null,0,0,0,1,1,1,0,0,0,0,0,0,1,0,0,0,0,0,0,0,0,0,0,0,0,0,0,0,1,1,0,1,0,0,0,0,0,0]
[3922,"Nautilus Marine Wholesale, Inc. (3923)","Y",null,null,null,1,null,null,null,null,1,null,null,1]
[3567,"Neater Pet Brands ","Y",null,null,null,null,null,null,null,0,0,null,0,0,0,0,0,0,1,1,0,0,0,0,0,1,0,0,0,0,0,0,0,0,0,0,0,0,0,0,1,0,0,0,0,0,1,0,0,0,0,0]
[3074,"Nekochan Enterprises","Y",null,null,null,null,null,null,null,null,null,null,null,null,null,null,null,null,1,null,null,null,null,null,null,null,null,null,1,null,null,null,1,null,1]
[3654,"Nestle Purina Petcare Company ","Y",null,null,null,null,null,null,null,null,null,null,null,null,null,null,null,null,1,1,0,0,0,0,1,0,1,0,0,0,0,0,0,0,0,0,0,0,0,1]
[4761,"New Age Pet","Y",null,null,1,null,null,null,null,null,null,null,null,null,null,1,1,null,1,1,null,null,null,null,null,1,null,null,null,null,null,null,1,null,1,null,1,null,1,null,1]
[3109,"New Morning Imports DBA Tumbleweed","Y",null,null,null,null,null,null,null,null,null,null,1,null,null,null,null,null,null,null,null,null,null,null,null,null,null,null,null,null,null,null,null,null,null,null,null,null,null,null,null,null,null,null,null,0,null,0,0,0,0,0]
[2945,"Newco Distributors","Y",null,null,null,null,null,null,null,null,1,null,null,null,null,1,1,1,1,1,null,null,null,null,1,null,1,null,null,null,null,null,null,null,null,null,null,null,null,1,null,null,1,null,null,null,null,null,1,1]
[2916,"Next Gen International","Y",null,null,null,null,null,null,null,0,0,null,0,0,0,0,0,0,1,1,0,0,0,0,null,0,1,0,0,0,0,0,0,0,0,0,0,0,0,1,null,0,0,0,0,0,0,0,0,0,0,0]
[3419,"Nicoluzzi Industria de Racoes Ltda","Y",null,null,null,null,null,null,null,null,null,null,null,null,null,null,null,null,1,1,null,null,null,null,1]
[3334,"Night 1 Pets","Y",null,null,null,null,null,null,null,null,null,null,null,null,null,null,null,null,null,1,null,null,1,null,null,null,null,null,null,null,null,null,null,null,1]
[1161,"Nilodor/Bobbi Panter","Y",null,null,null,null,null,null,null,0,0,null,0,0,0,0,0,0,1,1,0,0,0,0,0,0,0,0,0,0,0,0,0,0,0,0,0,0,0,0,0,1,1,0,0,1,1,0,0,0,0,0]
[3005,"Nite Beam Products","Y",null,null,null,null,null,null,null,null,null,null,null,null,null,null,null,null,null,1,null,null,1,null,null,null,null,null,null,null,null,null,null,null,null,null,null,null,null,null,null,null,null,null,null,null,null,null,null,null,1]
[2981,"Nite Ize","Y",null,null,null,null,null,null,null,0,0,null,null,0,0,0,0,0,0,1,0,0,1,0,0,0,0,0,1,0,0,0,0,0,0,0,0,0,0,0,0,0,0,0,0,0,0,0,0,null,0,0]
[2609,"No Bowl Feeding System","Y",null,null,null,null,null,null,null,null,null,null,null,null,null,null,null,null,1,null,null,null,null,null,null,1]
[524,"Nordic Naturals ","Y",null,1,null,null,null,null,null,0,0,null,0,0,0,0,0,0,1,1,0,0,0,0,0,0,0,0,0,0,0,0,0,0,0,0,0,0,0,0,0,0,1,0,0,0,0,0,0,0,0,0]
[907,"Norstar Packaging","Y",null,1,null,null,null,null,null,null,null,1,null,null,null,null,null,null,1,1,null,null,null,null,1]
[3735,"North American Pet Products ","Y",null,null,null,null,null,null,null,0,0,1,0,1,1,1,null,0,1,1,0,0,0,0,0,0,null,0,null,0,null,null,1,0,1,0,0,0,0,0,0,0,0,0,0,0,0,0,0,0,0,0]
[2139,"North States","Y",null,null,null,null,null,null,null,0,0,null,0,0,0,1,0,0,0,1,0,0,0,0,0,0,0,0,0,0,0,0,0,0,0,1,null,0,1,0,0,0,0,0,0,0,0,0,0,0,0,0]
[817,"Northwest Naturals ","Y",null,1,null,null,null,null,null,0,0,null,0,0,0,0,0,0,1,1,0,0,0,0,1,0,1,0,0,0,0,0,0,0,0,0,0,0,0,0,0,0,0,0,0,0,0,0,0,0,0,0]
[4013,"Not Just Fish (4012)","Y",null,null,null,1,null,null,null,null,null,null,null,1]
[624,"NOW Pets","Y",null,1,null,null,null,null,null,null,null,null,null,null,null,null,null,null,1,1,null,null,null,null,null,null,null,null,null,null,null,null,null,null,null,null,null,null,null,null,null,null,1]
[1759,"NPIC – Premium Natural Pet Treats","Y",null,null,null,null,null,null,null,null,null,null,null,null,null,null,1,null,1,1,null,null,null,null,null,null,1,null,null,null,null,null,null,null,null,null,null,null,null,null,null,null,1]
[410,"NRG Dehydrated Dog Food","Y",null,1,null,null,null,null,null,null,null,null,null,null,null,null,null,null,null,1,null,null,null,null,1]
[829,"Nulo Pet Foods ","Y",null,1,null,null,null,null,null,0,0,null,0,0,0,0,0,0,1,1,0,0,0,0,1,0,0,0,0,0,0,0,0,0,0,0,0,0,0,0,0,0,0,0,0,0,0,0,0,0,0,0]
[426,"Nummy Tum Tum","Y",null,1,null,null,null,null,null,null,null,null,null,null,null,null,null,null,1,1,null,null,null,null,null,null,1,null,null,null,null,null,null,null,null,null,null,null,null,null,null,null,1]
[2521,"NUOVA FATTORIA SRL","Y",null,null,null,null,null,null,1,null,null,null,null,null,null,null,null,null,1,1,null,null,null,null,1]
[243,"Nupro Supplements/Nutri-pet Research Inc","Y",null,1,null,null,null,null,null,0,0,null,0,0,0,0,1,0,1,1,0,0,0,0,0,0,0,0,0,0,0,0,0,0,0,0,0,0,0,0,0,0,1,0,0,0,0,0,0,0,0,0]
[1939,"Nutramax Laboratories Veterinary Sciences","Y",null,null,null,null,null,null,null,null,null,null,null,null,null,null,null,1,1,1,null,null,null,null,null,null,null,null,null,null,null,null,null,null,null,null,null,null,null,null,null,null,1]
[408,"Nutreco Canada","Y",null,1,null,null,null,null,null,null,null,null,null,null,null,null,null,null,1,1,null,null,null,null,1]
[3419,"Nutrire Industria de Alemenos Ltda","Y",null,null,null,null,null,null,null,null,null,null,null,null,null,null,null,null,1,1,null,null,null,null,1,null,1]
[545,"Nutri-Vet Wellness LLC","Y",null,1,null,null,null,null,null,null,null,null,null,null,null,1,1,1,1,1,null,null,null,null,null,null,1,null,null,null,null,null,null,null,null,null,null,null,null,null,null,1,1]
[3613,"OASE North America","Y",null,null,null,null,null,null,null,null,null,null,null,1]
[3619,"Oasis Pet Products","Y",null,null,null,null,null,null,null,0,0,null,0,1,1,1,1,null,1,1,0,0,0,0,0,1,0,0,1,0,0,0,0,0,0,0,1,0,0,0,0,0,1,0,0,0,null,0,0,0,0,0]
[611,"OC Raw Dog","Y",null,1,null,null,null,null,null,null,null,null,null,null,null,null,null,null,1,1,null,null,null,null,1,null,1,null,null,null,null,null,null,null,null,null,null,null,null,null,null,null,1]
[1071,"Oceane","Y",null,null,null,null,null,null,null,null,null,null,1,null,null,null,null,null,1,1]
[2726,"Odorchem Manufacturing Corp","Y",null,null,null,null,null,null,1,null,null,null,null,null,null,null,null,null,1,1,null,null,null,null,null,null,null,null,null,null,null,null,null,null,null,null,null,null,null,null,null,null,null,null,null,null,1]
[4204,"Ogena Solutions","Y",null,null,null,null,null,null,null,null,null,1,null,null,null,null,null,null,null,1,null,null,null,null,null,null,null,null,null,null,null,null,null,null,null,null,null,null,null,null,null,null,null,null,1]
[1561,"OllyDog ","Y",null,null,null,null,null,null,null,0,0,null,0,0,0,0,0,0,0,1,0,null,1,0,0,1,0,0,1,0,0,0,0,0,1,0,0,0,0,0,0,0,0,0,0,0,null,0,0,0,0,0]
[1829,"Omega Paw Inc. ","Y",null,null,null,null,null,null,null,0,0,null,0,0,0,0,0,0,1,1,0,0,0,0,0,1,1,0,1,0,0,1,1,0,0,0,0,0,0,0,1,0,1,0,1,null,1,0,0,0,0,0]
[3623,"OmegaSea","Y",null,null,null,null,null,null,null,null,null,null,null,1,1]
[628,"One Fur All","Y",null,1,null,null,null,null,null,null,null,null,1,null,null,null,1,null,1,1,null,null,null,null,null,null,null,null,null,null,null,null,null,null,null,null,null,null,null,null,null,null,null,null,null,null,1]
[3961,"One Pet Planet ","Y",null,null,null,null,null,null,null,0,0,null,0,1,1,1,1,0,1,1,0,1,1,1,0,null,1,1,1,0,null,1,0,1,null,0,0,0,0,1,1,null,null,0,1,0,0,0,0,null,0,0]
[371,"Only Leash - The Only Leash Your Dog Can Wear","Y",null,null,null,null,1,null,null,null,null,null,null,null,null,null,null,null,null,1,null,null,1]
[4112,"Ono","Y",null,null,null,null,null,null,null,null,null,null,null,null,null,null,null,null,1,1,null,null,null,null,null,1]
[4757,"Oomaloo","Y",null,null,1,null,null,null,null,null,null,null,null,null,null,null,null,null,1,1,null,null,null,null,null,null,null,null,1]
[947,"Open Farm","Y",null,1,null,null,null,null,null,null,null,null,null,null,null,null,null,null,1,1,null,null,null,null,1,null,1]
[4938,"Ore' Pet by Ore Originals","Y",null,null,1,null,null,null,null,null,null,null,1,null,null,null,null,null,1,1,null,null,null,null,null,1,null,null,1,null,null,null,null,null,null,null,null,null,null,null,1]
[1054,"Organic and Nature Private Label","Y",null,1,null,null,null,null,null,null,null,1,null,null,null,null,null,null,1,1,null,null,null,null,null,null,null,null,null,null,null,null,null,null,null,null,null,null,null,null,null,null,null,null,null,1,1]
[3173,"Orient International Holding Shanghai Foreign Trade Co Ltd","Y",null,null,null,null,null,null,null,null,null,null,null,null,null,null,null,null,1,1,null,1,1,null,null,1,null,null,1,null,null,null,1,null,1,null,1,null,null,null,1,null,null,null,null,null,null,null,1,1]
[2339,"Origen Nutrition","Y",null,null,null,null,null,null,null,null,1,null,null,null,null,null,null,null,1,1,null,null,null,null,1,null,1]
[722,"Oscar Newman - CocoTherapy","Y",null,1,null,null,null,null,null,null,null,null,null,null,null,null,null,null,1,1,null,null,null,null,null,null,1,null,null,null,null,null,null,null,null,null,null,null,null,null,null,null,1]
[720,"Oscar Newman LLC","Y",null,1,null,null,null,null,null,0,0,null,0,0,0,0,0,0,0,1,0,1,0,0,0,0,null,0,1,0,0,0,0,0,0,0,0,0,0,0,0,0,null,0,0,0,0,0,0,0,0,0]
[767,"Oster Professional Products","Y",null,null,null,null,1,null,null,null,null,1,null,null,null,null,null,1,1,1,null,null,null,null,null,null,null,null,null,null,null,null,null,null,null,null,null,null,null,null,null,null,null,null,1,1,1]
[3135,"OurPet's Company","Y",null,null,null,null,null,null,null,0,0,null,0,0,0,null,0,0,1,1,0,0,1,0,0,1,1,0,1,0,1,1,0,0,0,0,0,0,0,1,1,0,1,0,0,0,0,0,0,1,0,1]
[4113,"Outward Hound & Petstages","Y",null,null,null,null,null,null,null,null,null,null,null,null,null,null,null,null,null,1,null,1,null,null,null,1,null,null,1,null,null,null,null,null,null,null,1,1]
[1309,"Oven-Baked Tradition","Y",null,1,null,null,null,null,null,null,null,null,null,null,null,null,null,null,1,1,null,null,null,null,1,null,1]
[4254,"Oxbow Animal Health","Y",null,null,null,null,null,null,null,0,0,null,0,0,1,0,1,0,0,0,0,0,0,0,0,0,0,0,0,0,0,0,0,0,0,0,0,0,0,0,0,0,0,0,0,0,0,0,0,0,0,0]
[3405,"PABY Inc.","Y",null,null,null,null,null,null,null,null,null,null,null,null,null,null,null,null,1,1,null,null,1,null,null,null,null,null,null,null,null,null,null,null,null,null,null,null,null,null,null,null,null,null,null,null,null,null,null,null,1,1]
[4824,"Paper Russells, LLC","Y",null,null,1,null,null,null,null,null,null,null,1]
[1117,"Paragon Pet Products ","Y",null,1,null,null,null,null,null,0,0,null,0,0,0,0,0,0,0,1,0,0,0,0,0,0,1,0,0,0,0,0,0,0,0,0,0,0,0,0,0,0,0,0,0,0,0,0,0,0,0,0]
[2712,"Parasol Pets, LLC","Y",null,null,null,null,null,null,1,null,null,null,null,null,null,null,null,null,1,1,null,null,null,null,null,null,null,null,null,null,null,null,null,null,1]
[2769,"Parisian Pet ","Y",null,null,null,null,null,null,null,0,0,null,0,0,0,0,0,0,0,1,0,1,1,0,0,0,0,0,0,0,0,0,1,0,1,0,1,0,0,0,0,0,0,0,0,0,0,0,0,0,0,0]
[1110,"Party Animal Inc","Y",null,1,null,null,null,null,null,null,null,null,null,null,null,null,null,null,1,1,null,null,null,null,1]
[2341,"Patchwork Pet","Y",null,null,null,null,null,null,null,0,0,null,0,0,0,0,0,0,1,1,0,0,0,0,0,0,0,0,1,0,0,0,0,0,null,0,0,0,0,0,0,0,0,0,0,0,0,0,0,0,0,0]
[2225,"PAW - Pet Adventures Worldwide, Inc.","Y",null,null,null,null,null,null,null,null,1,null,null,null,null,null,null,null,null,1,null,1,1,null,null,1,1,null,1,null,null,null,null,null,1,null,null,1,null,null,null,null,1,null,null,0,0,null,0,1,0,0]
[2973,"Paw Inspired Petcare","Y",null,null,null,null,null,null,null,null,null,null,null,null,null,null,null,null,null,1,null,null,null,null,null,null,null,null,null,null,null,null,null,null,null,null,null,null,null,null,null,null,null,null,null,null,null,null,1]
[4818,"Paw Paws USA","Y",null,null,1,null,null,null,null,null,null,null,null,null,null,null,null,null,null,1,null,null,1,null,null,null,null,null,null,null,null,null,null,null,1]
[2122,"Paw5","Y",null,null,null,null,null,null,null,null,null,null,null,null,null,null,null,null,null,1,null,null,null,null,null,1]
[1628,"Pawluxury","Y",null,null,null,null,null,null,null,null,null,null,null,null,null,null,null,null,null,1,null,null,null,null,null,null,1]
[4716,"Pawpatu","Y",null,null,1,null,null,null,null,null,null,null,null,null,null,null,null,null,null,1,null,1]
[224,"Paws & Co.","Y",null,1,null,null,null,null,null,null,null,null,null,null,null,null,null,null,null,1,null,null,null,null,null,null,1]
[1210,"Paws Gourmet Bakery","Y",null,1,null,null,null,null,null,null,null,null,null,null,null,null,null,null,null,1,null,null,null,null,null,null,1]
[2613,"Paws Pizzeria","Y",null,null,null,null,null,null,1,null,null,null,null,null,null,null,null,null,null,1,null,null,null,null,null,null,1]
[425,"Pawsitively Gourmet","Y",null,1,null,null,null,null,null,0,0,0,0,0,0,0,0,0,0,1,0,0,0,0,0,0,1,0,0,0,0,0,0,0,0,0,0,0,0,0,0,0,0,0,0]
[4434,"Pawz Dog Boots ","Y",null,null,null,null,null,null,null,0,0,null,1,0,0,0,0,0,0,1,0,1,1,0,0,0,0,0,0,0,0,0,0,0,0,0,0,0,0,0,0,0,0,0,0,0,0,0,0,0,0,0]
[4121,"PBFY Flexible Packaging","Y",null,null,null,null,null,null,null,null,null,1]
[4544,"PCI / Pet Center Inc","Y",null,null,null,null,null,null,null,0,0,null,0,0,0,null,0,0,0,1,0,0,0,0,0,0,1,0,0,0,0,0,0,0,0,0,0,0,0,0,0,0,0,0,0,0,0,0,0,0,0,0]
[4601,"Pearhead","Y",null,null,1,null,null,null,null,null,null,null,1]
[1973,"Penn Plax Inc","Y",null,null,null,null,null,null,null,0,0,null,1,1,1,1,1,0,1,1,0,null,null,0,0,1,null,null,1,0,1,1,1,null,1,0,1,1,1,1,1,null,0,0,1,0,0,0,1,1,0,0]
[4918,"Pepe & Tito","Y",null,null,1,null,null,null,null,null,null,null,null,null,null,null,null,null,null,1,null,null,1,null,null,null,null,null,null,null,null,null,null,null,1,null,1]
[1723,"Perrigo Animal Health","Y",null,null,null,null,null,null,null,null,null,null,null,null,null,null,null,null,1,1,null,null,1,null,null,1,1,1,1,null,null,null,null,1,null,null,null,null,null,null,null,1,1,1,1,1,1,null,1,1]
[2731,"Pet Acoustics Inc.","Y",null,null,null,null,null,null,1,null,null,null,1,null,null,1,null,1,1,1,null,null,1,null,null,null,null,null,null,null,null,null,1,null,1]
[3327,"Pet Age","Y",null,null,null,null,null,null,null,1,0,null,0,0,0,0,0,0,0,0,0,0,0,0,0,0,0,0,0,0,0,0,0,0,0,0,0,0,0,0,0,0,0,0,0,0,0,0,0,0,0,0]
[4500,"Pet Boss Nation","Y",null,null,null,null,null,null,null,null,null,1]
[1810,"Pet Brands","Y",null,null,null,null,null,null,null,null,null,null,null,null,null,null,null,null,null,1,null,null,null,null,null,null,1,1]
[3419,"Pet Brasil","Y",null,null,null,null,null,null,null,1,null,null,null,null,null,null,null,null,null,null,null,1,1,1,1,1,1,null,1,null,null,null,null,1,null,null,1,null,null,1,1,null,1,null,1,1,1,null,1,1,1,1]
[2927,"Pet Business Magazine","Y",null,null,null,null,null,null,null,1,0,null,0,0,0,0,0,0,0,0,0,0,0,0,0,0,0,0,0,0,0,0,0,0,0,0,0,0,0,0,0,0,0,0,0,0,0,0,0,0,0,0]
[4261,"Pet Factory","Y",null,null,null,null,null,null,null,0,0,null,0,0,0,0,0,0,0,1,0,0,0,0,0,0,0,1,null,0,0,0,0,0,0,0,0,0,0,0,0,0,0,0,0,0,0,0,0,0,0,0]
[3855,"Pet Gear Inc. ","Y",null,null,null,null,null,null,null,0,0,null,0,0,0,0,null,0,1,1,0,0,0,0,0,0,0,0,0,0,0,0,0,0,1,0,1,1,1,0,0,0,0,0,1,0,0,0,0,0,0,0]
[5047,"Pet Gifts USA","Y",null,null,1,null,null,null,null,0,0,null,1,0,0,0,0,null,null,null,0,0,0,0,0,0,0,0,0,0,0,0,0,0,0,0,0,0,0,0,0,0,0,0,0,0,0,0,0,0,0,0]
[3404,"Pet Health Solutions","Y",null,null,null,null,null,null,null,null,null,null,null,null,null,null,null,1,1,1,null,null,null,null,null,null,1,null,null,null,null,null,null,null,null,null,null,null,null,null,null,1,1,null,null,1,1,1]
[3505,"Pet Industry Joint Advisory Council (PIJAC)","Y",null,null,null,null,null,null,null,1,0,null,0,0,0,0,0,0,0,0,0,0,0,0,0,0,0,0,0,0,0,0,0,0,0,0,0,0,0,0,0,0,0,0,0,0,0,0,0,0,0,0]
[1106,"Pet International Inc","Y",null,1,null,null,null,null,null,null,null,null,null,null,null,null,null,null,null,1,null,null,null,null,null,null,1,1]
[4200,"Pet King","Y",null,null,null,null,null,null,null,null,null,null,null,null,null,null,null,null,1,1,null,null,1,null,null,1,1,1,1,null,1,1,null,1,1,null,null,null,null,null,1,null,null,null,1,null,null,null,1,1]
[4441,"Pet King Brands, Inc./Zymox","Y",null,null,null,null,null,null,null,null,null,null,null,null,null,null,null,1,1,1,null,null,null,null,null,null,null,null,null,null,null,null,null,null,null,null,null,null,null,null,null,1,1,null,null,1]
[4704,"Pet Me! Accessories","Y",null,null,1,null,null,null,null,null,null,null,null,null,null,null,null,null,null,1,null,null,1,null,null,null,null,null,1,null,null,null,null,null,1]
[2559,"Pet 'n Shape","Y",null,null,null,null,null,null,null,0,0,null,0,0,0,0,0,0,1,1,0,0,0,0,0,0,1,0,0,0,0,0,0,0,0,0,0,0,0,0,0,0,0,0,0,0,0,0,0,0,0,0]
[2654,"Pet Palette LLC ","Y",null,null,null,null,null,null,null,0,1,null,0,0,0,0,0,0,1,1,0,1,1,1,0,1,1,0,1,0,0,0,1,0,1,0,1,0,0,0,0,0,1,0,1,0,0,0,0,0,0,0]
[2821,"Pet Parents","Y",null,null,null,null,null,null,1,null,null,null,null,null,null,null,null,null,1,1,null,null,null,null,null,null,null,null,null,null,null,null,null,null,null,null,null,null,null,null,null,null,null,null,null,null,null,null,1]
[931,"Pet Product Innovations  ","Y",null,1,null,null,null,null,null,0,0,null,0,0,0,0,0,0,1,1,0,0,null,0,0,1,1,0,1,0,0,0,0,0,1,0,0,0,0,0,1,0,0,0,1,0,0,0,0,1,0,0]
[3858,"Pet Product News International","Y",null,null,null,null,null,null,null,1]
[1779,"Pet Qwerks","Y",null,null,null,null,null,null,null,null,null,null,null,null,null,null,null,null,null,1,null,null,null,null,null,null,1,null,1]
[806,"Pet Releaf","Y",null,1,null,null,null,null,null,null,null,null,null,null,null,null,null,null,1,1,null,null,null,null,null,null,1,null,null,null,null,null,null,null,null,null,null,null,null,null,null,null,1]
[3725,"Pet Retail World","Y",null,null,null,null,null,null,null,1]
[973,"Pet Society Pet Care Products / Megamazon Pet Care","Y",null,null,null,null,1,null,null,null,null,null,null,null,null,null,null,null,1,1,null,null,null,null,null,null,null,null,null,null,null,null,null,null,null,null,null,null,null,null,null,null,null,null,null,1]
[3419,"Pet Society Produtes para Animais","Y",null,null,null,null,null,null,null,null,null,1,null,null,null,null,null,null,1,1,null,null,null,null,null,null,null,null,null,null,null,null,null,null,null,null,null,null,null,null,null,null,1,null,null,1]
[2939,"Pet Store Pro (PIDA)","Y",null,null,null,null,null,null,null,1,null,1]
[2009,"Pet Store Websites","Y",null,null,null,null,null,null,null,null,null,1]
[522,"Pet Tao","Y",null,1,null,null,null,null,null,null,null,null,null,null,null,null,null,null,1,1,null,null,null,null,1,null,1,null,null,null,null,null,null,null,null,null,null,null,null,null,null,null,null,null,null,0,0,0,0,0,0,0]
[428,"Pet Trend LLC","Y",null,1,null,null,null,null,null,null,null,null,null,null,null,null,null,null,null,1,null,null,null,null,null,null,1]
[3769,"Pet Walker Plus","Y",null,null,null,null,null,null,null,null,null,null,null,null,null,null,null,null,null,1,null,null,1,null,null,1,null,null,null,null,null,null,null,null,null,null,null,null,null,null,null,null,1]
[2531,"Pet Widget","Y",null,null,null,null,null,null,1,null,null,null,null,null,null,null,null,null,null,1,null,null,null,1,null,null,null,null,null,null,null,null,null,null,null,null,null,null,null,null,null,null,null,null,null,null,null,null,null,null,null,1]
[2814,"Pet Winery","Y",null,null,null,null,null,null,1,null,null,null,null,null,null,null,null,null,1,1,null,null,null,null,null,null,1,null,null,null,null,null,null,null,null,null,null,null,null,null,null,null,1]
[2245,"Pet-Ag, Inc.","Y",null,null,null,null,null,null,null,null,null,null,null,null,null,1,1,1,1,1,null,null,null,null,1,1,1,1,null,null,null,null,null,null,null,null,null,null,null,null,null,null,1,1,1,1,1]
[559,"PetBizinsurance.com","Y",null,null,null,null,1,null,null,null,null,1]
[4008,"Petcube","Y",null,null,null,null,null,null,null,null,null,null,null,null,null,null,null,null,1,1,null,null,null,null,null,null,null,null,null,null,null,null,null,null,null,null,null,null,null,null,null,null,null,null,null,null,null,null,null,null,1,1]
[1417,"Petcurean Pet Nutrition","Y",null,1,null,null,null,null,null,0,0,null,0,0,0,0,0,0,1,1,0,0,0,0,1,0,1,0,0,0,0,0,0,0,0,0,0,0,0,0,0,0,null,0,0,0,0,0,0,0,0,0]
[4055,"PetEdge Dealer Services","Y",null,null,null,null,null,null,null,null,1,null,1,null,null,null,null,null,1,1,null,1,1,1,null,1,1,1,1,null,1,1,1,null,1,1,1,1,1,null,1,1,1,1,1,1,1,1,1,1,1]
[4270,"PetIQ","Y",null,null,null,null,null,null,null,null,null,null,null,null,null,null,null,null,1,1,null,null,1,null,null,null,1,null,null,null,null,null,null,null,null,null,null,null,null,null,null,1,1,1,null,1]
[3121,"Petique","Y",null,null,null,null,null,null,null,null,null,null,null,null,null,null,null,null,1,1,null,null,null,null,null,null,null,null,null,null,null,null,null,null,1]
[3419,"Petix Company LLC","Y",null,null,null,null,null,null,null,null,null,null,null,null,null,null,null,null,1,1,null,null,null,null,null,1,null,null,1,null,null,null,null,null,null,null,null,null,null,1,1,null,null,null,1,null,null,null,1]
[2539,"PetKind Pet Products","Y",null,null,null,null,null,null,null,null,null,null,null,null,null,null,null,null,1,1,null,null,null,null,1,null,1]
[2723,"Petland Co., LTD","Y",null,null,null,null,null,null,1,null,null,1,null,null,null,null,null,null,1,1,null,null,1]
[2655,"Petlinks","Y",null,null,null,null,null,null,null,null,null,null,null,null,null,null,null,null,1,1,null,null,null,null,null,null,null,null,1,null,1,1,1,null,1,null,null,null,null,null,1,null,null,null,null,null,1]
[4469,"Petloo","Y",null,null,null,null,null,null,null,null,null,null,null,null,null,null,null,null,1,1,null,null,null,null,null,null,null,null,null,null,null,null,null,null,null,null,null,null,null,null,null,null,null,null,null,null,1,null,null,1]
[2866,"Petlou","Y",null,null,null,null,null,null,null,0,0,null,0,0,0,0,0,0,1,1,0,0,0,0,0,0,0,0,1,0,0,0,1,0,0,0,0,0,0,0,0,0,0,0,0,0,0,0,0,0,0,0]
[3935,"Petmate ","Y",null,null,null,null,null,null,null,0,0,null,0,0,0,1,0,0,1,1,0,0,1,0,0,1,1,0,1,0,0,1,1,1,1,1,1,1,1,0,1,1,0,0,1,0,0,0,0,1,0,0]
[2554,"PetMatrix LLC","Y",null,null,null,null,null,null,null,0,0,null,0,0,0,0,0,0,0,1,0,0,0,0,0,0,1,0,0,0,0,0,0,0,0,0,0,0,0,0,0,0,0,0,0,0,0,0,0,0,0,0]
[4643,"Petote Group","Y",null,null,1,null,null,null,null,0,0,null,0,0,0,0,0,0,0,1,0,0,0,0,0,0,0,0,0,0,0,0,0,0,0,0,1,0,0,0,0,0,0,0,0,0,0,0,0,0,0,0]
[1617,"PetPals Group ","Y",null,null,null,null,null,null,null,0,0,null,0,0,0,null,null,0,1,1,0,0,0,0,0,1,0,0,1,0,0,1,1,0,1,0,1,0,0,0,1,0,0,0,0,0,0,0,0,0,0,0]
[3267,"PetRageous Designs Ltd.","Y",null,null,null,null,null,null,null,0,0,null,1,0,0,0,null,0,1,1,0,1,0,0,0,1,0,0,1,0,0,1,1,0,0,0,0,0,0,0,0,0,0,0,0,0,0,0,0,1,0,0]
[3313,"Pets First","Y",null,null,null,null,null,null,null,0,0,0,0,1,0,0,0,0,1,1,0,1,1,0,0,0,0,0,1,0,0,0,0,0,1,0,0,1,0,0,0,0,0,0,1,0,0,0,1,0,0,0]
[1239,"Pets Global-Zignature/Fussie Cat","Y",null,1,null,null,null,null,null,0,0,null,0,0,0,0,0,0,1,1,0,0,0,0,1,0,0,0,0,0,0,0,0,0,0,0,0,0,0,0,0,0,0,0,0,0,0,0,0,0,0,0]
[2679,"Pets Stop","Y",null,null,null,null,null,null,null,0,0,null,0,0,0,0,0,0,null,1,0,0,0,0,0,1,0,0,0,0,0,0,0,0,null,1,0,0,0,0,0,0,0,0,0,0,0,0,0,0,0,0]
[4458,"Pets+ Magazine (Div. of SmartWork Media)","Y",null,null,null,null,null,null,null,1]
[4469,"PetSafe","Y",null,null,null,null,null,null,null,0,0,null,1,0,0,0,0,0,1,1,null,1,1,1,0,1,1,0,1,0,0,0,0,1,1,1,0,0,null,1,1,1,1,0,0,0,1,0,0,1,1,1]
[4455,"Petsport, Inc.","Y",null,null,null,null,null,null,null,0,0,null,1,0,0,0,null,0,1,1,0,0,null,0,0,1,null,0,1,0,null,0,0,0,0,0,0,0,0,0,0,0,0,0,0,0,0,0,0,1,0,0]
[355,"PetzLife","Y",null,1,null,null,null,null,null,0,0,null,0,0,0,0,0,0,1,1,0,0,null,0,0,0,1,0,0,0,0,0,0,0,0,0,0,0,0,0,0,1,1,1,null,1,1,0,0,0,0,0]
[2810,"PetzPaws","Y",null,null,null,null,null,null,1,null,null,null,1,null,null,null,null,null,1,1,null,null,null,null,null,1,null,null,null,null,null,null,null,null,null,null,null,null,null,null,null,null,null,null,null,null,1]
[3205,"Pharma Supply","Y",null,null,null,null,null,null,null,null,null,null,null,null,null,null,null,null,1,1,null,null,null,null,null,null,null,null,null,null,null,null,null,null,null,null,null,null,null,null,null,null,1,null,null,null,null,null,1]
[3455,"Phillips Pet Food & Supplies ","Y",null,null,null,null,null,null,null,null,1,null,null,1,1,1,1,1,1,1,null,1,1,1,1,1,1,1,1,1,1,1,1,1,1,1,1,1,1,1,1,1,1,1,1,1,1,1,1,1,1]
[2939,"PIDA (Pet Store Pro)","Y",null,null,null,null,null,null,null,1,null,1,0,0,0,0,0,0,0,0,0,0,0,0,0,0,0,0,0,0,0,0,0,0,0,0,0,0,0,0,0,0,0,0,0,0,0,0,0,0,0,0]
[2704,"Pillow With A Heart, LLC","Y",null,null,null,null,null,null,null,null,null,null,null,null,null,null,null,null,1,1,null,null,null,null,null,null,null,null,null,null,null,null,null,null,1]
[2706,"PillStashios","Y",null,null,null,null,null,null,null,null,null,null,null,null,null,null,null,null,null,1,null,null,null,null,null,null,1,null,null,null,null,null,null,null,null,null,null,null,null,null,null,null,1]
[3254,"Pinnacle","Y",null,null,null,null,null,null,null,null,null,null,null,null,null,null,null,null,1,1,null,null,null,null,1]
[3106,"Pinogy Retail Services","Y",null,null,null,null,null,null,null,null,null,1]
[2667,"Pioneer Pet Products","Y",null,null,null,null,null,null,null,0,0,null,null,null,0,0,0,0,1,null,0,0,0,0,0,1,0,0,1,0,null,1,1,0,null,0,null,0,0,1,1,0,0,0,0,0,0,0,0,0,0,0]
[3419,"Pipi Dollys LTDA","Y",null,null,null,null,null,null,null,null,null,null,null,null,null,null,null,null,null,1,null,null,null,null,null,null,null,null,null,null,null,null,null,null,null,null,null,null,null,null,null,null,null,null,null,null,null,null,null,1]
[4218,"Pisces USA","Y",null,null,null,null,null,null,null,null,null,null,null,1,1]
[1509,"PK Endeavors - GNC Pets","Y",null,null,null,null,null,null,null,null,null,null,null,null,null,null,null,null,1,1,null,null,null,null,null,null,1,null,null,null,null,null,null,null,null,null,null,null,null,null,null,null,1,null,null,1]
[216,"PL360","Y",null,1,null,null,null,null,null,null,null,null,null,null,null,null,null,null,null,1,null,null,null,null,null,null,null,null,null,null,null,null,null,null,null,null,null,null,null,null,null,null,1,null,null,1,1,1]
[4534,"Planet Dog ","Y",null,null,null,null,null,null,null,0,0,null,1,0,0,0,0,0,0,1,0,0,1,0,0,1,null,0,1,0,0,0,0,0,0,0,0,0,0,0,0,0,0,0,0,null,0,0,0,0,0,0]
[347,"Plato Pet Treats ","Y",null,1,null,null,null,null,null,0,0,null,0,0,0,0,0,0,0,1,0,0,0,0,0,0,1,0,0,0,0,0,0,0,0,0,0,0,0,0,0,0,1,0,0,0,0,0,0,0,0,0]
[4855,"PLAY Pet Lifestyle And You","Y",null,null,1,null,null,null,null,null,null,null,1,null,null,null,null,null,1,1,null,null,null,null,null,1,null,null,1,null,null,1,1,null,1]
[2557,"PlayaPup (Plangea Inc.)","Y",null,null,null,null,null,null,null,null,null,null,null,null,null,null,null,null,null,1,null,1,null,null,null,null,null,null,null,null,null,null,null,null,null,null,null,null,null,null,null,null,null,null,null,null,null,null,1]
[2475,"Plush","Y",null,null,null,null,null,null,null,null,null,null,null,null,null,null,null,null,null,1,null,null,1]
[4006,"Pod Trackers","Y",null,null,null,null,null,null,null,null,null,null,null,null,null,null,null,null,1,1,null,null,1,null,null,null,null,null,null,null,null,null,null,null,null,null,null,null,null,null,null,null,null,null,null,null,null,null,null,null,1,1]
[223,"Polkadog Bakery","Y",null,1,null,null,null,null,null,null,null,null,1,null,null,null,null,null,null,1,null,null,null,null,null,null,1]
[1070,"Polyfirst Packaging Inc.","Y",null,null,null,null,1,null,null,null,null,1]
[2729,"Poo Doo Leash","Y",null,null,null,null,null,null,1,null,null,null,1,null,null,null,null,null,null,1,null,1,1,null,null,1]
[2529,"Poo Vault","Y",null,null,null,null,null,null,1,null,null,null,null,null,null,null,null,null,null,1,null,null,null,null,null,null,null,null,null,null,null,null,null,null,null,null,null,null,null,null,null,null,null,null,null,null,null,null,null,1]
[4639,"Pooch Outfitters","Y",null,null,1,null,null,null,null,0,0,null,0,0,0,0,0,0,0,1,0,1,1,0,0,0,0,0,0,0,0,0,0,0,0,0,0,0,0,0,0,0,0,0,0,0,0,0,0,0,0,0]
[4729,"Poochie-Pets, Home of PoochieBells","Y",null,null,1,null,null,null,null,0,0,null,1,0,0,0,0,0,0,1,0,0,1,0,0,null,0,0,0,0,0,0,0,1,0,0,0,0,0,0,0,0,null,0,1,null,null,null,0,1,0,0]
[3804,"Pooch-o","Y",null,null,null,null,null,null,null,null,null,null,null,null,null,null,null,null,null,1,null,1]
[2033,"PoochPad Products","Y",null,null,null,null,null,null,null,null,null,null,null,null,null,null,null,null,null,1,null,null,null,null,null,null,null,null,null,null,null,null,null,null,1,null,null,null,null,null,null,null,null,null,null,null,1,null,1,1]
[1133,"Portland Pet Food Company","Y",null,1,null,null,null,null,null,null,null,null,null,null,null,null,null,null,null,1,null,null,null,null,1,null,1]
[3912,"Poseidon Aquatics (3913)","Y",null,null,null,1,null,null,null,null,1,null,null,1,1,null,1]
[3945,"Prairie Dog Pet Products","Y",null,null,null,null,null,null,null,0,0,null,0,0,0,0,0,0,0,1,0,0,null,0,0,0,1,0,0,0,0,0,0,0,0,0,0,0,0,0,0,0,0,0,0,0,0,0,0,0,0,0]
[855,"Precise Pet Products ","Y",null,1,null,null,null,null,null,0,0,null,0,0,0,0,0,0,1,1,0,0,0,0,1,0,1,0,0,0,0,0,0,0,0,0,0,0,0,0,0,0,0,0,0,0,0,0,0,0,0,0]
[3667,"Prefer Pets ","Y",null,null,null,null,null,null,null,null,null,null,null,null,null,null,null,null,1,1,null,null,null,null,null,null,null,null,null,null,null,null,null,null,null,null,1]
[4035,"Premium Pet Solutions","Y",null,null,null,null,null,null,null,null,null,null,null,null,null,null,null,null,null,1,null,null,null,null,null,null,1,null,1]
[3668,"Preppy Puppy Bakery ","Y",null,null,null,null,null,null,null,0,0,null,0,0,0,0,0,0,0,1,0,0,0,0,0,0,1,0,0,0,0,0,0,0,0,0,0,0,0,0,0,0,0,0,0,0,0,0,0,0,0,0]
[239,"Presidio Natural Pet","Y",null,1,null,null,null,null,null,null,null,null,null,null,null,null,null,null,null,1,null,null,null,null,null,null,null,null,null,null,null,null,null,null,null,null,null,null,null,null,null,null,1]
[3040,"Prestolabels.com","Y",null,null,null,null,null,null,null,null,null,1]
[4742,"Preston","Y",null,null,1,null,null,null,null,0,0,null,1,0,0,0,0,0,1,1,0,0,1,0,0,0,0,0,0,0,0,0,0,0,0,0,0,0,0,0,0,0,0,0,0,0,0,0,0,0,0,0]
[2819,"Pretty Paw","Y",null,null,null,null,null,null,1,null,null,null,null,null,null,null,null,null,null,1,null,null,1]
[4440,"Prevue Pet Products","Y",null,null,null,null,null,null,null,0,0,null,0,0,1,1,1,0,1,1,0,0,null,0,0,null,0,0,1,0,0,1,1,1,0,0,1,null,0,0,0,0,0,0,0,0,0,0,0,1,null,0]
[539,"Primal Pet Foods","Y",null,1,null,null,null,null,null,0,0,null,0,0,0,0,0,0,1,1,0,0,0,0,1,0,1,0,0,0,0,0,0,0,0,0,0,0,0,0,0,0,0,0,0,0,0,0,0,0,0,0]
[2713,"Primalvore Natural Pet Foods","Y",null,null,null,null,null,null,1,null,null,null,null,null,null,null,null,null,null,1,null,null,null,null,null,null,1,null,null,null,null,null,null,null,null,null,null,null,null,null,null,null,1]
[2724,"Primenove SRL","Y",null,null,null,null,null,null,1,null,null,null,null,null,null,null,1,null,1,1,null,null,1,null,null,1,null,null,null,null,null,null,null,null,null,null,1,null,null,null,null,null,1,null,null,null,null,null,null,1]
[2675,"Primetime Petz ","Y",null,null,null,null,null,null,null,0,0,null,0,0,0,0,0,0,1,1,0,0,0,0,0,0,0,0,0,0,0,0,1,0,null,1,0,0,1,0,0,0,0,0,0,0,0,0,0,0,0,0]
[2517,"Prints Charming","Y",null,null,null,null,null,null,1,null,null,null,1]
[3717,"Pro Clear Aquatic Systems","Y",null,null,null,null,null,null,null,null,null,1,null,1]
[3325,"Procao","Y",null,null,null,null,null,null,null,null,null,null,null,null,null,null,null,null,1,1,null,null,null,null,null,null,null,null,null,null,null,null,null,null,null,null,null,null,null,null,null,null,null,null,null,1]
[2878,"Promika, LLC","Y",null,null,null,null,null,null,null,null,null,null,null,null,null,null,null,null,1,1,null,null,1,null,null,null,null,null,null,null,null,null,null,null,null,null,null,null,null,null,null,null,1,1,null,1]
[971,"Protective Pet Solutions, LLC","Y",null,null,null,null,1,null,null,null,null,null,null,null,null,null,null,1,null,1,null,null,1,null,null,null,null,null,null,null,null,null,null,null,null,null,null,null,null,null,null,null,1]
[3306,"Protege Biomedical","Y",null,null,null,null,null,null,null,null,null,null,null,null,null,null,null,null,1,1,null,null,null,null,null,null,null,null,null,null,null,null,null,null,null,null,null,null,null,null,null,null,1]
[2524,"Pudus Brand","Y",null,null,null,null,null,null,1,null,null,null,null,null,null,null,null,null,null,1,null,1]
[2516,"PullNot Leash Inc.","Y",null,null,null,null,null,null,1,null,null,null,null,null,null,null,null,null,null,1,null,null,1]
[2625,"Punati Chemical Corp","Y",null,null,null,null,null,null,1,null,null,null,null,null,null,null,null,null,1,1,null,null,null,null,null,null,null,null,null,null,null,null,null,null,null,null,null,null,null,null,null,null,null,null,null,1,1]
[4835,"Puppia International Inc. (Puppia)","Y",null,null,1,null,null,null,null,0,0,null,0,0,0,0,0,0,1,1,0,1,1,0,0,0,0,0,null,0,0,0,1,0,1,0,1,1,0,0,0,0,0,0,0,0,0,0,0,1,0,0]
[5160,"Puppy Cake","Y",null,null,1,null,null,null,null,0,0,0,0,0,0,0,0,0,0,1,0,0,0,0,0,0,1,0,0,0,0,0,0,0,0,0,0,0,0,0,0,0,0,0,0]
[4723,"Puppy Kisses","Y",null,null,1,null,null,null,null,null,null,null,1,null,null,null,null,null,null,1,0,1,1,1,0,1,1,0,1,0,0,0,0,0,1,0,1,1,0,0,0,1,1,1,1,1,null,null,null,1]
[373,"Puppy PlayGround.com","Y",null,null,null,null,1,null,null,null,null,null,null,null,null,null,null,null,null,1,null,null,null,null,null,null,null,null,1,1,null,null,null,null,1,null,null,null,null,null,null,null,null,null,1]
[1817,"Pura Naturals Pet","Y",null,null,null,null,null,null,null,null,null,null,null,null,null,null,null,1,1,1,null,null,null,null,null,1,null,null,null,null,null,null,null,null,1,null,null,null,null,null,null,1,1,1,null,1,null,1]
[555,"Pure Treats Inc. ","Y",null,1,null,null,null,null,null,0,0,null,0,0,0,0,0,0,1,1,0,0,0,0,null,0,1,0,0,0,0,0,0,0,0,0,0,0,0,0,0,0,1,0,0,0,0,0,0,0,0,0]
[375,"Purina Pro Plan","Y",null,null,null,null,1,null,null,null,null,null,null,null,null,null,null,null,1,1,null,null,null,null,1,null,1]
[3705,"Pyranha","Y",null,null,null,null,null,null,null,null,null,null,null,null,null,null,1,1,1,1,null,null,null,null,null,null,null,null,null,null,null,null,null,null,null,null,null,null,null,null,null,null,null,1,null,1,1]
[3828,"Python Products","Y",null,null,null,null,null,null,null,0,0,null,0,1,null,0,null,0,0,0,0,0,0,0,0,0,0,0,0,0,0,0,0,0,0,0,0,0,0,0,0,0,0,0,0,0,0,0,0,0,0,0]
[3175,"Qingdao Haide Packaging Co Ltd","Y",null,null,null,null,null,null,null,null,null,1]
[455,"QT Dog","Y",null,1,null,null,null,null,null,0,0,null,null,0,0,1,null,0,1,1,0,0,null,0,0,1,1,0,0,0,0,0,0,0,null,0,0,0,0,0,0,null,0,0,0,0,0,0,0,0,0,0]
[3928,"Quality Marine (3929)","Y",null,null,null,1,null,null,null,null,1,null,null,1]
[1359,"Quick-Tag ","Y",null,null,null,null,null,null,null,null,null,null,null,null,null,null,null,null,1,1,null,null,null,1]
[4323,"R W Rogers Company","Y",null,null,null,null,null,null,null,null,null,1]
[3305,"Rabbit Air","Y",null,null,null,null,null,null,null,null,null,null,null,null,null,null,null,null,1,1,null,null,null,null,null,null,null,null,null,null,null,null,null,null,null,null,null,null,null,null,null,null,null,null,null,null,1]
[1010,"Rad Cat Raw Diet","Y",null,1,null,null,null,null,null,0,0,0,0,0,0,0,0,0,1,0,0,0,0,0,1,0,0,0,0,0,0,0,0,0,0,0,0,0,0,0,0,0,0,0,0]
[3435,"RC Pet Products ","Y",null,null,null,null,null,null,null,0,0,null,0,0,0,0,0,0,1,1,0,1,1,0,0,1,0,0,1,0,0,0,0,0,null,0,0,1,0,0,0,0,1,0,0,0,0,0,0,0,0,0]
[2028,"Red Dingo","Y",null,null,null,null,null,null,null,null,null,null,null,null,null,null,null,null,1,1,null,1,1,1,null,1,null,null,1,null,null,null,null,null,1,null,null,null,null,null,null,null,null,null,null,null,null,null,null,1]
[619,"Red River Commodities","Y",null,1,null,null,null,null,null,null,null,1,null,null,null,1]
[2055,"Redbarn Pet Products ","Y",null,null,null,null,null,null,null,0,0,null,0,0,0,0,0,0,1,1,0,0,0,0,1,0,1,1,0,0,0,0,0,0,0,0,0,0,0,0,0,0,0,0,0,0,0,0,0,0,0,0]
[1709,"Redmond Minerals","Y",null,null,null,null,null,null,null,null,null,null,null,null,null,null,null,1]
[4126,"ReeFlowers","Y",null,null,null,null,null,null,null,null,null,null,null,1]
[311,"Reilly's HempVet, LLC","Y",null,1,null,null,null,null,null,null,null,null,null,null,null,null,null,null,null,1,null,null,null,null,null,null,null,null,null,null,null,null,null,null,null,null,null,null,null,null,null,null,1]
[338,"Reliq Pet LLC","Y",null,1,null,null,null,null,null,0,0,1,0,0,0,0,0,0,1,1,0,0,0,0,0,0,0,0,0,0,0,0,0,0,0,0,0,0,0,0,0,0,1,0,0,1,1]
[1154,"Replenish Pet, Inc. ","Y",null,1,null,null,null,null,null,null,null,null,null,null,null,null,null,null,1,1,null,null,null,null,1]
[729,"RescuePetFoods, LLC","Y",null,1,null,null,null,null,null,null,null,null,null,null,null,null,null,null,null,1,null,null,null,null,1,null,1,null,null,null,null,null,null,null,null,null,null,null,null,null,null,null,1]
[325,"Response Products/Cetyl M","Y",null,1,null,null,null,null,null,null,null,null,null,null,null,null,null,1,null,1,null,null,null,null,null,null,1,null,null,null,null,null,null,null,null,null,null,null,null,null,null,null,1]
[1945,"Richell USA Inc. ","Y",null,null,null,null,null,null,null,0,0,null,0,0,0,0,null,0,1,1,0,0,0,0,0,1,0,0,0,0,0,0,1,null,1,1,1,0,1,0,0,0,0,0,0,0,0,0,1,0,0,0]
[4100,"Rico Industries","Y",null,null,null,null,null,null,null,null,null,null,null,null,null,null,null,null,null,1,null,1,1]
[620,"Riley's Organics","Y",null,1,null,null,null,null,null,null,null,null,null,null,null,null,null,null,null,1,null,null,null,null,null,null,1]
[1955,"Rio Grande Service Center","Y",null,null,null,null,null,null,null,null,1,null,null,null,null,1,1,1,1,1,null,1,1,1,1,1,1,1,1,1,1,1,1,1,1,1,1,1,1,1,1,1,1,1,1,1,1,1,1,1,1]
[759,"Rizone Group USA LLC","Y",null,null,null,null,1,null,null,null,null,1]
[4826,"RN Design","Y",null,null,1,null,null,null,null,null,null,null,null,null,null,null,null,null,1,1,null,null,1]
[2618,"RocatDesign","Y",null,null,null,null,null,null,1,null,null,null,null,null,null,null,null,null,1,null,null,null,null,null,null,null,null,null,null,null,null,null,null,null,null,null,1]
[4706,"ROK straps Global Corp","Y",null,null,1,null,null,null,null,null,null,null,null,null,null,null,null,null,null,1,null,null,1]
[1255,"Royal Canin","Y",null,1,null,null,null,null,null,null,null,null,null,null,null,null,null,null,1,1,null,null,null,null,1]
[1917,"Royal Pet Inc. ","Y",null,null,null,null,null,null,null,0,0,null,0,0,1,0,0,0,1,1,0,1,null,0,0,1,1,1,1,0,0,1,0,0,null,0,0,0,null,0,1,0,0,0,null,0,1,0,1,1,0,0]
[3006,"RPM, Inc. / Drymate","Y",null,null,null,null,null,null,null,null,null,null,null,1,null,1,1,null,1,1,null,1,null,null,null,1,null,null,null,null,null,null,null,null,1,null,null,null,null,null,null,null,null,null,null,null,null,null,null,1]
[4861,"Rubie's Pet Shop Boutique","Y",null,null,1,null,null,null,null,0,0,null,0,0,0,0,0,0,1,1,0,1,null,0,0,0,0,0,0,0,0,0,0,0,0,0,0,0,0,0,0,0,0,0,0,0,0,0,0,0,0,0]
[4428,"Ruff Dawg","Y",null,null,null,null,null,null,null,0,0,null,0,0,0,0,0,0,0,1,0,0,0,0,0,0,0,0,1,0,0,0,0,0,0,0,0,0,0,0,0,0,0,0,0,0,0,0,0,0,0,0]
[1967,"RuffWear","Y",null,null,null,null,null,null,null,0,0,null,0,0,0,0,0,0,0,1,0,1,1,0,0,1,null,0,1,0,0,0,0,0,1,0,0,1,0,0,0,0,null,0,0,0,0,0,0,0,0,0]
[2978,"Rufus & Coco Global PTY LTD","Y",null,null,null,null,null,null,null,null,null,null,null,null,1,1,1,null,1,1,null,null,1,1,null,1,null,null,1,null,null,null,null,null,1,null,null,1,null,1,1,null,1,1,1,1,1]
[1679,"Rush Direct","Y",null,null,null,null,null,null,null,0,0,null,0,0,0,0,0,null,1,1,0,0,0,0,null,1,1,1,0,0,0,0,0,0,0,0,0,0,0,0,0,0,0,0,0,0,0,0,0,0,0,0]
[667,"Ryan's Pet Supplies","Y",null,null,null,null,1,null,null,null,1,null,1,null,null,null,null,null,1,1,1,1,1,1,null,1,1,1,1,1,1,1,1,1,1,1,1,1,1,1,1,1,1,1,1,1,1,1,1,1,1]
[2526,"Sally Snacks","Y",null,null,null,null,null,null,1,null,null,null,null,null,null,null,null,null,null,1,null,null,null,null,null,null,1]
[3811,"San Francisco Bay Brand","Y",null,null,null,null,null,null,null,0,0,null,0,1,1,1,0,0,0,0,0,0,0,0,0,0,0,0,0,0,0,0,0,0,0,0,0,0,0,0,0,0,0,0,0,0,0,0,0,0,0,0]
[1923,"Sauder Woodworking Co","Y",null,null,null,null,null,null,null,null,null,null,null,null,null,null,null,null,1,1,null,null,null,null,null,null,null,null,null,null,null,null,1]
[4445,"Savory Prime Pet Treats","Y",null,null,null,null,null,null,null,null,null,null,null,null,null,null,null,null,null,1,null,null,null,null,null,null,1,1]
[4702,"Scandical","Y",null,null,1,null,null,null,null,null,null,null,1]
[3072,"Scaredy Cut","Y",null,null,null,null,null,null,null,null,null,null,null,null,null,null,null,null,1,1,null,null,null,null,null,null,null,null,null,null,null,null,null,null,null,null,null,null,null,null,null,null,null,null,1]
[3422,"Scarlett","Y",null,null,null,null,null,null,null,null,null,null,null,null,null,1,1]
[4469,"Scoopfree","Y",null,null,null,null,null,null,null,null,null,null,null,null,null,null,null,null,1,null,null,null,null,null,null,null,null,null,null,null,null,null,null,null,null,null,null,null,null,1,1]
[1854,"Scott Pet","Y",null,null,null,null,null,null,null,null,null,null,null,null,null,1,null,null,null,1,null,null,1,null,null,1,1,null,1,null,null,null,null,1,null,null,null,null,null,null,null,null,null,null,1]
[4744,"Scout & Zoe's","Y",null,null,1,null,null,null,null,null,null,null,null,null,null,1,1,1,1,1,null,null,null,null,null,1,1,null,null,null,null,null,null,null,null,null,null,null,null,null,null,null,1]
[568,"Scrubby Pet, LLC","Y",null,null,null,null,1,null,null,null,null,null,null,null,null,null,null,null,null,1,null,null,null,null,null,null,null,null,null,null,null,null,null,null,null,null,null,null,null,null,null,null,null,null,1]
[3007,"Select-A-Vision","Y",null,null,null,null,null,null,null,0,0,0,1,0,0,0,0,0,0,0,0,0,0,0,0,0,0,0,0,0,0,0,0,0,0,0,0,0,0,0,0,0,0,0,0]
[3801,"Sentiments","Y",null,null,null,null,null,null,null,null,null,null,null,null,null,null,null,null,1,1,0,0,0,0,0,1,0,0,0,0,0,0,1,0,1]
[3721,"Sera North America, Inc.","Y",null,null,null,null,null,null,null,null,null,null,null,1,1,null,null,null,null,null,null,null,null,null,null,null,null,null,null,null,null,null,null,null,null,null,null,null,null,null,null,null,null,null,null,0,0,0,0,0,0,0]
[3177,"Shandong Jingxin Non-Woven Prod. Co., Ltd.","Y",null,null,null,null,null,null,null,null,null,null,null,null,null,null,null,null,1,1,null,null,null,null,null,null,null,null,null,null,null,null,null,null,null,null,null,null,null,1,null,null,null,null,null,null,null,1,1]
[2628,"Shed Defender","Y",null,null,null,null,null,null,1,null,null,null,null,null,null,null,null,null,null,1,null,1,null,null,null,null,null,null,null,null,null,null,null,null,null,null,null,null,null,null,null,null,1]
[3275,"Shenzhen Heyi Precision Pump Tech Co Ltd","Y",null,null,null,null,null,null,null,null,null,null,null,1]
[3270,"Shenzhen Trainertec Electronic Co., Ltd","Y",null,null,null,null,null,null,null,null,null,null,null,null,null,null,null,null,null,1,null,null,1,null,null,null,null,null,null,null,null,null,null,1,null,null,null,null,null,null,null,null,null,null,null,null,null,null,null,null,1]
[2655,"SHERPA","Y",null,null,null,null,null,null,null,null,null,null,null,null,null,null,null,null,1,1,null,null,null,null,null,null,null,null,null,null,null,null,null,null,null,null,1,1]
[567,"Shor-Line","Y",null,null,null,null,1,null,null,null,null,1,null,null,null,null,null,null,1,1,null,null,null,null,null,1,null,null,null,null,null,null,null,null,null,null,1,null,1,null,null,null,null,null,1]
[423,"Sierra Packaging and Converting","Y",null,1,null,null,null,null,null,null,null,1]
[3321,"SiliDog - The Silent Pet Tag","Y",null,null,null,null,null,null,null,null,null,null,null,null,null,null,null,null,null,1,null,null,null,1]
[2133,"Silver Paw","Y",null,null,null,null,null,null,null,null,null,null,null,null,null,null,null,null,null,1,null,1,1,null,null,null,null,null,null,null,null,null,null,null,1,null,null,null,null,null,null,null,null,null,null,null,null,1]
[4828,"Silverfoot","Y",null,null,1,null,null,null,null,null,null,null,null,null,null,null,null,null,1,1,null,null,1,1,null,1,null,null,null,null,null,null,null,null,null,null,null,null,null,null,null,null,null,null,null,null,null,null,null,1]
[521,"Simply Fido LLC ","Y",null,1,null,null,null,null,null,0,0,null,0,0,0,0,0,0,1,1,0,0,0,0,0,null,0,0,1,0,0,0,1,0,1,0,0,null,null,0,0,0,0,0,0,0,0,0,0,0,0,0]
[2832,"SIT Gear","Y",null,null,null,null,null,null,1,null,null,null,null,null,null,null,null,null,null,1,null,1,1,null,null,null,null,null,null,null,null,null,null,null,null,null,null,1]
[3076,"Skout's Honor","Y",null,null,null,null,null,null,null,null,null,null,null,null,null,null,null,null,1,1,null,null,null,null,null,null,null,null,null,null,null,null,null,null,null,null,null,null,null,null,null,null,null,null,null,null,1]
[1206,"Skylos Naturals","Y",null,1,null,null,null,null,null,null,null,null,null,null,null,null,null,null,null,1,null,null,null,null,1]
[2528,"Sleekez","Y",null,null,null,null,null,null,1,null,null,null,null,null,null,null,null,1,1,1,null,null,null,null,null,null,null,null,null,null,null,null,null,null,null,null,null,null,null,null,null,null,null,null,1]
[4720,"Sleepypod ","Y",null,null,1,null,null,null,null,null,null,null,null,null,null,null,1,null,1,1,null,null,1,null,null,1,null,null,null,null,null,null,null,null,1,null,1,1]
[517,"Smallbatch Pet Food Co.","Y",null,1,null,null,null,null,null,null,null,null,null,null,null,null,null,null,1,1,null,null,null,null,1,null,1]
[909,"Smart Cookie Barkery","Y",null,1,null,null,null,null,null,null,null,null,null,null,null,null,null,null,null,1,null,null,null,null,null,null,null,null,null,null,null,null,null,null,null,null,null,null,null,null,null,null,1]
[858,"Smart Hair & Beauty Products Co., Ltd.","Y",null,null,null,null,1,null,null,null,null,1,null,null,null,null,null,null,null,null,null,null,null,null,null,null,null,null,null,null,null,null,null,null,null,null,null,null,null,null,null,null,null,null,1]
[3601,"SmartPetLove","Y",null,null,null,null,null,null,null,null,null,null,null,null,null,null,null,null,1,1,null,null,1,null,null,null,null,null,1,null,null,null,null,1,1,null,1,null,1,null,null,1,null,null,null,null,null,null,null,1]
[1830,"Smokehouse Pet Products ","Y",null,null,null,null,null,null,null,0,0,null,0,0,0,0,0,0,0,1,0,0,null,null,0,0,1,0,0,0,0,0,0,0,0,0,0,0,0,0,0,null,null,0,null,null,0,null,0,0,0,0]
[4709,"Smoochy Poochy, Inc.","Y",null,null,1,null,null,null,null,null,null,null,null,null,null,null,null,null,null,1,null,null,1,null,null,null,null,null,null,null,null,null,null,null,null,null,null,null,null,null,null,null,null,null,null,0,0,0,0,0,0,0]
[3624,"Snap Lock Chicken Coops","Y",null,null,null,null,null,null,null,null,null,null,null,null,null,1]
[1006,"Snappy Tom Pet Supply","Y",null,1,null,null,null,null,null,null,null,null,null,null,null,null,null,null,1,null,null,null,null,null,1,null,null,null,null,null,null,null,null,null,null,null,null,null,null,1]
[244,"Snif Snax","Y",null,1,null,null,null,null,null,null,null,null,null,null,null,null,null,null,1,1,null,null,null,null,null,null,1]
[832,"Snook's Pet Products LLC","Y",null,1,null,null,null,null,null,null,null,null,null,null,null,null,null,null,null,1,null,null,null,null,null,null,1,null,null,null,null,null,null,null,null,null,null,null,null,null,null,null,1,null,null,1]
[5161,"Snoozer Pet Products","Y",null,null,1,null,null,null,null,null,null,null,null,null,null,null,null,null,null,1,null,1,1,null,null,1,null,null,null,null,null,null,1,null,1,null,1,1,null,null,null,null,null,null,null,null,1]
[3026,"Snow Leopard Trust","Y",null,null,null,null,null,null,null,1,null,null,1,null,null,null,null,null,1,1,null,null,null,null,null,null,null,null,1]
[238,"So Bright, LLC","Y",null,1,null,null,null,null,null,0,0,0,0,0,0,0,0,0,1,1,0,0,0,0,null,0,1,0,0,0,0,0,0,0,0,0,0,0,0,0,0,0,0,0,0,0,0,0,0,0,0,0]
[4341,"Soda Pup / True Dogs, LLC","Y",null,null,null,null,null,null,null,null,null,null,null,null,null,null,null,null,null,1,null,null,null,null,null,null,null,null,1]
[1170,"Soft Intelligence","Y",null,null,null,null,null,null,null,null,null,1]
[4321,"Soggy Doggy ","Y",null,null,null,null,null,null,null,0,0,0,0,0,0,0,0,0,0,1,0,0,0,0,0,null,0,0,0,0,0,0,0,0,1,0,0,0,0,0,0,0,0,0,0]
[1233,"Sojos","Y",null,1,null,null,null,null,null,0,0,null,0,0,0,0,0,0,1,1,0,0,0,0,1,0,1,0,0,0,1,0,0,0,0,0,0,0,0,0,0,0,0,0,0,0,0,0,0,0,0,0]
[1339,"Solid Gold Pet","Y",null,1,null,null,null,null,null,null,null,null,null,null,null,null,null,null,1,1,null,null,null,null,1,null,1,null,null,null,null,null,null,null,null,null,null,null,null,null,null,null,1]
[3476,"Solvit Products","Y",null,null,null,null,null,null,null,0,0,0,0,0,0,0,0,0,1,1,0,0,1,0,0,0,0,0,0,0,0,1,1,0,1,0,1,1,null,0,null,0,1,0,0]
[3926,"Southland Aquatics (3927)","Y",null,null,null,1,null,null,null,null,1,null,null,1]
[2827,"Sovereign Silver","Y",null,null,null,null,null,null,1,null,null,null,null,null,null,null,null,null,1,1,null,null,null,null,null,null,null,null,null,null,null,null,null,null,null,null,null,null,null,null,null,null,1]
[2622,"Spaw Day Dog Shampoo","Y",null,null,null,null,null,null,1,null,null,null,null,null,null,null,null,null,null,1,null,null,null,null,null,null,null,null,null,null,null,null,null,null,null,null,null,null,null,null,null,null,null,1,null,1,1]
[3535,"Spectrum Brands PHG","Y",null,null,null,null,null,null,null,null,null,null,null,1,null,1,1,1,1,1,null,null,null,null,null,null,1,1,null,null,null,null,null,null,1,null,1,null,null,1,1,1,1,1,1,1,1,1,1,1]
[228,"Spina Organics","Y",null,1,null,null,null,null,null,null,null,null,null,null,null,null,null,null,1,1,null,null,null,null,null,null,null,null,null,null,null,null,null,null,null,null,null,null,null,null,null,null,null,null,null,1]
[4728,"Spoiled Rotten Dogz","Y",null,null,1,null,null,null,null,null,null,null,1]
[4647,"Sporn","Y",null,null,1,null,null,null,null,null,null,null,1,1,1,null,null,null,1,1,null,null,1,null,null,null,1,null,1]
[4469,"SportDOG","Y",null,null,null,null,null,null,null,null,null,null,1,null,null,null,null,null,null,1,null,null,1,null,null,null,null,null,null,null,null,null,null,1,null,null,null,null,null,null,null,null,null,null,null,null,null,null,null,null,1,1]
[1823,"Spunky Pup","Y",null,null,null,null,null,null,null,null,null,null,null,null,null,null,null,null,null,1,null,null,null,null,null,null,null,null,1]
[1908,"Spurrs Big Fix","Y",null,null,null,null,null,null,null,null,null,null,null,null,null,null,null,1,null,1,null,null,null,null,null,null,null,null,null,null,null,null,null,null,null,null,null,null,null,null,null,null,1]
[975,"StainOut System","Y",null,null,null,null,1,null,null,null,null,1,null,null,null,null,null,null,1,1,null,null,null,null,null,null,null,null,null,null,null,null,null,null,null,null,null,null,null,null,null,null,null,null,1,null,1]
[360,"Star brite","Y",null,null,null,null,1,null,null,null,null,null,null,null,null,null,null,null,1,1,null,null,null,null,null,null,null,null,null,null,null,null,null,null,null,null,null,null,null,null,null,null,null,null,null,null,1]
[3513,"Starmark Pet Products","Y",null,null,null,null,null,null,null,0,0,null,0,0,0,0,0,0,0,1,0,0,1,0,0,0,1,0,1,0,0,0,0,0,1,0,0,0,0,0,0,0,0,0,0,0,0,0,0,0,0,0]
[2813,"Stayjax Seat Mats","Y",null,null,null,null,null,null,1,null,null,null,null,null,null,null,null,null,null,1,null,null,null,null,null,null,null,null,null,null,null,null,null,null,1,null,null,1]
[939,"Stella & Chewy's ","Y",null,1,null,null,null,null,null,0,0,null,0,0,0,0,0,0,1,1,0,0,0,0,1,0,1,0,0,0,0,0,0,0,0,0,0,0,0,0,0,0,1,0,0,0,0,0,0,0,0,0]
[546,"Steve's Real Food","Y",null,1,null,null,null,null,null,0,0,null,0,0,0,0,0,0,1,1,0,0,0,0,1,0,1,0,0,0,0,0,0,0,0,0,0,0,0,0,0,0,1,0,0,0,0,0,0,0,0,0]
[4439,"Stink Free Inc","Y",null,null,null,null,null,null,null,null,null,null,null,null,null,null,null,null,1,1,null,null,null,null,null,null,null,null,null,null,null,null,null,null,null,null,null,null,null,null,1,null,null,null,null,null,1]
[3606,"Sturdi Products, Inc","Y",null,null,null,null,null,null,null,null,null,null,null,null,null,null,null,null,1,1,null,null,null,null,null,null,null,null,null,null,null,null,null,null,null,null,1,1,1]
[1076,"Stylist Wear","Y",null,null,null,null,1,null,null,null,null,1,null,null,null,null,null,null,null,null,null,null,null,null,null,null,null,null,null,null,null,null,null,null,null,null,null,null,null,null,null,null,null,null,1]
[2127,"Suitical International B.V.","Y",null,null,null,null,null,null,null,null,null,null,null,null,null,null,null,null,1,1,null,1,null,null,null,null,null,null,null,null,null,null,null,null,null,null,null,null,null,null,null,null,1]
[3312,"Summit Dog Company","Y",null,null,null,null,null,null,null,null,null,null,null,null,null,null,null,null,null,1,null,null,null,null,null,null,1]
[3932,"Sun Pet Ltd. (3933)","Y",null,null,null,1,null,null,null,null,1,null,null,1,1,1,1]
[2067,"Sunshine Mills","Y",null,null,null,null,null,null,null,null,null,null,null,null,null,null,null,null,1,1,null,null,null,null,1,null,1]
[2847,"SuperZoo","Y",null,null,null,null,null,null,null,1]
[1933,"Supreme Petfoods","Y",null,null,null,null,null,null,null,null,null,null,null,null,null,null,1]
[4001,"SureFlap LLC","Y",null,null,null,null,null,null,null,null,null,null,null,null,null,null,null,null,1,1,null,null,null,null,null,1,null,null,null,null,null,null,null,null,null,1,null,null,null,null,null,null,null,null,null,null,null,null,null,null,1]
[4922,"Susan Lanci Designs, Inc.","Y",null,null,1,null,null,null,null,null,null,null,null,null,null,null,null,null,1,1,null,1,1,null,null,null,null,null,null,null,null,null,null,null,1,null,1]
[1279,"Swedencare USA","Y",null,null,null,null,null,null,null,null,null,null,null,null,null,null,null,null,1,1,null,null,null,null,null,null,1,null,null,null,null,null,null,null,null,null,null,null,null,null,null,1,1]
[1067,"Swees America","Y",null,null,null,null,null,null,null,null,null,null,null,null,null,null,null,null,1,1,null,null,null,null,null,null,null,null,null,null,null,null,null,null,null,null,null,null,null,null,null,null,null,null,1]
[3309,"Sweet Feet & Beak","Y",null,null,null,null,null,null,null,0,0,0,0,0,0,1,0,0,0,0,0,0,0,0,0,0,0,0,0,0,0,0,0,0,0,0,0,0,0,0,0,0,0,0,0]
[1167,"sWheat Scoop","Y",null,null,null,null,null,null,null,0,0,null,0,0,0,0,0,0,1,0,0,0,0,0,0,0,0,0,0,0,0,0,0,0,0,0,0,0,0,1,null,0,0,0,0,0,0,0,0,0,0,0]
[3424,"SynergyLabs, Inc.","Y",null,null,null,null,null,null,null,0,0,1,0,0,0,null,null,null,1,1,0,0,0,0,0,0,null,0,0,0,1,0,0,0,0,0,0,0,0,0,0,1,1,1,0,1,1,null,0,0,0,0]
[4619,"Tail Trends","Y",null,null,1,null,null,null,null,null,null,null,null,null,null,null,null,null,null,1,null,1]
[4734,"TailBangers","Y",null,null,1,null,null,null,null,null,null,null,null,null,null,null,null,null,null,1,null,null,null,null,null,null,1]
[3374,"Taizhou Huangyan Yixun Products Co Ltd","Y",null,null,null,null,null,null,null,null,null,null,null,null,null,null,null,null,1,1,null,null,null,null,null,null,null,null,null,null,null,null,1,null,1,null,null,null,null,null,1]
[3041,"Tall Tails ","Y",null,null,null,null,null,null,null,0,0,null,0,0,0,0,0,0,0,1,0,0,1,0,0,1,0,0,1,0,0,0,0,0,1,0,0,0,0,0,0,0,0,0,1,0,0,0,0,0,0,0]
[3418,"TarHong","Y",null,null,null,null,null,null,null,null,null,null,null,null,null,null,null,null,1,1,null,null,null,null,null,1]
[3428,"TC Transcontinental Packaging","Y",null,null,null,null,null,null,null,null,null,1,null,null,null,null,null,null,null,null,null,null,null,null,1]
[3713,"Tech II, Inc","Y",null,null,null,null,null,null,null,null,null,1]
[5038,"Teddy the Dog","Y",null,null,1,null,null,null,null,0,0,null,1,0,0,0,0,0,0,1,0,null,1,0,0,0,0,0,0,0,0,0,0,0,0,0,0,0,0,0,0,0,0,0,0,0,0,0,0,0,0,0]
[339,"Tender & True Pet Nutrition","Y",null,1,null,null,null,null,null,null,null,null,null,null,null,null,null,null,1,1,null,null,null,null,1]
[3062,"Tenka Flexible Packaging Inc.","Y",null,null,null,null,null,null,null,null,null,1]
[2566,"Tether Tug","Y",null,null,null,null,null,null,null,null,null,null,null,null,null,null,null,null,null,1,null,null,null,null,null,null,null,null,1]
[3535,"Tetra","Y",null,null,null,null,null,null,null,null,null,null,null,1]
[3220,"Tevra Brands","Y",null,null,null,null,null,null,null,null,null,null,null,null,null,null,null,null,1,1,null,null,null,null,null,null,1,null,null,null,null,null,null,null,null,null,null,null,null,null,null,null,1,1,null,null,null,null,1]
[4406,"Texas Mills, LLC","Y",null,null,null,null,null,null,null,null,null,null,null,null,null,null,null,null,null,1,null,null,null,null,1]
[3254,"TFH / Nylabone","Y",null,null,null,null,null,null,null,null,null,null,null,null,null,null,null,null,1,1,1,null,null,null,null,null,1,null,1,null,null,null,null,null,null,null,null,null,null,null,null,1]
[469,"Thales, Inc","Y",null,null,null,null,1,null,null,null,null,null,null,null,null,null,null,null,null,1,null,null,null,null,null,null,null,null,null,null,null,null,null,null,null,null,null,null,null,null,null,null,null,null,1]
[5055,"The Dog Squad","Y",null,null,1,null,null,null,null,0,0,null,0,0,0,0,0,0,0,1,0,1,1,0,0,0,0,0,0,0,0,0,0,0,1,0,1,0,0,0,0,0,0,0,0,0,0,0,0,0,0,0]
[1410,"The Green Pet Shop","Y",null,1,null,null,null,null,null,0,0,null,0,0,0,0,0,0,1,1,0,0,0,0,0,1,0,0,0,0,0,0,0,0,1,0,0,0,0,0,1,0,1,0,1,1,null,1,1,1,0,0]
[3470,"The Higgins Group Corp","Y",null,null,null,null,null,null,null,0,0,null,0,0,0,1,1,0,0,0,0,0,0,0,0,0,0,0,0,0,0,0,0,0,0,0,0,0,0,0,0,0,0,0,0,0,0,0,0,0,0,0]
[1439,"The Honest Kitchen","Y",null,1,null,null,null,null,null,0,0,null,1,0,0,0,0,0,1,1,0,0,0,0,1,0,1,0,0,0,0,0,0,0,0,0,0,0,0,0,0,0,1,0,0,1,0,0,0,0,0,0]
[625,"The Lazy Dog Cookie Co Inc","Y",null,1,null,null,null,null,null,null,null,null,null,null,null,null,null,null,null,1,null,null,null,null,null,null,1]
[1017,"The Natural Dog Company, Inc. ","Y",null,1,null,null,null,null,null,null,null,null,null,null,null,null,null,null,null,1,null,null,null,null,null,null,1]
[4525,"The Original PoopBags","Y",null,null,null,null,null,null,null,null,null,null,null,null,null,null,null,null,null,1,null,null,null,null,null,null,null,null,null,null,null,null,null,null,null,null,null,null,null,null,null,null,null,null,null,null,null,null,null,1]
[3529,"The Pet Team","Y",null,null,null,null,null,null,null,null,1,null,1,null,null,null,null,null,1,1,null,1,1,null,null,1,1,null,1,null,null,null,null,null,1,null,1]
[4846,"The Worthy Dog","Y",null,null,1,null,null,null,null,null,null,null,null,null,null,null,null,null,1,1,null,1,1,null,null,1,null,null,null,null,null,null,null,null,1]
[3709,"Therabis","Y",null,null,null,null,null,null,null,null,null,null,null,null,null,null,null,null,null,1,null,null,null,null,null,null,null,null,null,null,null,null,null,null,null,null,null,null,null,null,null,null,1]
[467,"Thera-Clean Inc","Y",null,null,null,null,1,null,null,null,null,1,null,null,null,null,null,null,null,1,null,null,null,null,null,null,null,null,null,null,null,null,null,null,null,null,null,null,null,null,null,null,null,null,1]
[4207,"This and That Canine Company Inc.","Y",null,null,null,null,null,null,null,null,null,null,null,null,null,null,null,null,null,1,null,null,null,null,null,null,1]
[2781,"Thomas Labs LLC","Y",null,null,null,null,null,null,null,null,null,null,null,1,null,1,null,1,1,1,null,null,null,null,null,null,null,null,null,null,null,null,null,null,null,null,null,null,null,null,null,null,1]
[810,"Three Dog Bakery","Y",null,1,null,null,null,null,null,null,null,null,null,null,null,null,null,null,1,1,null,null,null,null,1,null,1]
[2239,"ThunderWorks","Y",null,null,null,null,null,null,null,0,0,null,0,0,0,0,0,0,1,1,0,1,1,0,0,0,null,0,null,0,0,0,0,0,0,0,0,0,0,0,0,0,1,0,0,0,0,0,0,0,0,0]
[2941,"Tightpac America Inc.","Y",null,null,null,null,null,null,null,null,null,null,null,null,null,1,1,null,1,1,null,null,null,null,null,1]
[3626,"Timberline Live Pet Food","Y",null,null,null,null,null,null,null,0,0,null,0,1,1,1,1,0,0,0,0,0,0,0,0,0,0,0,0,0,0,0,0,0,0,0,0,0,0,0,0,0,0,0,0,0,0,0,0,0,0,0]
[5154,"Timberwolf Pet Products","Y",null,null,1,null,null,null,null,null,null,null,null,null,null,null,null,null,1,1,null,null,1,null,null,null,null,null,1]
[2745,"Tomlyn Products ","Y",null,null,null,null,null,null,null,0,0,null,0,0,0,0,1,1,1,1,0,0,0,0,0,0,1,0,0,0,0,0,0,0,0,0,0,0,0,0,0,0,1,0,0,0,1,0,0,0,0,0]
[4201,"Transnational Supply - Beefeaters","Y",null,null,null,null,null,null,null,null,null,null,null,null,null,null,null,null,null,1,null,null,null,null,1,null,1,null,1]
[4327,"Tre Ponti","Y",null,null,null,null,null,null,null,null,null,null,null,null,null,null,null,null,null,1,null,null,1]
[747,"Treat Planet ","Y",null,1,null,null,null,null,null,null,null,null,null,null,null,null,null,null,null,1,null,null,null,null,null,null,1]
[1107,"Treatibles","Y",null,1,null,null,null,null,null,null,null,null,null,null,null,null,null,null,null,1,null,null,null,null,null,null,1,null,null,null,null,null,null,null,null,null,null,null,null,null,null,null,1]
[3407,"Trixie Pet Products","Y",null,null,null,null,null,null,null,0,0,null,0,0,0,1,1,0,1,1,0,0,0,0,0,0,0,0,1,0,0,1,1,0,1,1,1,0,1,0,1,0,0,0,0,0,0,0,0,0,0,0]
[3930,"Tropica Aquarium Plants Ltd. (3931)","Y",null,null,null,1,null,null,null,null,null,null,null,1]
[3918,"Tropical Fish International (3919)","Y",null,null,null,1,null,null,null,null,null,null,null,1,1]
[3573,"TropiClean","Y",null,null,null,null,null,null,null,0,0,null,0,0,0,0,0,0,1,1,0,0,0,0,0,0,1,0,1,0,0,0,0,0,0,0,0,0,0,0,0,1,1,1,null,1,1,1,0,0,0,0]
[1611,"Trouw Nutrition USA","Y",null,null,null,null,null,null,null,null,null,1,null,null,null,1,1,null,1,1,null,null,null,null,1,null,null,null,null,null,null,null,null,null,null,null,null,null,null,null,null,null,1]
[1174,"True Leaf Pet","Y",null,null,null,null,null,null,null,null,null,null,null,null,null,null,null,null,null,1,null,null,null,null,null,null,1,null,null,null,null,null,null,null,null,null,null,null,null,null,null,null,1]
[861,"Truebite, Inc","Y",null,null,null,null,1,null,null,null,null,1,1,null,null,null,null,null,null,1,null,null,null,null,null,null,null,null,null,null,null,null,null,null,null,null,null,null,null,null,null,null,null,null,1]
[427,"TrueBlue Pet Products","Y",null,1,null,null,null,null,null,null,null,null,null,null,null,null,null,null,null,1,null,null,null,null,null,null,null,null,null,null,null,null,null,null,null,null,null,null,null,null,null,null,1,null,null,1,null,1]
[1072,"Truffoire Las Vegas","Y",null,null,null,null,1,null,null,null,null,null,null,null,null,null,null,null,1,1,null,null,null,null,null,null,null,null,null,null,null,null,null,null,null,null,null,null,null,null,null,null,1]
[533,"Tucker's Raw Frozen & Treats ","Y",null,1,null,null,null,null,null,null,null,null,null,null,null,null,null,null,null,1,null,null,null,null,1,null,1]
[739,"Tuffy's Pet Foods ","Y",null,1,null,null,null,null,null,0,0,null,0,0,0,0,0,0,1,1,0,0,0,0,1,0,1,0,0,0,0,0,0,0,0,0,0,0,0,0,0,0,0,0,0,0,0,0,0,0,0,0]
[2355,"Tuggo Dog Toys LLC ","Y",null,null,null,null,null,null,null,0,0,null,0,0,0,0,0,0,0,1,0,0,0,0,0,0,0,0,1,0,0,0,0,0,0,0,0,0,0,0,0,0,0,0,0,0,0,0,0,0,0,0]
[3304,"Tumbo LLC","Y"]
[1529,"Tuscan Natural Pet Food","Y",null,null,null,null,null,null,null,0,0,0,0,0,0,0,0,0,1,1,0,0,0,0,1,0,0,0,0,0,0,0,0,0,0,0,0,0,0,0,0,0,0,0,0,0,0,0,0,0,0,0]
[655,"Tyson Pet Products","Y",null,1,null,null,null,null,null,0,0,null,0,0,0,0,0,0,0,1,0,0,0,0,0,0,1,0,0,0,0,0,0,0,0,0,0,0,0,0,0,0,0,0,0,0,0,0,0,0,0,0]
[2709,"U.S. Display Group","Y",null,null,null,null,null,null,null,null,null,1]
[1079,"Uckele Health and Nutrition","Y",null,null,null,null,null,null,null,0,0,null,0,0,0,0,0,1,0,1,0,0,0,0,0,0,1,0,0,0,0,0,0,0,0,0,0,0,0,0,0,0,1,0,0,0,0,0,0,0,0,0]
[3034,"Ultra Paws","Y",null,null,null,null,null,null,null,0,0,null,0,0,0,0,0,0,0,1,0,1,1,0,0,null,0,0,null,0,0,0,0,0,null,0,0,0,0,0,0,0,null,null,0,0,0,0,0,0,0,0]
[4157,"Ultra Pet","Y",null,null,null,null,null,null,null,0,0,null,0,0,0,0,0,0,1,null,0,0,0,0,0,0,0,0,0,0,0,0,0,0,0,0,0,0,0,1,null,0,1,0,0,0,0,0,0,0,0,0]
[273,"UMMP llc.","Y",null,null,null,null,1,null,null,null,null,null,null,null,null,null,null,null,null,1,null,null,null,null,null,null,1]
[4015,"Uncle Sam's Discus (4014)","Y",null,null,null,1,null,null,null,null,1,null,null,1]
[2535,"Under the Weather Pet","Y",null,null,null,null,null,null,null,null,null,null,null,null,null,null,null,null,null,1,null,null,null,null,1,null,null,null,null,null,null,null,null,null,null,null,null,null,null,null,null,null,1]
[733,"Unique Natural Products","Y",null,1,null,null,null,null,null,null,null,null,null,null,null,null,null,null,1,1,null,null,null,null,null,null,null,null,null,null,null,null,null,null,null,null,null,null,null,null,null,null,null,null,null,null,1]
[2875,"Unique Petz, LLC","Y",null,null,null,null,null,null,null,0,0,null,0,0,0,0,0,0,1,1,0,1,1,0,0,0,0,0,1,0,0,0,0,0,0,0,1,1,1,0,0,0,0,0,0,0,0,0,0,0,0,0]
[1459,"United Pacific Pet LLC","Y",null,null,null,null,null,null,null,null,1,null,null,null,null,1,1,1,1,1,null,null,1,null,1,1,1,1,null,null,null,1,1,null,1,1,1,1,1,1,1,1,1,1,null,1,1,null,1,null,1,1]
[4007,"United States Postal Service","Y",null,null,null,null,null,null,null,null,null,1]
[4840,"Unleashed Life","Y",null,null,1,null,null,null,null,null,null,null,null,null,null,null,null,null,1,1,null,1,1,null,null,1,null,null,null,null,null,null,null,null,1,null,1]
[4627,"Up Country Inc.","Y",null,null,1,null,null,null,null,0,0,null,1,0,0,0,0,0,1,1,0,1,1,0,0,1,1,0,1,0,null,0,0,0,1,0,0,0,0,0,0,0,0,0,0,0,0,0,0,0,0,0]
[3816,"Up Right Trading Corp.","Y",null,null,null,null,null,null,null,null,null,null,null,1,1,1,1,null,null,1,null,null,null,null,null,null,null,null,null,null,null,null,null,null,null,null,1,null,1]
[4301,"Uptown Pups","Y",null,null,null,null,null,null,null,null,null,null,null,null,null,null,null,null,null,1,null,1,null,null,null,null,1,null,null,null,null,null,null,null,null,null,null,null,null,null,null,null,null,null,null,null,null,null,null,1]
[2023,"Urine Off By Bio-Pro Research","Y",null,null,null,null,null,null,null,0,0,null,0,0,0,0,1,1,1,1,0,0,0,0,0,0,0,0,0,0,0,0,0,0,0,0,0,0,0,0,0,0,0,0,0,0,1,null,0,0,0,0]
[4926,"Ursula Dodge Design Studio","Y",null,null,1,null,null,null,null,null,null,null,1]
[872,"Utsumi America Inc","Y",null,null,null,null,1,null,null,null,null,1,null,null,null,null,null,null,null,1,null,null,null,null,null,null,null,null,null,null,null,null,null,null,null,null,null,null,null,null,null,null,null,null,1]
[2530,"Valhoma Corporation","Y",null,null,null,null,null,null,1,null,null,null,null,null,null,null,null,null,1,1,null,null,1,null,null,1,1,null,1,null,null,null,null,1]
[3145,"Van Ness Plastic","Y",null,null,null,null,null,null,null,0,0,null,0,0,0,0,1,0,1,1,0,0,0,0,0,1,0,0,0,0,1,1,0,0,1,0,0,0,0,0,1,0,0,0,0,0,0,0,0,null,0,0]
[4718,"Vee Enterprises","Y",null,null,1,null,null,null,null,null,null,null,null,null,null,null,null,null,1,1,null,null,1,null,null,null,null,null,1,null,1,null,null,null,null,null,null,null,null,null,1]
[4161,"Verde Pet Health LLC","Y",null,null,null,null,null,null,null,null,null,null,null,null,null,null,null,null,null,1,null,null,null,null,null,null,1,null,null,null,null,null,null,null,null,null,null,null,null,null,null,null,1]
[1511,"Vet Worthy","Y",null,null,null,null,null,null,null,null,null,null,null,null,null,null,null,null,1,1,null,null,null,null,null,null,null,null,null,null,null,null,null,null,null,null,null,null,null,null,null,1,1]
[1125,"Vetalogica USA, Inc.","Y",null,1,null,null,null,null,null,null,null,null,null,null,null,null,null,null,1,1,null,null,null,null,null,null,1,null,null,null,null,null,null,null,null,null,null,null,null,null,null,null,1]
[1739,"Vetericyn","Y",null,null,null,null,null,null,null,null,null,null,null,null,null,1,null,1,1,1,null,null,null,null,null,null,null,null,null,null,null,null,null,null,null,null,null,null,null,null,null,null,1,null,null,1]
[1743,"Veterinary Service Inc (VSI)","Y",null,null,null,null,null,null,null,null,1,null,null,null,null,1,1,1,1,1,null,1,1,1,1,1,1,1,1,1,1,1,1,1,1,1,1,1,1,1,1,1,1,1,1,1,1,1,1,1,1]
[4213,"Vets Plus, Inc.","Y",null,null,null,null,null,null,null,null,null,1,null,null,null,1,1,1,1,1,null,null,null,null,null,null,null,null,null,null,null,null,null,null,null,null,null,null,null,null,null,null,1]
[3419,"Vetsense Ltda. - Cosmetic for Pets","Y",null,null,null,null,null,null,null,null,null,null,null,null,null,null,null,1,null,1,null,null,null,null,null,null,null,null,null,null,null,null,null,null,null,null,null,null,null,null,null,null,1,null,null,1]
[917,"Victor Super Premium Pet Foods","Y",null,1,null,null,null,null,null,null,null,null,null,null,null,null,null,1,1,1,null,null,null,null,1]
[4604,"VIP \"Smart\" Engravers","Y",null,null,null,null,null,null,null,null,null,1,null,null,null,null,null,null,1,1,null,null,null,1]
[3243,"VIP Products ","Y",null,null,null,null,null,null,null,0,0,null,0,0,0,0,0,0,0,1,0,0,0,0,0,0,0,0,1,0,0,0,0,0,1,0,0,0,0,0,0,0,0,0,0,0,0,0,0,0,0,0]
[4030,"Vista Pet Supply (4031)","Y",null,null,null,1,null,null,null,null,1,null,null,null,1]
[417,"Vital Essentials","Y",null,1,null,null,null,null,null,0,0,null,0,0,0,0,0,0,1,1,0,0,0,0,1,0,1,0,0,0,0,0,0,0,0,0,0,0,0,0,0,0,0,0,0,0,0,0,0,0,0,0]
[3807,"Volkman Seed Factory ","Y",null,null,null,null,null,null,null,0,0,null,0,0,0,1,1,0,0,0,0,0,0,0,0,0,0,0,0,0,0,0,0,0,0,0,0,0,0,0,0,0,0,0,0,0,0,0,0,0,0,0]
[1009,"Wag USA","Y",null,1,null,null,null,null,null,null,null,null,null,null,null,null,null,null,null,1,null,null,null,null,null,null,null,null,null,1]
[260,"Wag'n Tails Mobile Conversions","Y",null,null,null,null,1,null,null,null,null,1,null,null,null,null,null,null,null,null,null,null,null,null,null,null,null,null,null,null,null,null,null,null,null,null,null,null,null,null,null,null,null,null,1]
[871,"Wahl Clipper Corporation","Y",null,null,null,null,1,null,null,0,0,1,0,0,0,0,1,1,1,1,1,0,0,0,0,0,0,0,0,0,0,0,0,0,0,0,0,0,0,0,0,0,0,0,1,null,0,null,null,0,0,0]
[1207,"Walk About Pet Products/The Wee Away Co.","Y",null,1,null,null,null,null,null,null,null,null,null,null,null,1,1,null,1,1,null,null,null,null,1,null,1,null,null,null,null,null,null,null,null,null,null,null,null,null,null,null,null,null,null,null,1]
[4419,"Walkin' Pets by HandicappedPets.com","Y",null,null,null,null,null,null,null,null,null,null,1,null,null,null,null,null,1,1,null,1,1,null,null,1,1,null,null,null,null,null,null,null,1,null,1,1,null,null,null,null,1,null,null,null,null,null,1]
[3213,"Walking Palm Cat Cave Beds and Accessories","Y",null,null,null,null,null,null,null,null,null,null,null,null,null,null,null,null,1,1,null,1,1,null,null,null,null,null,1,null,null,null,null,null,1]
[3070,"Wall-Walkers Cat Habitats","Y",null,null,null,null,null,null,null,null,null,null,null,null,null,null,null,null,1,null,null,null,null,null,null,1,null,null,null,null,null,1,1,null,1]
[4235,"Ware Manufacturing","Y",null,null,null,null,null,null,null,0,0,null,0,0,null,1,1,0,1,1,0,0,0,0,0,0,0,0,1,null,0,1,1,0,null,null,1,1,1,0,0,0,0,0,0,0,0,0,0,0,0,0]
[4823,"Ware of the Dog","Y",null,null,1,null,null,null,null,null,null,null,1,null,null,null,null,null,null,1,null,1,1,null,null,1,null,null,1]
[654,"Warren London","Y",null,1,null,null,null,null,null,0,0,null,1,0,0,0,0,0,null,1,0,null,0,0,0,0,0,0,0,0,0,0,0,0,0,0,0,0,0,0,0,0,1,0,1,1,null,null,0,0,0,0]
[661,"Water Pik Inc","Y",null,null,null,null,1,null,null,null,null,null,null,null,null,null,null,null,null,1,null,null,null,null,null,null,null,null,null,null,null,null,null,null,null,null,null,null,null,null,null,null,null,null,1]
[2630,"We For Dogs","Y",null,null,null,null,null,null,1,null,null,null,null,null,null,null,null,null,null,1,null,null,1,null,null,null,null,null,1]
[3521,"WeighPack Systems Inc","Y",null,null,null,null,null,null,null,null,null,1,null,null,null,null,null,null,1,1,null,null,null,null,1,null,1]
[1959,"WellPet LLC","Y",null,null,null,null,null,null,null,0,0,null,0,0,0,0,null,0,1,1,0,0,0,0,1,0,1,0,0,0,0,0,0,0,0,0,0,0,0,0,0,0,0,0,0,0,0,0,0,0,0,0]
[711,"Weruva","Y",null,1,null,null,null,null,null,null,null,null,null,null,null,null,null,null,1,1,null,null,null,null,1,null,1,null,null,null,null,null,null,null,null,null,null,null,null,1]
[3545,"West Paw Design ","Y",null,null,null,null,null,null,null,0,0,null,0,0,0,0,0,0,1,1,0,null,0,0,0,0,null,0,1,0,1,0,0,0,1,0,0,0,0,0,0,0,0,0,0,0,0,0,0,0,0,0]
[4545,"Westminster Pet Products ","Y",null,null,null,null,null,null,null,0,0,null,null,0,0,0,0,0,1,1,0,null,1,0,0,0,1,1,1,0,1,1,0,1,null,0,0,1,0,0,1,0,0,0,1,0,0,0,0,1,0,0]
[645,"Wet Noses ","Y",null,1,null,null,null,null,null,0,0,null,0,0,0,0,0,0,0,1,0,0,0,0,0,0,1,0,0,0,0,0,0,0,0,0,0,0,0,0,0,0,0,0,0,0,0,0,0,0,0,0]
[3378,"Wharney Daily Chemical Co Ltd","Y",null,null,null,null,null,null,null,null,null,null,null,null,null,null,null,null,null,1,null,null,null,null,null,null,null,null,null,null,null,null,null,null,null,null,null,null,null,null,null,null,null,null,null,null,null,null,1]
[4713,"Wheel House Designs","Y",null,null,1,null,null,null,null,0,0,null,1,0,null,null,null,null,null,null,0,0,0,0,0,0,0,0,0,0,0,0,0,0,0,0,0,0,0,0,0,0,0,0,0,0,0,0,0,0,0,0]
[323,"Whisk & Wag","Y",null,1,null,null,null,null,null,null,null,null,null,null,null,null,null,null,null,1,null,null,null,null,null,null,1]
[167,"Whitebridge Pet Brands LLC","Y",null,null,null,null,1,null,null,null,null,null,null,null,null,null,null,null,1,1,null,null,null,null,1,null,1]
[4961,"WholesalePet.com","Y",null,null,1,null,null,null,null,0,1,null,0,1,1,1,1,1,1,1,0,1,1,1,1,1,1,1,1,1,1,1,1,1,1,1,1,1,1,1,1,1,1,1,1,1,1,1,1,1,1,0]
[438,"Wholesome Pet Nutrition","Y",null,1,null,null,null,null,null,null,null,null,null,null,null,null,null,null,1,1,null,null,null,null,1,null,1,null,null,null,null,null,null,null,null,null,null,null,null,null,null,null,null,null,null,0,0,0,0,0,0,0]
[1116,"Wholistic Pet Organics","Y",null,1,null,null,null,null,null,0,0,null,0,0,0,null,0,1,1,1,0,0,0,0,null,0,1,0,0,0,0,0,0,0,0,0,0,0,0,0,0,0,1,1,0,1,0,0,0,0,0,0]
[3020,"Wide World Business Inc.","Y",null,null,null,null,null,null,null,null,null,null,null,null,null,null,null,null,null,1,null,null,null,null,null,1,null,null,null,null,null,null,null,null,null,null,null,null,null,null,null,null,null,null,1]
[1835,"Wigzi LLC","Y",null,null,null,null,null,null,null,0,0,null,0,0,0,0,0,0,0,1,0,0,1,0,null,0,null,0,null,0,0,0,0,0,0,0,0,0,0,0,0,0,0,0,0,0,0,0,0,0,0,0]
[1230,"Wild Meadow Farms","Y",null,1,null,null,null,null,null,0,0,null,0,0,0,0,0,0,0,1,0,0,0,0,0,0,1,0,0,0,0,0,0,0,0,0,0,0,0,0,0,0,0,0,0,0,0,0,0,0,0,0]
[4819,"Wildebeest","Y",null,null,1,null,null,null,null,null,null,null,null,null,null,null,null,null,1,1,null,1,1,null,null,1,null,null,1,null,1,null,null,null,1,null,null,1,null,null,null,null,null,null,null,null,null,null,null,1]
[255,"Wildlife Sciences","Y",null,1,null,null,null,null,null,null,null,null,null,null,null,1]
[4605,"With A Purpose Products","Y",null,null,1,null,null,null,null,null,null,null,null,null,null,null,null,null,1,null,null,null,null,null,null,null,null,null,1]
[4409,"Wolfgang Man & Beast","Y",null,null,null,null,null,null,null,null,null,null,1,null,null,null,null,null,null,1,null,null,1,null,null,1]
[5158,"Woodrow Wear LLC","Y",null,null,1,null,null,null,null,null,null,null,null,null,null,null,null,null,null,1,null,1]
[424,"Wooftown","Y",null,1,null,null,null,null,null,null,null,null,null,null,null,null,null,null,null,1,null,null,null,null,1,null,1]
[4508,"Woofwear by World Critter, Inc.","Y",null,null,null,null,null,null,null,0,0,0,0,0,0,0,0,0,1,1,0,null,1,0,0,null,0,0,0,0,0,0,0,0,0,0,0,0,0,0,0,0,null,0,0,null,0,0,0,0,0,0]
[2522,"Woogie Whomper","Y",null,null,null,null,null,null,1,null,null,null,null,null,null,null,null,null,null,1,null,null,null,null,null,null,null,null,1,null,null,null,null,null,1]
[2847,"World Pet Association Inc","Y",null,null,null,null,null,null,null,1]
[1672,"World's Best Cat Litter / Kent Pet Group","Y",null,null,null,null,null,null,null,0,0,null,0,0,0,null,null,null,1,null,0,0,0,0,null,0,null,0,0,0,0,0,0,0,0,0,0,0,0,1,null,0,0,0,0,0,0,0,0,0,0,0]
[2655,"WorldWise","Y",null,null,null,null,null,null,null,0,0,null,1,null,null,null,null,0,1,1,null,0,1,0,0,1,1,0,1,0,1,1,1,0,1,0,1,1,0,0,1,1,0,null,1,0,1,0,0,0,0,0]
[3169,"Wuxi Mnc Pet Products Co Ltd","Y",null,null,null,null,null,null,null,null,null,null,null,null,null,null,null,null,1,1,null,1,1,null,null,null,null,null,null,null,null,null,null,null,1,null,null,null,null,null,null,null,null,null,1]
[2928,"Wyld's Wingdom ","Y",null,null,null,null,null,null,null,0,0,null,0,0,0,1,1,0,0,0,0,0,0,0,0,0,0,0,0,0,0,0,0,0,0,0,0,0,0,0,0,0,0,0,0,0,0,0,0,0,0,0]
[3278,"Xiamen Ipet Products Co Ltd","Y",null,null,null,null,null,null,null,null,null,null,null,null,null,null,null,null,1,1,null,null,null,null,null,null,null,null,null,null,null,null,null,null,1]
[1808,"Xiamen Yaoming Plastic Co., Ltd","Y",null,null,null,null,null,null,null,null,null,null,null,null,null,null,null,null,null,1,null,null,null,null,null,null,null,null,null,null,null,null,null,null,null,null,null,null,null,null,null,null,null,null,null,null,null,null,null,1]
[560,"XPOWER Manufacture","Y",null,null,null,null,1,null,null,null,null,1,null,null,null,null,null,null,null,1,null,null,null,null,null,null,null,null,null,null,null,null,null,null,null,null,null,null,null,null,null,null,null,null,1]
[2617,"Xtrm Dog Gear","Y",null,null,null,null,null,null,1,null,null,null,null,null,null,null,null,null,null,1,null,null,1]
[2711,"Y.K. Industries","Y",null,null,null,null,null,null,1,null,null,null,null,null,null,null,null,null,null,1,null,1,1,null,null,1,null,null,1,null,null,null,null,null,1]
[324,"YAPPY GLOBAL PETS","Y",null,1,null,null,null,null,null,null,null,null,null,null,null,null,null,null,1,1,null,null,null,null,1,null,null,null,null,null,null,null,null,null,null,null,null,null,null,1]
[5041,"Yellow Dog Design ","Y",null,null,1,null,null,null,null,0,0,null,0,0,0,0,0,1,1,1,0,0,1,1,0,0,0,0,0,0,0,0,0,0,0,0,0,0,0,0,0,0,0,0,1,0,0,0,0,0,0,0]
[367,"Yeti Corporation ","Y",null,null,null,null,1,null,null,0,0,null,0,0,0,0,0,0,0,1,0,0,0,0,0,0,1,0,1,0,0,0,0,0,1,0,0,0,0,0,0,0,0,0,0,0,0,0,0,0,0,0]
[4116,"Your Perfect Puppy, LLC","Y",null,null,null,null,null,null,null,null,null,null,null,null,null,null,null,null,null,1,null,null,1,null,null,1]
[3542,"YPCK","Y",null,null,null,null,null,null,null,null,null,null,1,null,null,null,null,null,1,1,null,1,1,null,1,1,1,null,1,null,1,1,null,null,1,null,null,null,null,null,null,null,1,null,null,1]
[511,"Yummy Chummies","Y",null,1,null,null,null,null,null,null,null,null,null,null,null,null,null,null,null,1,null,null,null,null,null,null,1,null,null,null,null,null,null,null,null,null,null,null,null,null,null,null,1]
[1407,"Zavada Scientific LLC","Y",null,1,null,null,null,null,null,null,null,1,null,null,null,null,null,null,1,1,null,null,null,null,null,null,null,null,null,null,null,null,null,null,null,null,null,null,null,null,null,null,null,null,null,null,1]
[3406,"ZenPet","Y",null,null,null,null,null,null,null,null,null,null,null,null,null,null,null,null,1,1,null,1,1,null,null,null,null,null,null,null,null,null,null,null,null,null,null,null,null,null,null,null,1,1]
[3254,"Zilla","Y",null,null,null,null,null,null,null,null,null,null,null,null,1]
[2635,"Zinpro Corporation","Y",null,null,null,null,null,null,null,null,null,null,null,null,null,1,null,1,null,1,null,null,null,null,null,null,null,null,null,null,null,null,null,null,null,null,null,null,null,null,null,null,1]
[2913,"ZippyPaws ","Y",null,null,null,null,null,null,null,0,0,null,0,0,0,0,0,0,0,1,0,1,1,0,0,1,0,0,1,0,0,0,0,0,null,0,0,0,0,0,0,0,0,0,0,0,0,0,0,1,0,0]
[839,"ZiwiPeak USA Inc. ","Y",null,1,null,null,null,null,null,0,0,null,0,0,0,0,0,0,1,1,0,0,0,0,1,0,1,0,0,0,0,0,0,0,0,0,0,0,0,0,0,0,null,0,0,0,0,0,0,0,0,0]
[2045,"Zoo Med Laboratories","Y",null,null,null,null,null,null,null,0,0,null,null,1,1,1,0,0,0,0,0,0,0,0,0,0,0,0,0,0,0,0,0,0,0,0,0,0,0,0,0,0,0,0,0,0,0,0,0,0,0,0]
[4309,"ZuGo Pet","Y",null,null,null,null,null,null,null,null,null,null,null,null,null,null,null,null,null,1,null,null,1,null,null,null,null,null,null,null,null,null,null,null,1,null,1,1]
[1445,"Zuke's","Y",null,1,null,null,null,null,null,0,0,null,0,0,0,0,0,0,1,1,0,0,0,0,1,0,1,0,0,0,0,0,0,0,0,0,0,0,0,0,0,0,1,0,0,0,0,0,0,0,0,0]
[1631,"ZuPreem ","Y",null,null,null,null,null,null,null,0,0,null,0,0,null,1,1,0,0,0,0,0,0,0,0,0,0,0,0,0,0,0,0,0,0,0,0,0,0,0,0,0,0,0,0,0,0,0,0,0,0,0]
[null,"BLANK Search Field","N"]
[null,"Total >",{"$f":"SUMPRODUCT(- -(ISNUMBER(SEARCH(\"Y\",$C$10:$C$1090))),SUBTOTAL(3,OFFSET($C$10,ROW($C$10:$C$1090)-ROW($C$10),0)))","v":1080},{"$f":"SUBTOTAL(109,D10:D1090)","v":0},207,112,15,76,0,74,19,29,116,97,76,48,98,94,80,518,866,7,133,241,38,148,160,314,37,204,15,40,55,70,40,{"$f":"SUBTOTAL(109,AJ10:AJ1090)","v":162},36,101,64,42,49,63,59,238,58,126,118,85,42,56,96,46,19]

{"sheet":"Sheet1","index":1,"n_rows":0,"n_cols":0,"rows_kept":0,"cut":false,"hidden":false,"merged":[]}